Department Family,Entity,Date,Expense Type,Expense Area,Supplier,Transaction Number, Amount ,Item Description
BEIS,UKRI - AHRC,01/02/2019,Catering Contracts,HR,Officedrop Ltd,98391877,144.00,Catering Contracts
BEIS,UKRI - AHRC,01/02/2019,Hospitality,Business Process & Analysis,Calder Conference Ltd,98392103,87.00,Hospitality
BEIS,UKRI - AHRC,01/02/2019,Hospitality,Business Process & Analysis,Calder Conference Ltd,98392103,435.00,Hospitality
BEIS,UKRI - AHRC,04/02/2019,Contract Staff,PSU Project Office,Hays Specialist Recruitment Ltd,98340140,"3,027.78",Contract Staff
BEIS,UKRI - AHRC,04/02/2019,Contract Staff,PSU Project Office,Hays Specialist Recruitment Ltd,98358285,"3,027.78",Contract Staff
BEIS,UKRI - AHRC,04/02/2019,Contract Staff,PSU Project Office,Hays Specialist Recruitment Ltd,98364917,"3,027.78",Contract Staff
BEIS,UKRI - AHRC,04/02/2019,Contract Staff,PSU Project Office,Hays Specialist Recruitment Ltd,98367475,"3,027.78",Contract Staff
BEIS,UKRI - AHRC,04/02/2019,Contract Staff,PSU Project Office,Hays Specialist Recruitment Ltd,98374623,"3,027.78",Contract Staff
BEIS,UKRI - AHRC,04/02/2019,Recruitment Costs,Corporate Services,Agenda Resource Management Ltd,98395855,155.91,Recruitment Costs
BEIS,UKRI - AHRC,04/02/2019,Advertising & Promotion,Communications,Matthew Ford,98396043,"3,800.00",Advertising & Promotion
BEIS,UKRI - AHRC,04/02/2019,Legal & Professional Services,Communications,Alice Vernall T/A The Academic Ideas Lab,98396067,350.00,Legal & Professional Services
BEIS,UKRI - AHRC,05/02/2019,Recharges JRS,Corporate Services,Engineering & Physical Sciences Research Council,98389730,"8,058.86",Recharges JRS
BEIS,UKRI - AHRC,05/02/2019,Recharges JRS,Corporate Services,Engineering & Physical Sciences Research Council,98390839,"(8,058.86)",Recharges JRS
BEIS,UKRI - AHRC,05/02/2019,Secondments,Communications,Biotechnology and Biological Sciences Research Council (BBSRC),98394962,"4,950.68",Secondments
BEIS,UKRI - AHRC,05/02/2019,Recharges JRS,Corporate Services,Engineering & Physical Sciences Research Council,98396036,"6,715.72",Recharges JRS
BEIS,UKRI - AHRC,05/02/2019,Non-staff travel and subsistance,Creative Arts & Digital Humanities,Non Employee Expenses Supplier,98396209,340.50,Non-staff travel and subsistance
BEIS,UKRI - AHRC,05/02/2019,Non-staff travel and subsistance,Communications,Non Employee Expenses Supplier,98396210,133.80,Non-staff travel and subsistance
BEIS,UKRI - AHRC,05/02/2019,Non-staff travel and subsistance,Business Process & Analysis,Non Employee Expenses Supplier,98396211,257.55,Non-staff travel and subsistance
BEIS,UKRI - AHRC,05/02/2019,Non-staff travel and subsistance,Business Process & Analysis,Non Employee Expenses Supplier,98396212,13.80,Non-staff travel and subsistance
BEIS,UKRI - AHRC,05/02/2019,Non-staff travel and subsistance,Communications,Non Employee Expenses Supplier,98396213,162.00,Non-staff travel and subsistance
BEIS,UKRI - AHRC,05/02/2019,Non-staff travel and subsistance,"Histories,Culture & Heritage",Non Employee Expenses Supplier,98396214,40.84,Non-staff travel and subsistance
BEIS,UKRI - AHRC,05/02/2019,Non-staff travel and subsistance,Fund for International Collaboration,Non Employee Expenses Supplier,98396216,630.48,Non-staff travel and subsistance
BEIS,UKRI - AHRC,05/02/2019,Non-staff travel and subsistance,Fund for International Collaboration,Non Employee Expenses Supplier,98396217,97.80,Non-staff travel and subsistance
BEIS,UKRI - AHRC,05/02/2019,Non-staff travel and subsistance,Business Process & Analysis,Non Employee Expenses Supplier,98396218,189.59,Non-staff travel and subsistance
BEIS,UKRI - AHRC,05/02/2019,Non-staff travel and subsistance,Business Process & Analysis,Non Employee Expenses Supplier,98396219,52.70,Non-staff travel and subsistance
BEIS,UKRI - AHRC,05/02/2019,Non-staff travel and subsistance,"Languages,Literature & International Engagement",Non Employee Expenses Supplier,98396220,171.57,Non-staff travel and subsistance
BEIS,UKRI - AHRC,05/02/2019,Non-staff travel and subsistance,"Languages,Literature & International Engagement",Non Employee Expenses Supplier,98396221,113.95,Non-staff travel and subsistance
BEIS,UKRI - AHRC,05/02/2019,Non-staff travel and subsistance,"AHRC - Strategic Planning, Evidence & Impact",Non Employee Expenses Supplier,98396222,144.50,Non-staff travel and subsistance
BEIS,UKRI - AHRC,05/02/2019,Non-staff travel and subsistance,Business Process & Analysis,Non Employee Expenses Supplier,98396223,169.70,Non-staff travel and subsistance
BEIS,UKRI - AHRC,05/02/2019,Non-staff travel and subsistance,Fund for International Collaboration,Non Employee Expenses Supplier,98396224,623.60,Non-staff travel and subsistance
BEIS,UKRI - AHRC,05/02/2019,Non-staff travel and subsistance,Newton Programme,Non Employee Expenses Supplier,98396225,615.71,Non-staff travel and subsistance
BEIS,UKRI - AHRC,05/02/2019,Non-staff travel and subsistance,"Languages,Literature & International Engagement",Non Employee Expenses Supplier,98396226,33.90,Non-staff travel and subsistance
BEIS,UKRI - AHRC,05/02/2019,Non-staff travel and subsistance,Fund for International Collaboration,Non Employee Expenses Supplier,98396227,"1,659.41",Non-staff travel and subsistance
BEIS,UKRI - AHRC,05/02/2019,Agency Staff,Finance,Hays Specialist Recruitment Ltd,98397073,"2,672.76",Agency Staff
BEIS,UKRI - AHRC,05/02/2019,Agency Staff,Finance,Hays Specialist Recruitment Ltd,98397080,"2,672.76",Agency Staff
BEIS,UKRI - AHRC,05/02/2019,Agency Staff,Finance,Hays Specialist Recruitment Ltd,98397083,"1,603.66",Agency Staff
BEIS,UKRI - AHRC,05/02/2019,Agency Staff,Finance,Hays Specialist Recruitment Ltd,98397085,"2,672.76",Agency Staff
BEIS,UKRI - AHRC,05/02/2019,Agency Staff,Finance,Hays Specialist Recruitment Ltd,98397086,"2,672.76",Agency Staff
BEIS,UKRI - AHRC,05/02/2019,Agency Staff,Finance,Hays Specialist Recruitment Ltd,98397088,"2,672.76",Agency Staff
BEIS,UKRI - AHRC,06/02/2019,Non-staff travel and subsistance,Newton Programme,Non Employee Expenses Supplier,98396232,87.25,Non-staff travel and subsistance
BEIS,UKRI - AHRC,06/02/2019,Mobile Phone Costs,Corporate Services,West UC Ltd,98397543,116.04,Mobile Phone Costs
BEIS,UKRI - AHRC,06/02/2019,Staff Training,Communications,Tamasine McCaig T/A Mighty Oaks Digital,98397692,"1,600.00",Staff Training
BEIS,UKRI - AHRC,06/02/2019,Legal & Professional Services,Communications,Tamasine McCaig T/A Mighty Oaks Digital,98397694,"1,400.00",Legal & Professional Services
BEIS,UKRI - AHRC,06/02/2019,T&S UK - Public Transport,PSU Project Office,Unspecified,98398659,8.80,T&S UK - Public Transport
BEIS,UKRI - AHRC,06/02/2019,T&S UK - Subsistence,PSU Project Office,Unspecified,98398659,13.45,T&S UK - Subsistence
BEIS,UKRI - AHRC,07/02/2019,Provisions ( Food etc),HR,Banner Group Ltd,98396584,3.74,Provisions ( Food etc)
BEIS,UKRI - AHRC,07/02/2019,Provisions ( Food etc),HR,Banner Group Ltd,98396584,41.18,Provisions ( Food etc)
BEIS,UKRI - AHRC,07/02/2019,Purchase of non capital equipment,HR,Banner Group Ltd,98396584,24.00,Purchase of non capital equipment
BEIS,UKRI - AHRC,07/02/2019,Catering Contracts,GCRF - Programme Delivery,House of Commons,98398227,500.00,Catering Contracts
BEIS,UKRI - AHRC,07/02/2019,Health & Safety (inc. Medicals & Opticians),HR,Swindon Occupational Medical Services Ltd,98399278,450.00,Health & Safety (inc. Medicals & Opticians)
BEIS,UKRI - AHRC,07/02/2019,Agency Staff,Finance,Hays Specialist Recruitment Ltd,98399448,"1,453.20",Agency Staff
BEIS,UKRI - AHRC,07/02/2019,Agency Staff,Finance,Hays Specialist Recruitment Ltd,98399456,"1,089.90",Agency Staff
BEIS,UKRI - AHRC,07/02/2019,T&S UK - Mileage,HR,Unspecified,98399564,15.00,T&S UK - Mileage
BEIS,UKRI - AHRC,07/02/2019,T&S UK - Subsistence,Newton Programme Delivery,Unspecified,98399565,24.81,T&S UK - Subsistence
BEIS,UKRI - AHRC,07/02/2019,T&S UK - Subsistence,Newton Programme Delivery,Unspecified,98399565,20.00,T&S UK - Subsistence
BEIS,UKRI - AHRC,07/02/2019,T&S UK - Subsistence,Creative Arts & Digital Humanities,Unspecified,98399567,18.00,T&S UK - Subsistence
BEIS,UKRI - AHRC,08/02/2019,Agency Staff,Finance,Hays Specialist Recruitment Ltd,98398283,"2,672.76",Agency Staff
BEIS,UKRI - AHRC,08/02/2019,Health & Safety (inc. Medicals & Opticians),Newton Programme Delivery,Unspecified,98399566,2.00,Health & Safety (inc. Medicals & Opticians)
BEIS,UKRI - AHRC,08/02/2019,T&S UK - Subsistence,Newton Programme Delivery,Unspecified,98399566,19.50,T&S UK - Subsistence
BEIS,UKRI - AHRC,08/02/2019,T&S UK - Subsistence,Newton Programme Delivery,Unspecified,98399566,25.00,T&S UK - Subsistence
BEIS,UKRI - AHRC,08/02/2019,Hospitality,Communications,Graysons Restaurants Ltd,98399853,406.80,Hospitality
BEIS,UKRI - AHRC,08/02/2019,Advertising & Promotion,Communications,Alice Vernall T/A The Academic Ideas Lab,98399864,730.00,Advertising & Promotion
BEIS,UKRI - AHRC,08/02/2019,Conferences & Seminars,Creative Arts & Digital Humanities,Partnership Media Group T/A GovNet Communications,98400085,214.56,Conferences & Seminars
BEIS,UKRI - AHRC,08/02/2019,Conferences & Seminars,Creative Arts & Digital Humanities,Partnership Media Group T/A GovNet Communications,98400085,(5.96),Conferences & Seminars
BEIS,UKRI - AHRC,08/02/2019,Conferences & Seminars,Creative Arts & Digital Humanities,Partnership Media Group T/A GovNet Communications,98400085,(29.80),Conferences & Seminars
BEIS,UKRI - AHRC,08/02/2019,T&S UK - Parking Tolls Congestion Charges,SMT,Unspecified,98400780,35.10,T&S UK - Parking Tolls Congestion Charges
BEIS,UKRI - AHRC,08/02/2019,T&S UK - Subsistence,SMT,Unspecified,98400780,5.15,T&S UK - Subsistence
BEIS,UKRI - AHRC,08/02/2019,T&S UK - Subsistence,SMT,Unspecified,98400780,43.00,T&S UK - Subsistence
BEIS,UKRI - AHRC,08/02/2019,T&S UK - Subsistence,SMT,Unspecified,98400780,4.81,T&S UK - Subsistence
BEIS,UKRI - AHRC,08/02/2019,T&S UK - Subsistence,SMT,Unspecified,98400780,3.08,T&S UK - Subsistence
BEIS,UKRI - AHRC,11/02/2019,Hospitality,Creative Arts & Digital Humanities,Calder Conference Ltd,98337938,612.00,Hospitality
BEIS,UKRI - AHRC,11/02/2019,Hospitality,Creative Arts & Digital Humanities,Calder Conference Ltd,98337938,134.40,Hospitality
BEIS,UKRI - AHRC,11/02/2019,Legal & Professional Services,IS,Automated Intelligence Ltd,98346886,22.20,Legal & Professional Services
BEIS,UKRI - AHRC,11/02/2019,Non-staff travel and subsistance,Business Process & Analysis,Non Employee Expenses Supplier,98400391,342.25,Non-staff travel and subsistance
BEIS,UKRI - AHRC,11/02/2019,Non-staff travel and subsistance,Communications,Non Employee Expenses Supplier,98400392,22.60,Non-staff travel and subsistance
BEIS,UKRI - AHRC,11/02/2019,Non-staff travel and subsistance,Business Process & Analysis,Non Employee Expenses Supplier,98400393,43.05,Non-staff travel and subsistance
BEIS,UKRI - AHRC,11/02/2019,Non-staff travel and subsistance,Business Process & Analysis,Non Employee Expenses Supplier,98400394,69.10,Non-staff travel and subsistance
BEIS,UKRI - AHRC,11/02/2019,Non-staff travel and subsistance,Business Process & Analysis,Non Employee Expenses Supplier,98400395,49.40,Non-staff travel and subsistance
BEIS,UKRI - AHRC,11/02/2019,Non-staff travel and subsistance,Creative Arts & Digital Humanities,Non Employee Expenses Supplier,98400396,105.50,Non-staff travel and subsistance
BEIS,UKRI - AHRC,11/02/2019,Advertising & Promotion,GCRF - Programme Delivery,Unspecified,98400681,"2,875.00",Advertising & Promotion
BEIS,UKRI - AHRC,11/02/2019,Other Staff Benefits,Corporate Services,EDENRED (UK GROUP) LTD,98401062,700.00,Other Staff Benefits
BEIS,UKRI - AHRC,12/02/2019,T&S UK - Public Transport,PSU Project Office,Unspecified,98400782,2.70,T&S UK - Public Transport
BEIS,UKRI - AHRC,12/02/2019,T&S UK - Public Transport,PSU Project Office,Unspecified,98400782,32.30,T&S UK - Public Transport
BEIS,UKRI - AHRC,12/02/2019,UK - Professional Memberships & Subscriptions,Finance,Unspecified,98401526,151.00,UK - Professional Memberships & Subscriptions
BEIS,UKRI - AHRC,12/02/2019,UK - Professional Memberships & Subscriptions,PSU Project Office,Unspecified,98401983,130.00,UK - Professional Memberships & Subscriptions
BEIS,UKRI - AHRC,12/02/2019,Hospitality,Creative Arts & Digital Humanities,Calder Conference Ltd,98402279,"2,256.00",Hospitality
BEIS,UKRI - AHRC,12/02/2019,Meetings & Catering,GCRF - Programme Delivery,Harbour & Jones Ltd T/A Dartmouth House,98402304,106.92,Meetings & Catering
BEIS,UKRI - AHRC,13/02/2019,Data Storage & Recovery,Corporate Services,Iron Mountain (UK) PLC,98362948,72.50,Data Storage & Recovery
BEIS,UKRI - AHRC,13/02/2019,Storage & Archiving Costs,Corporate Services,Iron Mountain (UK) PLC,98362948,82.42,Storage & Archiving Costs
BEIS,UKRI - AHRC,13/02/2019,Recruitment Costs,HR,Warwick University Services Ltd,98370932,245.00,Recruitment Costs
BEIS,UKRI - AHRC,13/02/2019,Mobile Phone Costs,Corporate Services,West UC Ltd,98376132,274.01,Mobile Phone Costs
BEIS,UKRI - AHRC,13/02/2019,NI Payable Salaries,Balance Sheet,HM Revenue & Customs,98401289,"95,322.87",NI Payable Salaries
BEIS,UKRI - AHRC,13/02/2019,PAYE Payable Salaries,Balance Sheet,HM Revenue & Customs,98401290,"67,163.47",PAYE Payable Salaries
BEIS,UKRI - AHRC,13/02/2019,Student Loans,Balance Sheet,HM Revenue & Customs,98401291,"4,629.00",Student Loans
BEIS,UKRI - AHRC,13/02/2019,Apprenticeship Levy,Corporate Services,HM Revenue & Customs,98401292,"2,484.00",Apprenticeship Levy
BEIS,UKRI - AHRC,13/02/2019,Council & Committee Honoraria,New Programme Development,Unspecified,98401407,170.00,Council & Committee Honoraria
BEIS,UKRI - AHRC,13/02/2019,Council & Committee Honoraria,New Programme Development,Unspecified,98401408,170.00,Council & Committee Honoraria
BEIS,UKRI - AHRC,13/02/2019,Council & Committee Honoraria,New Programme Development,Unspecified,98401409,170.00,Council & Committee Honoraria
BEIS,UKRI - AHRC,13/02/2019,Council & Committee Honoraria,New Programme Development,Unspecified,98401410,170.00,Council & Committee Honoraria
BEIS,UKRI - AHRC,13/02/2019,Council & Committee Honoraria,New Programme Development,Unspecified,98401411,170.00,Council & Committee Honoraria
BEIS,UKRI - AHRC,13/02/2019,Council & Committee Honoraria,New Programme Development,Unspecified,98401412,230.00,Council & Committee Honoraria
BEIS,UKRI - AHRC,13/02/2019,Council & Committee Honoraria,New Programme Development,Unspecified,98401413,170.00,Council & Committee Honoraria
BEIS,UKRI - AHRC,13/02/2019,Non-staff travel and subsistance,Creative Arts & Digital Humanities,Corporate Travel Management (North) Ltd,98403078,0.50,Non-staff travel and subsistance
BEIS,UKRI - AHRC,13/02/2019,Non-staff travel and subsistance,Creative Arts & Digital Humanities,Corporate Travel Management (North) Ltd,98403078,0.10,Non-staff travel and subsistance
BEIS,UKRI - AHRC,13/02/2019,Non-staff travel and subsistance,Fund for International Collaboration,Corporate Travel Management (North) Ltd,98403078,0.50,Non-staff travel and subsistance
BEIS,UKRI - AHRC,13/02/2019,Non-staff travel and subsistance,Fund for International Collaboration,Corporate Travel Management (North) Ltd,98403078,75.00,Non-staff travel and subsistance
BEIS,UKRI - AHRC,13/02/2019,Non-staff travel and subsistance,Fund for International Collaboration,Corporate Travel Management (North) Ltd,98403078,0.50,Non-staff travel and subsistance
BEIS,UKRI - AHRC,13/02/2019,Non-staff travel and subsistance,Fund for International Collaboration,Corporate Travel Management (North) Ltd,98403078,75.00,Non-staff travel and subsistance
BEIS,UKRI - AHRC,13/02/2019,Non-staff travel and subsistance,Fund for International Collaboration,Corporate Travel Management (North) Ltd,98403078,0.20,Non-staff travel and subsistance
BEIS,UKRI - AHRC,13/02/2019,Non-staff travel and subsistance,International,Corporate Travel Management (North) Ltd,98403078,248.92,Non-staff travel and subsistance
BEIS,UKRI - AHRC,13/02/2019,Non-staff travel and subsistance,International,Corporate Travel Management (North) Ltd,98403078,132.60,Non-staff travel and subsistance
BEIS,UKRI - AHRC,13/02/2019,T&S Overseas - Accommodation,International,Corporate Travel Management (North) Ltd,98403078,0.50,T&S Overseas - Accommodation
BEIS,UKRI - AHRC,13/02/2019,T&S Overseas - Accommodation,International,Corporate Travel Management (North) Ltd,98403078,0.10,T&S Overseas - Accommodation
BEIS,UKRI - AHRC,13/02/2019,T&S Overseas - Accommodation,JPI Cultural Heritage Project,Corporate Travel Management (North) Ltd,98403078,559.98,T&S Overseas - Accommodation
BEIS,UKRI - AHRC,13/02/2019,T&S Overseas - Accommodation,"Languages,Literature & International Engagement",Corporate Travel Management (North) Ltd,98403078,257.28,T&S Overseas - Accommodation
BEIS,UKRI - AHRC,13/02/2019,T&S Overseas - Accommodation,SMT,Corporate Travel Management (North) Ltd,98403078,0.50,T&S Overseas - Accommodation
BEIS,UKRI - AHRC,13/02/2019,T&S Overseas - Accommodation,SMT,Corporate Travel Management (North) Ltd,98403078,0.50,T&S Overseas - Accommodation
BEIS,UKRI - AHRC,13/02/2019,T&S Overseas - Accommodation,SMT,Corporate Travel Management (North) Ltd,98403078,0.20,T&S Overseas - Accommodation
BEIS,UKRI - AHRC,13/02/2019,T&S Overseas - Flights,Creative Arts & Digital Humanities,Corporate Travel Management (North) Ltd,98403078,206.60,T&S Overseas - Flights
BEIS,UKRI - AHRC,13/02/2019,T&S Overseas - Flights,GCRF - Programme Delivery,Corporate Travel Management (North) Ltd,98403078,547.12,T&S Overseas - Flights
BEIS,UKRI - AHRC,13/02/2019,T&S Overseas - Flights,GCRF - Programme Delivery,Corporate Travel Management (North) Ltd,98403078,"1,179.12",T&S Overseas - Flights
BEIS,UKRI - AHRC,13/02/2019,T&S Overseas - Flights,HR,Corporate Travel Management (North) Ltd,98403078,2.16,T&S Overseas - Flights
BEIS,UKRI - AHRC,13/02/2019,T&S Overseas - Flights,HR,Corporate Travel Management (North) Ltd,98403078,"3,361.32",T&S Overseas - Flights
BEIS,UKRI - AHRC,13/02/2019,T&S Overseas - Flights,HR,Corporate Travel Management (North) Ltd,98403078,2.16,T&S Overseas - Flights
BEIS,UKRI - AHRC,13/02/2019,T&S Overseas - Flights,HR,Corporate Travel Management (North) Ltd,98403078,"3,361.32",T&S Overseas - Flights
BEIS,UKRI - AHRC,13/02/2019,T&S Overseas - Flights,International,Corporate Travel Management (North) Ltd,98403078,"1,882.62",T&S Overseas - Flights
BEIS,UKRI - AHRC,13/02/2019,T&S Overseas - Flights,International,Corporate Travel Management (North) Ltd,98403078,184.00,T&S Overseas - Flights
BEIS,UKRI - AHRC,13/02/2019,T&S Overseas - Flights,Newton Programme Delivery,Corporate Travel Management (North) Ltd,98403078,622.60,T&S Overseas - Flights
BEIS,UKRI - AHRC,13/02/2019,T&S Overseas - Flights,Newton Programme Delivery,Corporate Travel Management (North) Ltd,98403078,"2,347.82",T&S Overseas - Flights
BEIS,UKRI - AHRC,13/02/2019,T&S Overseas - Flights,SMT,Corporate Travel Management (North) Ltd,98403078,105.44,T&S Overseas - Flights
BEIS,UKRI - AHRC,13/02/2019,T&S Overseas - Flights,SMT,Corporate Travel Management (North) Ltd,98403078,168.90,T&S Overseas - Flights
BEIS,UKRI - AHRC,13/02/2019,T&S Overseas - Flights,SMT,Corporate Travel Management (North) Ltd,98403078,"2,000.60",T&S Overseas - Flights
BEIS,UKRI - AHRC,13/02/2019,T&S Overseas - Other Charges,SMT,Corporate Travel Management (North) Ltd,98403078,153.00,T&S Overseas - Other Charges
BEIS,UKRI - AHRC,13/02/2019,T&S UK - Accommodation,"AHRC - Strategic Planning, Evidence & Impact",Corporate Travel Management (North) Ltd,98403078,0.50,T&S UK - Accommodation
BEIS,UKRI - AHRC,13/02/2019,T&S UK - Accommodation,"AHRC - Strategic Planning, Evidence & Impact",Corporate Travel Management (North) Ltd,98403078,110.70,T&S UK - Accommodation
BEIS,UKRI - AHRC,13/02/2019,T&S UK - Accommodation,"AHRC - Strategic Planning, Evidence & Impact",Corporate Travel Management (North) Ltd,98403078,0.10,T&S UK - Accommodation
BEIS,UKRI - AHRC,13/02/2019,T&S UK - Accommodation,Business Process & Analysis,Corporate Travel Management (North) Ltd,98403078,0.50,T&S UK - Accommodation
BEIS,UKRI - AHRC,13/02/2019,T&S UK - Accommodation,Business Process & Analysis,Corporate Travel Management (North) Ltd,98403078,92.00,T&S UK - Accommodation
BEIS,UKRI - AHRC,13/02/2019,T&S UK - Accommodation,Business Process & Analysis,Corporate Travel Management (North) Ltd,98403078,0.50,T&S UK - Accommodation
BEIS,UKRI - AHRC,13/02/2019,T&S UK - Accommodation,Business Process & Analysis,Corporate Travel Management (North) Ltd,98403078,75.00,T&S UK - Accommodation
BEIS,UKRI - AHRC,13/02/2019,T&S UK - Accommodation,Business Process & Analysis,Corporate Travel Management (North) Ltd,98403078,0.50,T&S UK - Accommodation
BEIS,UKRI - AHRC,13/02/2019,T&S UK - Accommodation,Business Process & Analysis,Corporate Travel Management (North) Ltd,98403078,0.50,T&S UK - Accommodation
BEIS,UKRI - AHRC,13/02/2019,T&S UK - Accommodation,Business Process & Analysis,Corporate Travel Management (North) Ltd,98403078,75.00,T&S UK - Accommodation
BEIS,UKRI - AHRC,13/02/2019,T&S UK - Accommodation,Business Process & Analysis,Corporate Travel Management (North) Ltd,98403078,0.50,T&S UK - Accommodation
BEIS,UKRI - AHRC,13/02/2019,T&S UK - Accommodation,Business Process & Analysis,Corporate Travel Management (North) Ltd,98403078,66.75,T&S UK - Accommodation
BEIS,UKRI - AHRC,13/02/2019,T&S UK - Accommodation,Business Process & Analysis,Corporate Travel Management (North) Ltd,98403078,0.50,T&S UK - Accommodation
BEIS,UKRI - AHRC,13/02/2019,T&S UK - Accommodation,Communications,Corporate Travel Management (North) Ltd,98403078,0.50,T&S UK - Accommodation
BEIS,UKRI - AHRC,13/02/2019,T&S UK - Accommodation,Communications,Corporate Travel Management (North) Ltd,98403078,81.70,T&S UK - Accommodation
BEIS,UKRI - AHRC,13/02/2019,T&S UK - Accommodation,Communications,Corporate Travel Management (North) Ltd,98403078,0.50,T&S UK - Accommodation
BEIS,UKRI - AHRC,13/02/2019,T&S UK - Accommodation,Communications,Corporate Travel Management (North) Ltd,98403078,81.70,T&S UK - Accommodation
BEIS,UKRI - AHRC,13/02/2019,T&S UK - Accommodation,Communications,Corporate Travel Management (North) Ltd,98403078,0.50,T&S UK - Accommodation
BEIS,UKRI - AHRC,13/02/2019,T&S UK - Accommodation,Communications,Corporate Travel Management (North) Ltd,98403078,154.00,T&S UK - Accommodation
BEIS,UKRI - AHRC,13/02/2019,T&S UK - Accommodation,Communications,Corporate Travel Management (North) Ltd,98403078,0.50,T&S UK - Accommodation
BEIS,UKRI - AHRC,13/02/2019,T&S UK - Accommodation,Communications,Corporate Travel Management (North) Ltd,98403078,110.70,T&S UK - Accommodation
BEIS,UKRI - AHRC,13/02/2019,T&S UK - Accommodation,Communications,Corporate Travel Management (North) Ltd,98403078,0.40,T&S UK - Accommodation
BEIS,UKRI - AHRC,13/02/2019,T&S UK - Accommodation,Creative Arts & Digital Humanities,Corporate Travel Management (North) Ltd,98403078,415.01,T&S UK - Accommodation
BEIS,UKRI - AHRC,13/02/2019,T&S UK - Accommodation,Creative Arts & Digital Humanities,Corporate Travel Management (North) Ltd,98403078,0.50,T&S UK - Accommodation
BEIS,UKRI - AHRC,13/02/2019,T&S UK - Accommodation,Creative Arts & Digital Humanities,Corporate Travel Management (North) Ltd,98403078,149.00,T&S UK - Accommodation
BEIS,UKRI - AHRC,13/02/2019,T&S UK - Accommodation,Creative Arts & Digital Humanities,Corporate Travel Management (North) Ltd,98403078,0.50,T&S UK - Accommodation
BEIS,UKRI - AHRC,13/02/2019,T&S UK - Accommodation,Creative Arts & Digital Humanities,Corporate Travel Management (North) Ltd,98403078,139.00,T&S UK - Accommodation
BEIS,UKRI - AHRC,13/02/2019,T&S UK - Accommodation,Creative Arts & Digital Humanities,Corporate Travel Management (North) Ltd,98403078,0.20,T&S UK - Accommodation
BEIS,UKRI - AHRC,13/02/2019,T&S UK - Accommodation,GCRF - Programme Delivery,Corporate Travel Management (North) Ltd,98403078,0.50,T&S UK - Accommodation
BEIS,UKRI - AHRC,13/02/2019,T&S UK - Accommodation,GCRF - Programme Delivery,Corporate Travel Management (North) Ltd,98403078,70.00,T&S UK - Accommodation
BEIS,UKRI - AHRC,13/02/2019,T&S UK - Accommodation,GCRF - Programme Delivery,Corporate Travel Management (North) Ltd,98403078,0.50,T&S UK - Accommodation
BEIS,UKRI - AHRC,13/02/2019,T&S UK - Accommodation,GCRF - Programme Delivery,Corporate Travel Management (North) Ltd,98403078,74.00,T&S UK - Accommodation
BEIS,UKRI - AHRC,13/02/2019,T&S UK - Accommodation,GCRF - Programme Delivery,Corporate Travel Management (North) Ltd,98403078,0.20,T&S UK - Accommodation
BEIS,UKRI - AHRC,13/02/2019,T&S UK - Accommodation,HERA JRP Project,Corporate Travel Management (North) Ltd,98403078,125.14,T&S UK - Accommodation
BEIS,UKRI - AHRC,13/02/2019,T&S UK - Accommodation,HR,Corporate Travel Management (North) Ltd,98403078,0.50,T&S UK - Accommodation
BEIS,UKRI - AHRC,13/02/2019,T&S UK - Accommodation,HR,Corporate Travel Management (North) Ltd,98403078,41.50,T&S UK - Accommodation
BEIS,UKRI - AHRC,13/02/2019,T&S UK - Accommodation,HR,Corporate Travel Management (North) Ltd,98403078,0.50,T&S UK - Accommodation
BEIS,UKRI - AHRC,13/02/2019,T&S UK - Accommodation,HR,Corporate Travel Management (North) Ltd,98403078,0.20,T&S UK - Accommodation
BEIS,UKRI - AHRC,13/02/2019,T&S UK - Accommodation,"Histories,Culture & Heritage",Corporate Travel Management (North) Ltd,98403078,0.50,T&S UK - Accommodation
BEIS,UKRI - AHRC,13/02/2019,T&S UK - Accommodation,"Histories,Culture & Heritage",Corporate Travel Management (North) Ltd,98403078,110.70,T&S UK - Accommodation
BEIS,UKRI - AHRC,13/02/2019,T&S UK - Accommodation,"Histories,Culture & Heritage",Corporate Travel Management (North) Ltd,98403078,0.10,T&S UK - Accommodation
BEIS,UKRI - AHRC,13/02/2019,T&S UK - Accommodation,Industrial Strategy Challenge Fund (ISCF) - Creative Clusters,Corporate Travel Management (North) Ltd,98403078,0.50,T&S UK - Accommodation
BEIS,UKRI - AHRC,13/02/2019,T&S UK - Accommodation,Industrial Strategy Challenge Fund (ISCF) - Creative Clusters,Corporate Travel Management (North) Ltd,98403078,93.00,T&S UK - Accommodation
BEIS,UKRI - AHRC,13/02/2019,T&S UK - Accommodation,Industrial Strategy Challenge Fund (ISCF) - Creative Clusters,Corporate Travel Management (North) Ltd,98403078,0.10,T&S UK - Accommodation
BEIS,UKRI - AHRC,13/02/2019,T&S UK - Accommodation,International,Corporate Travel Management (North) Ltd,98403078,0.50,T&S UK - Accommodation
BEIS,UKRI - AHRC,13/02/2019,T&S UK - Accommodation,International,Corporate Travel Management (North) Ltd,98403078,56.50,T&S UK - Accommodation
BEIS,UKRI - AHRC,13/02/2019,T&S UK - Accommodation,International,Corporate Travel Management (North) Ltd,98403078,0.10,T&S UK - Accommodation
BEIS,UKRI - AHRC,13/02/2019,T&S UK - Accommodation,Newton Programme Delivery,Corporate Travel Management (North) Ltd,98403078,0.50,T&S UK - Accommodation
BEIS,UKRI - AHRC,13/02/2019,T&S UK - Accommodation,Newton Programme Delivery,Corporate Travel Management (North) Ltd,98403078,109.00,T&S UK - Accommodation
BEIS,UKRI - AHRC,13/02/2019,T&S UK - Accommodation,Newton Programme Delivery,Corporate Travel Management (North) Ltd,98403078,0.10,T&S UK - Accommodation
BEIS,UKRI - AHRC,13/02/2019,T&S UK - Accommodation,PSU Project Office,Corporate Travel Management (North) Ltd,98403078,0.50,T&S UK - Accommodation
BEIS,UKRI - AHRC,13/02/2019,T&S UK - Accommodation,PSU Project Office,Corporate Travel Management (North) Ltd,98403078,77.95,T&S UK - Accommodation
BEIS,UKRI - AHRC,13/02/2019,T&S UK - Accommodation,PSU Project Office,Corporate Travel Management (North) Ltd,98403078,0.50,T&S UK - Accommodation
BEIS,UKRI - AHRC,13/02/2019,T&S UK - Accommodation,PSU Project Office,Corporate Travel Management (North) Ltd,98403078,215.00,T&S UK - Accommodation
BEIS,UKRI - AHRC,13/02/2019,T&S UK - Accommodation,PSU Project Office,Corporate Travel Management (North) Ltd,98403078,0.50,T&S UK - Accommodation
BEIS,UKRI - AHRC,13/02/2019,T&S UK - Accommodation,PSU Project Office,Corporate Travel Management (North) Ltd,98403078,60.00,T&S UK - Accommodation
BEIS,UKRI - AHRC,13/02/2019,T&S UK - Accommodation,PSU Project Office,Corporate Travel Management (North) Ltd,98403078,0.30,T&S UK - Accommodation
BEIS,UKRI - AHRC,13/02/2019,T&S UK - Accommodation,SMT,Corporate Travel Management (North) Ltd,98403078,0.50,T&S UK - Accommodation
BEIS,UKRI - AHRC,13/02/2019,T&S UK - Accommodation,SMT,Corporate Travel Management (North) Ltd,98403078,0.50,T&S UK - Accommodation
BEIS,UKRI - AHRC,13/02/2019,T&S UK - Accommodation,SMT,Corporate Travel Management (North) Ltd,98403078,0.50,T&S UK - Accommodation
BEIS,UKRI - AHRC,13/02/2019,T&S UK - Accommodation,SMT,Corporate Travel Management (North) Ltd,98403078,0.50,T&S UK - Accommodation
BEIS,UKRI - AHRC,13/02/2019,T&S UK - Accommodation,SMT,Corporate Travel Management (North) Ltd,98403078,166.50,T&S UK - Accommodation
BEIS,UKRI - AHRC,13/02/2019,T&S UK - Accommodation,SMT,Corporate Travel Management (North) Ltd,98403078,0.50,T&S UK - Accommodation
BEIS,UKRI - AHRC,13/02/2019,T&S UK - Accommodation,SMT,Corporate Travel Management (North) Ltd,98403078,65.00,T&S UK - Accommodation
BEIS,UKRI - AHRC,13/02/2019,T&S UK - Accommodation,SMT,Corporate Travel Management (North) Ltd,98403078,0.50,T&S UK - Accommodation
BEIS,UKRI - AHRC,13/02/2019,T&S UK - Accommodation,SMT,Corporate Travel Management (North) Ltd,98403078,75.00,T&S UK - Accommodation
BEIS,UKRI - AHRC,13/02/2019,T&S UK - Accommodation,SMT,Corporate Travel Management (North) Ltd,98403078,0.50,T&S UK - Accommodation
BEIS,UKRI - AHRC,13/02/2019,T&S UK - Accommodation,SMT,Corporate Travel Management (North) Ltd,98403078,65.00,T&S UK - Accommodation
BEIS,UKRI - AHRC,13/02/2019,T&S UK - Accommodation,SMT,Corporate Travel Management (North) Ltd,98403078,0.50,T&S UK - Accommodation
BEIS,UKRI - AHRC,13/02/2019,T&S UK - Accommodation,SMT,Corporate Travel Management (North) Ltd,98403078,1.44,T&S UK - Accommodation
BEIS,UKRI - AHRC,13/02/2019,T&S UK - Accommodation,SMT,Corporate Travel Management (North) Ltd,98403078,75.00,T&S UK - Accommodation
BEIS,UKRI - AHRC,13/02/2019,T&S UK - Accommodation,SMT,Corporate Travel Management (North) Ltd,98403078,1.00,T&S UK - Accommodation
BEIS,UKRI - AHRC,13/02/2019,T&S UK - Accommodation,SMT,Corporate Travel Management (North) Ltd,98403078,158.00,T&S UK - Accommodation
BEIS,UKRI - AHRC,13/02/2019,T&S UK - Accommodation,SMT,Corporate Travel Management (North) Ltd,98403078,0.50,T&S UK - Accommodation
BEIS,UKRI - AHRC,13/02/2019,T&S UK - Accommodation,SMT,Corporate Travel Management (North) Ltd,98403078,162.50,T&S UK - Accommodation
BEIS,UKRI - AHRC,13/02/2019,T&S UK - Accommodation,SMT,Corporate Travel Management (North) Ltd,98403078,0.50,T&S UK - Accommodation
BEIS,UKRI - AHRC,13/02/2019,T&S UK - Accommodation,SMT,Corporate Travel Management (North) Ltd,98403078,155.00,T&S UK - Accommodation
BEIS,UKRI - AHRC,13/02/2019,T&S UK - Accommodation,SMT,Corporate Travel Management (North) Ltd,98403078,0.50,T&S UK - Accommodation
BEIS,UKRI - AHRC,13/02/2019,T&S UK - Accommodation,SMT,Corporate Travel Management (North) Ltd,98403078,70.00,T&S UK - Accommodation
BEIS,UKRI - AHRC,13/02/2019,T&S UK - Accommodation,SMT,Corporate Travel Management (North) Ltd,98403078,0.50,T&S UK - Accommodation
BEIS,UKRI - AHRC,13/02/2019,T&S UK - Accommodation,SMT,Corporate Travel Management (North) Ltd,98403078,154.00,T&S UK - Accommodation
BEIS,UKRI - AHRC,13/02/2019,T&S UK - Accommodation,SMT,Corporate Travel Management (North) Ltd,98403078,1.69,T&S UK - Accommodation
BEIS,UKRI - AHRC,13/02/2019,T&S UK - Accommodation,SMT Strategic Leads,Corporate Travel Management (North) Ltd,98403078,0.50,T&S UK - Accommodation
BEIS,UKRI - AHRC,13/02/2019,T&S UK - Accommodation,SMT Strategic Leads,Corporate Travel Management (North) Ltd,98403078,110.70,T&S UK - Accommodation
BEIS,UKRI - AHRC,13/02/2019,T&S UK - Accommodation,SMT Strategic Leads,Corporate Travel Management (North) Ltd,98403078,0.10,T&S UK - Accommodation
BEIS,UKRI - AHRC,13/02/2019,T&S UK - Accommodation,Secretariat,Corporate Travel Management (North) Ltd,98403078,0.50,T&S UK - Accommodation
BEIS,UKRI - AHRC,13/02/2019,T&S UK - Accommodation,Secretariat,Corporate Travel Management (North) Ltd,98403078,75.00,T&S UK - Accommodation
BEIS,UKRI - AHRC,13/02/2019,T&S UK - Accommodation,Secretariat,Corporate Travel Management (North) Ltd,98403078,0.10,T&S UK - Accommodation
BEIS,UKRI - AHRC,13/02/2019,T&S UK - Accommodation,Skills,Corporate Travel Management (North) Ltd,98403078,0.50,T&S UK - Accommodation
BEIS,UKRI - AHRC,13/02/2019,T&S UK - Accommodation,Skills,Corporate Travel Management (North) Ltd,98403078,1.44,T&S UK - Accommodation
BEIS,UKRI - AHRC,13/02/2019,T&S UK - Accommodation,Skills,Corporate Travel Management (North) Ltd,98403078,"6,460.00",T&S UK - Accommodation
BEIS,UKRI - AHRC,13/02/2019,T&S UK - Accommodation,Skills,Corporate Travel Management (North) Ltd,98403078,0.39,T&S UK - Accommodation
BEIS,UKRI - AHRC,13/02/2019,T&S UK - Flights,Creative Arts & Digital Humanities,Corporate Travel Management (North) Ltd,98403078,129.32,T&S UK - Flights
BEIS,UKRI - AHRC,13/02/2019,T&S UK - Flights,Creative Arts & Digital Humanities,Corporate Travel Management (North) Ltd,98403078,101.06,T&S UK - Flights
BEIS,UKRI - AHRC,13/02/2019,T&S UK - Flights,Creative Arts & Digital Humanities,Corporate Travel Management (North) Ltd,98403078,75.34,T&S UK - Flights
BEIS,UKRI - AHRC,13/02/2019,T&S UK - Flights,Creative Arts & Digital Humanities,Corporate Travel Management (North) Ltd,98403078,164.21,T&S UK - Flights
BEIS,UKRI - AHRC,13/02/2019,T&S UK - Flights,Industrial Strategy Challenge Fund (ISCF) - Creative Clusters,Corporate Travel Management (North) Ltd,98403078,96.70,T&S UK - Flights
BEIS,UKRI - AHRC,13/02/2019,T&S UK - Flights,Industrial Strategy Challenge Fund (ISCF) - Creative Clusters,Corporate Travel Management (North) Ltd,98403078,73.47,T&S UK - Flights
BEIS,UKRI - AHRC,13/02/2019,T&S UK - Flights,Industrial Strategy Challenge Fund (ISCF) - Creative Clusters,Corporate Travel Management (North) Ltd,98403078,72.46,T&S UK - Flights
BEIS,UKRI - AHRC,13/02/2019,T&S UK - Flights,Newton Programme Delivery,Corporate Travel Management (North) Ltd,98403078,262.82,T&S UK - Flights
BEIS,UKRI - AHRC,13/02/2019,T&S UK - Flights,SMT,Corporate Travel Management (North) Ltd,98403078,192.21,T&S UK - Flights
BEIS,UKRI - AHRC,13/02/2019,T&S UK - Flights,Secretariat,Corporate Travel Management (North) Ltd,98403078,91.51,T&S UK - Flights
BEIS,UKRI - AHRC,13/02/2019,T&S UK - Public Transport,"AHRC - Strategic Planning, Evidence & Impact",Corporate Travel Management (North) Ltd,98403078,97.80,T&S UK - Public Transport
BEIS,UKRI - AHRC,13/02/2019,T&S UK - Public Transport,"AHRC - Strategic Planning, Evidence & Impact",Corporate Travel Management (North) Ltd,98403078,172.20,T&S UK - Public Transport
BEIS,UKRI - AHRC,13/02/2019,T&S UK - Public Transport,"AHRC - Strategic Planning, Evidence & Impact",Corporate Travel Management (North) Ltd,98403078,87.85,T&S UK - Public Transport
BEIS,UKRI - AHRC,13/02/2019,T&S UK - Public Transport,"AHRC - Strategic Planning, Evidence & Impact",Corporate Travel Management (North) Ltd,98403078,28.80,T&S UK - Public Transport
BEIS,UKRI - AHRC,13/02/2019,T&S UK - Public Transport,"AHRC - Strategic Planning, Evidence & Impact",Corporate Travel Management (North) Ltd,98403078,1.00,T&S UK - Public Transport
BEIS,UKRI - AHRC,13/02/2019,T&S UK - Public Transport,"AHRC - Strategic Planning, Evidence & Impact",Corporate Travel Management (North) Ltd,98403078,162.00,T&S UK - Public Transport
BEIS,UKRI - AHRC,13/02/2019,T&S UK - Public Transport,Business Process & Analysis,Corporate Travel Management (North) Ltd,98403078,5.00,T&S UK - Public Transport
BEIS,UKRI - AHRC,13/02/2019,T&S UK - Public Transport,Business Process & Analysis,Corporate Travel Management (North) Ltd,98403078,(114.80),T&S UK - Public Transport
BEIS,UKRI - AHRC,13/02/2019,T&S UK - Public Transport,Business Process & Analysis,Corporate Travel Management (North) Ltd,98403078,15.00,T&S UK - Public Transport
BEIS,UKRI - AHRC,13/02/2019,T&S UK - Public Transport,Business Process & Analysis,Corporate Travel Management (North) Ltd,98403078,(169.20),T&S UK - Public Transport
BEIS,UKRI - AHRC,13/02/2019,T&S UK - Public Transport,Business Process & Analysis,Corporate Travel Management (North) Ltd,98403078,5.00,T&S UK - Public Transport
BEIS,UKRI - AHRC,13/02/2019,T&S UK - Public Transport,Business Process & Analysis,Corporate Travel Management (North) Ltd,98403078,(84.60),T&S UK - Public Transport
BEIS,UKRI - AHRC,13/02/2019,T&S UK - Public Transport,Business Process & Analysis,Corporate Travel Management (North) Ltd,98403078,5.00,T&S UK - Public Transport
BEIS,UKRI - AHRC,13/02/2019,T&S UK - Public Transport,Business Process & Analysis,Corporate Travel Management (North) Ltd,98403078,(84.60),T&S UK - Public Transport
BEIS,UKRI - AHRC,13/02/2019,T&S UK - Public Transport,Business Process & Analysis,Corporate Travel Management (North) Ltd,98403078,114.40,T&S UK - Public Transport
BEIS,UKRI - AHRC,13/02/2019,T&S UK - Public Transport,Business Process & Analysis,Corporate Travel Management (North) Ltd,98403078,114.40,T&S UK - Public Transport
BEIS,UKRI - AHRC,13/02/2019,T&S UK - Public Transport,Business Process & Analysis,Corporate Travel Management (North) Ltd,98403078,1.00,T&S UK - Public Transport
BEIS,UKRI - AHRC,13/02/2019,T&S UK - Public Transport,Business Process & Analysis,Corporate Travel Management (North) Ltd,98403078,95.80,T&S UK - Public Transport
BEIS,UKRI - AHRC,13/02/2019,T&S UK - Public Transport,Business Process & Analysis,Corporate Travel Management (North) Ltd,98403078,68.20,T&S UK - Public Transport
BEIS,UKRI - AHRC,13/02/2019,T&S UK - Public Transport,Business Process & Analysis,Corporate Travel Management (North) Ltd,98403078,61.90,T&S UK - Public Transport
BEIS,UKRI - AHRC,13/02/2019,T&S UK - Public Transport,Business Process & Analysis,Corporate Travel Management (North) Ltd,98403078,61.90,T&S UK - Public Transport
BEIS,UKRI - AHRC,13/02/2019,T&S UK - Public Transport,Business Process & Analysis,Corporate Travel Management (North) Ltd,98403078,91.50,T&S UK - Public Transport
BEIS,UKRI - AHRC,13/02/2019,T&S UK - Public Transport,Business Process & Analysis,Corporate Travel Management (North) Ltd,98403078,22.05,T&S UK - Public Transport
BEIS,UKRI - AHRC,13/02/2019,T&S UK - Public Transport,Business Process & Analysis,Corporate Travel Management (North) Ltd,98403078,109.50,T&S UK - Public Transport
BEIS,UKRI - AHRC,13/02/2019,T&S UK - Public Transport,Business Process & Analysis,Corporate Travel Management (North) Ltd,98403078,109.50,T&S UK - Public Transport
BEIS,UKRI - AHRC,13/02/2019,T&S UK - Public Transport,Communications,Corporate Travel Management (North) Ltd,98403078,(230.50),T&S UK - Public Transport
BEIS,UKRI - AHRC,13/02/2019,T&S UK - Public Transport,Communications,Corporate Travel Management (North) Ltd,98403078,144.00,T&S UK - Public Transport
BEIS,UKRI - AHRC,13/02/2019,T&S UK - Public Transport,Communications,Corporate Travel Management (North) Ltd,98403078,432.20,T&S UK - Public Transport
BEIS,UKRI - AHRC,13/02/2019,T&S UK - Public Transport,Communications,Corporate Travel Management (North) Ltd,98403078,209.00,T&S UK - Public Transport
BEIS,UKRI - AHRC,13/02/2019,T&S UK - Public Transport,Communications,Corporate Travel Management (North) Ltd,98403078,209.00,T&S UK - Public Transport
BEIS,UKRI - AHRC,13/02/2019,T&S UK - Public Transport,Communications,Corporate Travel Management (North) Ltd,98403078,13.10,T&S UK - Public Transport
BEIS,UKRI - AHRC,13/02/2019,T&S UK - Public Transport,Communications,Corporate Travel Management (North) Ltd,98403078,1.00,T&S UK - Public Transport
BEIS,UKRI - AHRC,13/02/2019,T&S UK - Public Transport,Communications,Corporate Travel Management (North) Ltd,98403078,87.00,T&S UK - Public Transport
BEIS,UKRI - AHRC,13/02/2019,T&S UK - Public Transport,Communications,Corporate Travel Management (North) Ltd,98403078,209.00,T&S UK - Public Transport
BEIS,UKRI - AHRC,13/02/2019,T&S UK - Public Transport,Communications,Corporate Travel Management (North) Ltd,98403078,(65.60),T&S UK - Public Transport
BEIS,UKRI - AHRC,13/02/2019,T&S UK - Public Transport,Communications,Corporate Travel Management (North) Ltd,98403078,(41.80),T&S UK - Public Transport
BEIS,UKRI - AHRC,13/02/2019,T&S UK - Public Transport,Communications,Corporate Travel Management (North) Ltd,98403078,144.70,T&S UK - Public Transport
BEIS,UKRI - AHRC,13/02/2019,T&S UK - Public Transport,Communications,Corporate Travel Management (North) Ltd,98403078,209.70,T&S UK - Public Transport
BEIS,UKRI - AHRC,13/02/2019,T&S UK - Public Transport,Communications,Corporate Travel Management (North) Ltd,98403078,144.70,T&S UK - Public Transport
BEIS,UKRI - AHRC,13/02/2019,T&S UK - Public Transport,Creative Arts & Digital Humanities,Corporate Travel Management (North) Ltd,98403078,86.40,T&S UK - Public Transport
BEIS,UKRI - AHRC,13/02/2019,T&S UK - Public Transport,Creative Arts & Digital Humanities,Corporate Travel Management (North) Ltd,98403078,66.40,T&S UK - Public Transport
BEIS,UKRI - AHRC,13/02/2019,T&S UK - Public Transport,Creative Arts & Digital Humanities,Corporate Travel Management (North) Ltd,98403078,(260.80),T&S UK - Public Transport
BEIS,UKRI - AHRC,13/02/2019,T&S UK - Public Transport,Creative Arts & Digital Humanities,Corporate Travel Management (North) Ltd,98403078,171.00,T&S UK - Public Transport
BEIS,UKRI - AHRC,13/02/2019,T&S UK - Public Transport,Creative Arts & Digital Humanities,Corporate Travel Management (North) Ltd,98403078,36.00,T&S UK - Public Transport
BEIS,UKRI - AHRC,13/02/2019,T&S UK - Public Transport,Creative Arts & Digital Humanities,Corporate Travel Management (North) Ltd,98403078,5.00,T&S UK - Public Transport
BEIS,UKRI - AHRC,13/02/2019,T&S UK - Public Transport,Creative Arts & Digital Humanities,Corporate Travel Management (North) Ltd,98403078,(161.30),T&S UK - Public Transport
BEIS,UKRI - AHRC,13/02/2019,T&S UK - Public Transport,Creative Arts & Digital Humanities,Corporate Travel Management (North) Ltd,98403078,50.10,T&S UK - Public Transport
BEIS,UKRI - AHRC,13/02/2019,T&S UK - Public Transport,Creative Arts & Digital Humanities,Corporate Travel Management (North) Ltd,98403078,28.80,T&S UK - Public Transport
BEIS,UKRI - AHRC,13/02/2019,T&S UK - Public Transport,Creative Arts & Digital Humanities,Corporate Travel Management (North) Ltd,98403078,117.50,T&S UK - Public Transport
BEIS,UKRI - AHRC,13/02/2019,T&S UK - Public Transport,Creative Arts & Digital Humanities,Corporate Travel Management (North) Ltd,98403078,69.00,T&S UK - Public Transport
BEIS,UKRI - AHRC,13/02/2019,T&S UK - Public Transport,Creative Arts & Digital Humanities,Corporate Travel Management (North) Ltd,98403078,1.00,T&S UK - Public Transport
BEIS,UKRI - AHRC,13/02/2019,T&S UK - Public Transport,Creative Arts & Digital Humanities,Corporate Travel Management (North) Ltd,98403078,171.00,T&S UK - Public Transport
BEIS,UKRI - AHRC,13/02/2019,T&S UK - Public Transport,Creative Arts & Digital Humanities,Corporate Travel Management (North) Ltd,98403078,109.00,T&S UK - Public Transport
BEIS,UKRI - AHRC,13/02/2019,T&S UK - Public Transport,Creative Arts & Digital Humanities,Corporate Travel Management (North) Ltd,98403078,28.80,T&S UK - Public Transport
BEIS,UKRI - AHRC,13/02/2019,T&S UK - Public Transport,Creative Arts & Digital Humanities,Corporate Travel Management (North) Ltd,98403078,8.10,T&S UK - Public Transport
BEIS,UKRI - AHRC,13/02/2019,T&S UK - Public Transport,Creative Arts & Digital Humanities,Corporate Travel Management (North) Ltd,98403078,85.50,T&S UK - Public Transport
BEIS,UKRI - AHRC,13/02/2019,T&S UK - Public Transport,Creative Arts & Digital Humanities,Corporate Travel Management (North) Ltd,98403078,49.85,T&S UK - Public Transport
BEIS,UKRI - AHRC,13/02/2019,T&S UK - Public Transport,Creative Arts & Digital Humanities,Corporate Travel Management (North) Ltd,98403078,105.50,T&S UK - Public Transport
BEIS,UKRI - AHRC,13/02/2019,T&S UK - Public Transport,Creative Arts & Digital Humanities,Corporate Travel Management (North) Ltd,98403078,122.20,T&S UK - Public Transport
BEIS,UKRI - AHRC,13/02/2019,T&S UK - Public Transport,Creative Arts & Digital Humanities,Corporate Travel Management (North) Ltd,98403078,62.20,T&S UK - Public Transport
BEIS,UKRI - AHRC,13/02/2019,T&S UK - Public Transport,Creative Arts & Digital Humanities,Corporate Travel Management (North) Ltd,98403078,72.60,T&S UK - Public Transport
BEIS,UKRI - AHRC,13/02/2019,T&S UK - Public Transport,Creative Arts & Digital Humanities,Corporate Travel Management (North) Ltd,98403078,303.50,T&S UK - Public Transport
BEIS,UKRI - AHRC,13/02/2019,T&S UK - Public Transport,Creative Arts & Digital Humanities,Corporate Travel Management (North) Ltd,98403078,66.40,T&S UK - Public Transport
BEIS,UKRI - AHRC,13/02/2019,T&S UK - Public Transport,Creative Arts & Digital Humanities,Corporate Travel Management (North) Ltd,98403078,62.20,T&S UK - Public Transport
BEIS,UKRI - AHRC,13/02/2019,T&S UK - Public Transport,Creative Arts & Digital Humanities,Corporate Travel Management (North) Ltd,98403078,72.60,T&S UK - Public Transport
BEIS,UKRI - AHRC,13/02/2019,T&S UK - Public Transport,Creative Arts & Digital Humanities,Corporate Travel Management (North) Ltd,98403078,72.60,T&S UK - Public Transport
BEIS,UKRI - AHRC,13/02/2019,T&S UK - Public Transport,Creative Arts & Digital Humanities,Corporate Travel Management (North) Ltd,98403078,48.40,T&S UK - Public Transport
BEIS,UKRI - AHRC,13/02/2019,T&S UK - Public Transport,Creative Arts & Digital Humanities,Corporate Travel Management (North) Ltd,98403078,1.00,T&S UK - Public Transport
BEIS,UKRI - AHRC,13/02/2019,T&S UK - Public Transport,Creative Arts & Digital Humanities,Corporate Travel Management (North) Ltd,98403078,436.00,T&S UK - Public Transport
BEIS,UKRI - AHRC,13/02/2019,T&S UK - Public Transport,Creative Arts & Digital Humanities,Corporate Travel Management (North) Ltd,98403078,1.00,T&S UK - Public Transport
BEIS,UKRI - AHRC,13/02/2019,T&S UK - Public Transport,Creative Arts & Digital Humanities,Corporate Travel Management (North) Ltd,98403078,147.85,T&S UK - Public Transport
BEIS,UKRI - AHRC,13/02/2019,T&S UK - Public Transport,Creative Arts & Digital Humanities,Corporate Travel Management (North) Ltd,98403078,69.90,T&S UK - Public Transport
BEIS,UKRI - AHRC,13/02/2019,T&S UK - Public Transport,Creative Arts & Digital Humanities,Corporate Travel Management (North) Ltd,98403078,144.00,T&S UK - Public Transport
BEIS,UKRI - AHRC,13/02/2019,T&S UK - Public Transport,Creative Arts & Digital Humanities,Corporate Travel Management (North) Ltd,98403078,1.00,T&S UK - Public Transport
BEIS,UKRI - AHRC,13/02/2019,T&S UK - Public Transport,Creative Arts & Digital Humanities,Corporate Travel Management (North) Ltd,98403078,292.00,T&S UK - Public Transport
BEIS,UKRI - AHRC,13/02/2019,T&S UK - Public Transport,Creative Arts & Digital Humanities,Corporate Travel Management (North) Ltd,98403078,69.90,T&S UK - Public Transport
BEIS,UKRI - AHRC,13/02/2019,T&S UK - Public Transport,Creative Arts & Digital Humanities,Corporate Travel Management (North) Ltd,98403078,137.95,T&S UK - Public Transport
BEIS,UKRI - AHRC,13/02/2019,T&S UK - Public Transport,Creative Arts & Digital Humanities,Corporate Travel Management (North) Ltd,98403078,1.00,T&S UK - Public Transport
BEIS,UKRI - AHRC,13/02/2019,T&S UK - Public Transport,Creative Arts & Digital Humanities,Corporate Travel Management (North) Ltd,98403078,342.00,T&S UK - Public Transport
BEIS,UKRI - AHRC,13/02/2019,T&S UK - Public Transport,Creative Arts & Digital Humanities,Corporate Travel Management (North) Ltd,98403078,66.40,T&S UK - Public Transport
BEIS,UKRI - AHRC,13/02/2019,T&S UK - Public Transport,Creative Arts & Digital Humanities,Corporate Travel Management (North) Ltd,98403078,1.00,T&S UK - Public Transport
BEIS,UKRI - AHRC,13/02/2019,T&S UK - Public Transport,Creative Arts & Digital Humanities,Corporate Travel Management (North) Ltd,98403078,436.00,T&S UK - Public Transport
BEIS,UKRI - AHRC,13/02/2019,T&S UK - Public Transport,Creative Arts & Digital Humanities,Corporate Travel Management (North) Ltd,98403078,218.00,T&S UK - Public Transport
BEIS,UKRI - AHRC,13/02/2019,T&S UK - Public Transport,Creative Arts & Digital Humanities,Corporate Travel Management (North) Ltd,98403078,159.00,T&S UK - Public Transport
BEIS,UKRI - AHRC,13/02/2019,T&S UK - Public Transport,Finance,Corporate Travel Management (North) Ltd,98403078,23.70,T&S UK - Public Transport
BEIS,UKRI - AHRC,13/02/2019,T&S UK - Public Transport,Finance,Corporate Travel Management (North) Ltd,98403078,19.60,T&S UK - Public Transport
BEIS,UKRI - AHRC,13/02/2019,T&S UK - Public Transport,Finance,Corporate Travel Management (North) Ltd,98403078,19.60,T&S UK - Public Transport
BEIS,UKRI - AHRC,13/02/2019,T&S UK - Public Transport,Finance,Corporate Travel Management (North) Ltd,98403078,16.50,T&S UK - Public Transport
BEIS,UKRI - AHRC,13/02/2019,T&S UK - Public Transport,Fund for International Collaboration,Corporate Travel Management (North) Ltd,98403078,50.10,T&S UK - Public Transport
BEIS,UKRI - AHRC,13/02/2019,T&S UK - Public Transport,Fund for International Collaboration,Corporate Travel Management (North) Ltd,98403078,31.80,T&S UK - Public Transport
BEIS,UKRI - AHRC,13/02/2019,T&S UK - Public Transport,Fund for International Collaboration,Corporate Travel Management (North) Ltd,98403078,165.10,T&S UK - Public Transport
BEIS,UKRI - AHRC,13/02/2019,T&S UK - Public Transport,GCRF - Programme Delivery,Corporate Travel Management (North) Ltd,98403078,69.90,T&S UK - Public Transport
BEIS,UKRI - AHRC,13/02/2019,T&S UK - Public Transport,GCRF - Programme Delivery,Corporate Travel Management (North) Ltd,98403078,1.00,T&S UK - Public Transport
BEIS,UKRI - AHRC,13/02/2019,T&S UK - Public Transport,GCRF - Programme Delivery,Corporate Travel Management (North) Ltd,98403078,187.80,T&S UK - Public Transport
BEIS,UKRI - AHRC,13/02/2019,T&S UK - Public Transport,GCRF - Programme Delivery,Corporate Travel Management (North) Ltd,98403078,96.55,T&S UK - Public Transport
BEIS,UKRI - AHRC,13/02/2019,T&S UK - Public Transport,GCRF - Programme Delivery,Corporate Travel Management (North) Ltd,98403078,96.55,T&S UK - Public Transport
BEIS,UKRI - AHRC,13/02/2019,T&S UK - Public Transport,GCRF - Programme Delivery,Corporate Travel Management (North) Ltd,98403078,63.05,T&S UK - Public Transport
BEIS,UKRI - AHRC,13/02/2019,T&S UK - Public Transport,GCRF - Programme Delivery,Corporate Travel Management (North) Ltd,98403078,1.00,T&S UK - Public Transport
BEIS,UKRI - AHRC,13/02/2019,T&S UK - Public Transport,GCRF - Programme Delivery,Corporate Travel Management (North) Ltd,98403078,144.70,T&S UK - Public Transport
BEIS,UKRI - AHRC,13/02/2019,T&S UK - Public Transport,GCRF - Programme Delivery,Corporate Travel Management (North) Ltd,98403078,144.70,T&S UK - Public Transport
BEIS,UKRI - AHRC,13/02/2019,T&S UK - Public Transport,GCRF - Programme Delivery,Corporate Travel Management (North) Ltd,98403078,144.70,T&S UK - Public Transport
BEIS,UKRI - AHRC,13/02/2019,T&S UK - Public Transport,GCRF - Programme Delivery,Corporate Travel Management (North) Ltd,98403078,1.00,T&S UK - Public Transport
BEIS,UKRI - AHRC,13/02/2019,T&S UK - Public Transport,GCRF - Programme Delivery,Corporate Travel Management (North) Ltd,98403078,197.40,T&S UK - Public Transport
BEIS,UKRI - AHRC,13/02/2019,T&S UK - Public Transport,GCRF - Programme Delivery,Corporate Travel Management (North) Ltd,98403078,1.00,T&S UK - Public Transport
BEIS,UKRI - AHRC,13/02/2019,T&S UK - Public Transport,GCRF - Programme Delivery,Corporate Travel Management (North) Ltd,98403078,342.00,T&S UK - Public Transport
BEIS,UKRI - AHRC,13/02/2019,T&S UK - Public Transport,GCRF - Programme Delivery,Corporate Travel Management (North) Ltd,98403078,5.00,T&S UK - Public Transport
BEIS,UKRI - AHRC,13/02/2019,T&S UK - Public Transport,GCRF - Programme Delivery,Corporate Travel Management (North) Ltd,98403078,(32.30),T&S UK - Public Transport
BEIS,UKRI - AHRC,13/02/2019,T&S UK - Public Transport,GCRF - Programme Delivery,Corporate Travel Management (North) Ltd,98403078,(64.80),T&S UK - Public Transport
BEIS,UKRI - AHRC,13/02/2019,T&S UK - Public Transport,HR,Corporate Travel Management (North) Ltd,98403078,(18.00),T&S UK - Public Transport
BEIS,UKRI - AHRC,13/02/2019,T&S UK - Public Transport,HR,Corporate Travel Management (North) Ltd,98403078,(18.00),T&S UK - Public Transport
BEIS,UKRI - AHRC,13/02/2019,T&S UK - Public Transport,HR,Corporate Travel Management (North) Ltd,98403078,1.00,T&S UK - Public Transport
BEIS,UKRI - AHRC,13/02/2019,T&S UK - Public Transport,HR,Corporate Travel Management (North) Ltd,98403078,96.10,T&S UK - Public Transport
BEIS,UKRI - AHRC,13/02/2019,T&S UK - Public Transport,HR,Corporate Travel Management (North) Ltd,98403078,84.00,T&S UK - Public Transport
BEIS,UKRI - AHRC,13/02/2019,T&S UK - Public Transport,HR,Corporate Travel Management (North) Ltd,98403078,144.00,T&S UK - Public Transport
BEIS,UKRI - AHRC,13/02/2019,T&S UK - Public Transport,HR,Corporate Travel Management (North) Ltd,98403078,144.00,T&S UK - Public Transport
BEIS,UKRI - AHRC,13/02/2019,T&S UK - Public Transport,HR,Corporate Travel Management (North) Ltd,98403078,144.00,T&S UK - Public Transport
BEIS,UKRI - AHRC,13/02/2019,T&S UK - Public Transport,HR,Corporate Travel Management (North) Ltd,98403078,23.70,T&S UK - Public Transport
BEIS,UKRI - AHRC,13/02/2019,T&S UK - Public Transport,HR,Corporate Travel Management (North) Ltd,98403078,23.70,T&S UK - Public Transport
BEIS,UKRI - AHRC,13/02/2019,T&S UK - Public Transport,HR,Corporate Travel Management (North) Ltd,98403078,11.90,T&S UK - Public Transport
BEIS,UKRI - AHRC,13/02/2019,T&S UK - Public Transport,HR,Corporate Travel Management (North) Ltd,98403078,151.10,T&S UK - Public Transport
BEIS,UKRI - AHRC,13/02/2019,T&S UK - Public Transport,HR,Corporate Travel Management (North) Ltd,98403078,177.00,T&S UK - Public Transport
BEIS,UKRI - AHRC,13/02/2019,T&S UK - Public Transport,HR,Corporate Travel Management (North) Ltd,98403078,1.00,T&S UK - Public Transport
BEIS,UKRI - AHRC,13/02/2019,T&S UK - Public Transport,HR,Corporate Travel Management (North) Ltd,98403078,47.40,T&S UK - Public Transport
BEIS,UKRI - AHRC,13/02/2019,T&S UK - Public Transport,HR,Corporate Travel Management (North) Ltd,98403078,1.00,T&S UK - Public Transport
BEIS,UKRI - AHRC,13/02/2019,T&S UK - Public Transport,HR,Corporate Travel Management (North) Ltd,98403078,47.40,T&S UK - Public Transport
BEIS,UKRI - AHRC,13/02/2019,T&S UK - Public Transport,HR,Corporate Travel Management (North) Ltd,98403078,79.70,T&S UK - Public Transport
BEIS,UKRI - AHRC,13/02/2019,T&S UK - Public Transport,HR,Corporate Travel Management (North) Ltd,98403078,48.40,T&S UK - Public Transport
BEIS,UKRI - AHRC,13/02/2019,T&S UK - Public Transport,"Histories,Culture & Heritage",Corporate Travel Management (North) Ltd,98403078,(128.60),T&S UK - Public Transport
BEIS,UKRI - AHRC,13/02/2019,T&S UK - Public Transport,"Histories,Culture & Heritage",Corporate Travel Management (North) Ltd,98403078,(79.50),T&S UK - Public Transport
BEIS,UKRI - AHRC,13/02/2019,T&S UK - Public Transport,"Histories,Culture & Heritage",Corporate Travel Management (North) Ltd,98403078,23.70,T&S UK - Public Transport
BEIS,UKRI - AHRC,13/02/2019,T&S UK - Public Transport,"Histories,Culture & Heritage",Corporate Travel Management (North) Ltd,98403078,87.00,T&S UK - Public Transport
BEIS,UKRI - AHRC,13/02/2019,T&S UK - Public Transport,"Histories,Culture & Heritage",Corporate Travel Management (North) Ltd,98403078,58.70,T&S UK - Public Transport
BEIS,UKRI - AHRC,13/02/2019,T&S UK - Public Transport,"Histories,Culture & Heritage",Corporate Travel Management (North) Ltd,98403078,22.65,T&S UK - Public Transport
BEIS,UKRI - AHRC,13/02/2019,T&S UK - Public Transport,"Histories,Culture & Heritage",Corporate Travel Management (North) Ltd,98403078,19.60,T&S UK - Public Transport
BEIS,UKRI - AHRC,13/02/2019,T&S UK - Public Transport,"Histories,Culture & Heritage",Corporate Travel Management (North) Ltd,98403078,19.40,T&S UK - Public Transport
BEIS,UKRI - AHRC,13/02/2019,T&S UK - Public Transport,"Histories,Culture & Heritage",Corporate Travel Management (North) Ltd,98403078,26.90,T&S UK - Public Transport
BEIS,UKRI - AHRC,13/02/2019,T&S UK - Public Transport,"Histories,Culture & Heritage",Corporate Travel Management (North) Ltd,98403078,60.80,T&S UK - Public Transport
BEIS,UKRI - AHRC,13/02/2019,T&S UK - Public Transport,"Histories,Culture & Heritage",Corporate Travel Management (North) Ltd,98403078,22.80,T&S UK - Public Transport
BEIS,UKRI - AHRC,13/02/2019,T&S UK - Public Transport,"Histories,Culture & Heritage",Corporate Travel Management (North) Ltd,98403078,72.85,T&S UK - Public Transport
BEIS,UKRI - AHRC,13/02/2019,T&S UK - Public Transport,"Histories,Culture & Heritage",Corporate Travel Management (North) Ltd,98403078,124.75,T&S UK - Public Transport
BEIS,UKRI - AHRC,13/02/2019,T&S UK - Public Transport,"Histories,Culture & Heritage",Corporate Travel Management (North) Ltd,98403078,1.00,T&S UK - Public Transport
BEIS,UKRI - AHRC,13/02/2019,T&S UK - Public Transport,"Histories,Culture & Heritage",Corporate Travel Management (North) Ltd,98403078,144.00,T&S UK - Public Transport
BEIS,UKRI - AHRC,13/02/2019,T&S UK - Public Transport,"Histories,Culture & Heritage",Corporate Travel Management (North) Ltd,98403078,1.00,T&S UK - Public Transport
BEIS,UKRI - AHRC,13/02/2019,T&S UK - Public Transport,"Histories,Culture & Heritage",Corporate Travel Management (North) Ltd,98403078,144.00,T&S UK - Public Transport
BEIS,UKRI - AHRC,13/02/2019,T&S UK - Public Transport,"Histories,Culture & Heritage",Corporate Travel Management (North) Ltd,98403078,144.00,T&S UK - Public Transport
BEIS,UKRI - AHRC,13/02/2019,T&S UK - Public Transport,"Histories,Culture & Heritage",Corporate Travel Management (North) Ltd,98403078,144.00,T&S UK - Public Transport
BEIS,UKRI - AHRC,13/02/2019,T&S UK - Public Transport,"Histories,Culture & Heritage",Corporate Travel Management (North) Ltd,98403078,121.55,T&S UK - Public Transport
BEIS,UKRI - AHRC,13/02/2019,T&S UK - Public Transport,"Histories,Culture & Heritage",Corporate Travel Management (North) Ltd,98403078,1.00,T&S UK - Public Transport
BEIS,UKRI - AHRC,13/02/2019,T&S UK - Public Transport,"Histories,Culture & Heritage",Corporate Travel Management (North) Ltd,98403078,10.20,T&S UK - Public Transport
BEIS,UKRI - AHRC,13/02/2019,T&S UK - Public Transport,"Histories,Culture & Heritage",Corporate Travel Management (North) Ltd,98403078,13.10,T&S UK - Public Transport
BEIS,UKRI - AHRC,13/02/2019,T&S UK - Public Transport,"Histories,Culture & Heritage",Corporate Travel Management (North) Ltd,98403078,144.00,T&S UK - Public Transport
BEIS,UKRI - AHRC,13/02/2019,T&S UK - Public Transport,"Histories,Culture & Heritage",Corporate Travel Management (North) Ltd,98403078,165.10,T&S UK - Public Transport
BEIS,UKRI - AHRC,13/02/2019,T&S UK - Public Transport,"Histories,Culture & Heritage",Corporate Travel Management (North) Ltd,98403078,418.00,T&S UK - Public Transport
BEIS,UKRI - AHRC,13/02/2019,T&S UK - Public Transport,"Histories,Culture & Heritage",Corporate Travel Management (North) Ltd,98403078,13.10,T&S UK - Public Transport
BEIS,UKRI - AHRC,13/02/2019,T&S UK - Public Transport,IS,Corporate Travel Management (North) Ltd,98403078,144.70,T&S UK - Public Transport
BEIS,UKRI - AHRC,13/02/2019,T&S UK - Public Transport,IS,Corporate Travel Management (North) Ltd,98403078,144.70,T&S UK - Public Transport
BEIS,UKRI - AHRC,13/02/2019,T&S UK - Public Transport,IS,Corporate Travel Management (North) Ltd,98403078,16.50,T&S UK - Public Transport
BEIS,UKRI - AHRC,13/02/2019,T&S UK - Public Transport,IS,Corporate Travel Management (North) Ltd,98403078,144.70,T&S UK - Public Transport
BEIS,UKRI - AHRC,13/02/2019,T&S UK - Public Transport,Industrial Strategy Challenge Fund (ISCF) - Creative Clusters,Corporate Travel Management (North) Ltd,98403078,36.40,T&S UK - Public Transport
BEIS,UKRI - AHRC,13/02/2019,T&S UK - Public Transport,Industrial Strategy Challenge Fund (ISCF) - Creative Clusters,Corporate Travel Management (North) Ltd,98403078,221.75,T&S UK - Public Transport
BEIS,UKRI - AHRC,13/02/2019,T&S UK - Public Transport,Industrial Strategy Challenge Fund (ISCF) - Creative Clusters,Corporate Travel Management (North) Ltd,98403078,(160.60),T&S UK - Public Transport
BEIS,UKRI - AHRC,13/02/2019,T&S UK - Public Transport,Industrial Strategy Challenge Fund (ISCF) - Creative Clusters,Corporate Travel Management (North) Ltd,98403078,1.00,T&S UK - Public Transport
BEIS,UKRI - AHRC,13/02/2019,T&S UK - Public Transport,Industrial Strategy Challenge Fund (ISCF) - Creative Clusters,Corporate Travel Management (North) Ltd,98403078,27.60,T&S UK - Public Transport
BEIS,UKRI - AHRC,13/02/2019,T&S UK - Public Transport,Industrial Strategy Challenge Fund (ISCF) - Creative Clusters,Corporate Travel Management (North) Ltd,98403078,1.00,T&S UK - Public Transport
BEIS,UKRI - AHRC,13/02/2019,T&S UK - Public Transport,Industrial Strategy Challenge Fund (ISCF) - Creative Clusters,Corporate Travel Management (North) Ltd,98403078,171.00,T&S UK - Public Transport
BEIS,UKRI - AHRC,13/02/2019,T&S UK - Public Transport,International,Corporate Travel Management (North) Ltd,98403078,68.50,T&S UK - Public Transport
BEIS,UKRI - AHRC,13/02/2019,T&S UK - Public Transport,International,Corporate Travel Management (North) Ltd,98403078,1.00,T&S UK - Public Transport
BEIS,UKRI - AHRC,13/02/2019,T&S UK - Public Transport,International,Corporate Travel Management (North) Ltd,98403078,91.00,T&S UK - Public Transport
BEIS,UKRI - AHRC,13/02/2019,T&S UK - Public Transport,International,Corporate Travel Management (North) Ltd,98403078,103.00,T&S UK - Public Transport
BEIS,UKRI - AHRC,13/02/2019,T&S UK - Public Transport,International,Corporate Travel Management (North) Ltd,98403078,153.10,T&S UK - Public Transport
BEIS,UKRI - AHRC,13/02/2019,T&S UK - Public Transport,International,Corporate Travel Management (North) Ltd,98403078,67.00,T&S UK - Public Transport
BEIS,UKRI - AHRC,13/02/2019,T&S UK - Public Transport,"Languages,Literature & International Engagement",Corporate Travel Management (North) Ltd,98403078,144.70,T&S UK - Public Transport
BEIS,UKRI - AHRC,13/02/2019,T&S UK - Public Transport,"Languages,Literature & International Engagement",Corporate Travel Management (North) Ltd,98403078,144.70,T&S UK - Public Transport
BEIS,UKRI - AHRC,13/02/2019,T&S UK - Public Transport,"Languages,Literature & International Engagement",Corporate Travel Management (North) Ltd,98403078,5.00,T&S UK - Public Transport
BEIS,UKRI - AHRC,13/02/2019,T&S UK - Public Transport,"Languages,Literature & International Engagement",Corporate Travel Management (North) Ltd,98403078,(90.70),T&S UK - Public Transport
BEIS,UKRI - AHRC,13/02/2019,T&S UK - Public Transport,"Languages,Literature & International Engagement",Corporate Travel Management (North) Ltd,98403078,103.80,T&S UK - Public Transport
BEIS,UKRI - AHRC,13/02/2019,T&S UK - Public Transport,"Languages,Literature & International Engagement",Corporate Travel Management (North) Ltd,98403078,1.00,T&S UK - Public Transport
BEIS,UKRI - AHRC,13/02/2019,T&S UK - Public Transport,"Languages,Literature & International Engagement",Corporate Travel Management (North) Ltd,98403078,103.80,T&S UK - Public Transport
BEIS,UKRI - AHRC,13/02/2019,T&S UK - Public Transport,"Languages,Literature & International Engagement",Corporate Travel Management (North) Ltd,98403078,103.80,T&S UK - Public Transport
BEIS,UKRI - AHRC,13/02/2019,T&S UK - Public Transport,Newton Programme Delivery,Corporate Travel Management (North) Ltd,98403078,(26.40),T&S UK - Public Transport
BEIS,UKRI - AHRC,13/02/2019,T&S UK - Public Transport,Newton Programme Delivery,Corporate Travel Management (North) Ltd,98403078,1.00,T&S UK - Public Transport
BEIS,UKRI - AHRC,13/02/2019,T&S UK - Public Transport,Newton Programme Delivery,Corporate Travel Management (North) Ltd,98403078,102.20,T&S UK - Public Transport
BEIS,UKRI - AHRC,13/02/2019,T&S UK - Public Transport,Newton Programme Delivery,Corporate Travel Management (North) Ltd,98403078,2.16,T&S UK - Public Transport
BEIS,UKRI - AHRC,13/02/2019,T&S UK - Public Transport,Newton Programme Delivery,Corporate Travel Management (North) Ltd,98403078,35.70,T&S UK - Public Transport
BEIS,UKRI - AHRC,13/02/2019,T&S UK - Public Transport,PSU Project Office,Corporate Travel Management (North) Ltd,98403078,79.70,T&S UK - Public Transport
BEIS,UKRI - AHRC,13/02/2019,T&S UK - Public Transport,PSU Project Office,Corporate Travel Management (North) Ltd,98403078,144.00,T&S UK - Public Transport
BEIS,UKRI - AHRC,13/02/2019,T&S UK - Public Transport,PSU Project Office,Corporate Travel Management (North) Ltd,98403078,144.00,T&S UK - Public Transport
BEIS,UKRI - AHRC,13/02/2019,T&S UK - Public Transport,PSU Project Office,Corporate Travel Management (North) Ltd,98403078,18.20,T&S UK - Public Transport
BEIS,UKRI - AHRC,13/02/2019,T&S UK - Public Transport,PSU Project Office,Corporate Travel Management (North) Ltd,98403078,12.30,T&S UK - Public Transport
BEIS,UKRI - AHRC,13/02/2019,T&S UK - Public Transport,PSU Project Office,Corporate Travel Management (North) Ltd,98403078,94.00,T&S UK - Public Transport
BEIS,UKRI - AHRC,13/02/2019,T&S UK - Public Transport,PSU Project Office,Corporate Travel Management (North) Ltd,98403078,112.00,T&S UK - Public Transport
BEIS,UKRI - AHRC,13/02/2019,T&S UK - Public Transport,PSU Project Office,Corporate Travel Management (North) Ltd,98403078,144.00,T&S UK - Public Transport
BEIS,UKRI - AHRC,13/02/2019,T&S UK - Public Transport,PSU Project Office,Corporate Travel Management (North) Ltd,98403078,144.00,T&S UK - Public Transport
BEIS,UKRI - AHRC,13/02/2019,T&S UK - Public Transport,PSU Project Office,Corporate Travel Management (North) Ltd,98403078,169.00,T&S UK - Public Transport
BEIS,UKRI - AHRC,13/02/2019,T&S UK - Public Transport,PSU Project Office,Corporate Travel Management (North) Ltd,98403078,144.00,T&S UK - Public Transport
BEIS,UKRI - AHRC,13/02/2019,T&S UK - Public Transport,PSU Project Office,Corporate Travel Management (North) Ltd,98403078,5.00,T&S UK - Public Transport
BEIS,UKRI - AHRC,13/02/2019,T&S UK - Public Transport,PSU Project Office,Corporate Travel Management (North) Ltd,98403078,(129.60),T&S UK - Public Transport
BEIS,UKRI - AHRC,13/02/2019,T&S UK - Public Transport,PSU Project Office,Corporate Travel Management (North) Ltd,98403078,48.40,T&S UK - Public Transport
BEIS,UKRI - AHRC,13/02/2019,T&S UK - Public Transport,SMT,Corporate Travel Management (North) Ltd,98403078,187.60,T&S UK - Public Transport
BEIS,UKRI - AHRC,13/02/2019,T&S UK - Public Transport,SMT,Corporate Travel Management (North) Ltd,98403078,130.50,T&S UK - Public Transport
BEIS,UKRI - AHRC,13/02/2019,T&S UK - Public Transport,SMT,Corporate Travel Management (North) Ltd,98403078,(81.00),T&S UK - Public Transport
BEIS,UKRI - AHRC,13/02/2019,T&S UK - Public Transport,SMT,Corporate Travel Management (North) Ltd,98403078,(7.30),T&S UK - Public Transport
BEIS,UKRI - AHRC,13/02/2019,T&S UK - Public Transport,SMT,Corporate Travel Management (North) Ltd,98403078,(69.10),T&S UK - Public Transport
BEIS,UKRI - AHRC,13/02/2019,T&S UK - Public Transport,SMT,Corporate Travel Management (North) Ltd,98403078,(87.20),T&S UK - Public Transport
BEIS,UKRI - AHRC,13/02/2019,T&S UK - Public Transport,SMT,Corporate Travel Management (North) Ltd,98403078,97.80,T&S UK - Public Transport
BEIS,UKRI - AHRC,13/02/2019,T&S UK - Public Transport,SMT,Corporate Travel Management (North) Ltd,98403078,1.00,T&S UK - Public Transport
BEIS,UKRI - AHRC,13/02/2019,T&S UK - Public Transport,SMT,Corporate Travel Management (North) Ltd,98403078,10.70,T&S UK - Public Transport
BEIS,UKRI - AHRC,13/02/2019,T&S UK - Public Transport,SMT,Corporate Travel Management (North) Ltd,98403078,1.00,T&S UK - Public Transport
BEIS,UKRI - AHRC,13/02/2019,T&S UK - Public Transport,SMT,Corporate Travel Management (North) Ltd,98403078,69.00,T&S UK - Public Transport
BEIS,UKRI - AHRC,13/02/2019,T&S UK - Public Transport,SMT,Corporate Travel Management (North) Ltd,98403078,17.60,T&S UK - Public Transport
BEIS,UKRI - AHRC,13/02/2019,T&S UK - Public Transport,SMT,Corporate Travel Management (North) Ltd,98403078,2.00,T&S UK - Public Transport
BEIS,UKRI - AHRC,13/02/2019,T&S UK - Public Transport,SMT,Corporate Travel Management (North) Ltd,98403078,48.40,T&S UK - Public Transport
BEIS,UKRI - AHRC,13/02/2019,T&S UK - Public Transport,SMT,Corporate Travel Management (North) Ltd,98403078,66.60,T&S UK - Public Transport
BEIS,UKRI - AHRC,13/02/2019,T&S UK - Public Transport,SMT,Corporate Travel Management (North) Ltd,98403078,76.75,T&S UK - Public Transport
BEIS,UKRI - AHRC,13/02/2019,T&S UK - Public Transport,SMT,Corporate Travel Management (North) Ltd,98403078,71.10,T&S UK - Public Transport
BEIS,UKRI - AHRC,13/02/2019,T&S UK - Public Transport,SMT,Corporate Travel Management (North) Ltd,98403078,47.20,T&S UK - Public Transport
BEIS,UKRI - AHRC,13/02/2019,T&S UK - Public Transport,SMT,Corporate Travel Management (North) Ltd,98403078,97.80,T&S UK - Public Transport
BEIS,UKRI - AHRC,13/02/2019,T&S UK - Public Transport,SMT,Corporate Travel Management (North) Ltd,98403078,10.00,T&S UK - Public Transport
BEIS,UKRI - AHRC,13/02/2019,T&S UK - Public Transport,SMT,Corporate Travel Management (North) Ltd,98403078,(58.70),T&S UK - Public Transport
BEIS,UKRI - AHRC,13/02/2019,T&S UK - Public Transport,SMT,Corporate Travel Management (North) Ltd,98403078,2.00,T&S UK - Public Transport
BEIS,UKRI - AHRC,13/02/2019,T&S UK - Public Transport,SMT,Corporate Travel Management (North) Ltd,98403078,71.00,T&S UK - Public Transport
BEIS,UKRI - AHRC,13/02/2019,T&S UK - Public Transport,SMT,Corporate Travel Management (North) Ltd,98403078,39.40,T&S UK - Public Transport
BEIS,UKRI - AHRC,13/02/2019,T&S UK - Public Transport,SMT,Corporate Travel Management (North) Ltd,98403078,1.00,T&S UK - Public Transport
BEIS,UKRI - AHRC,13/02/2019,T&S UK - Public Transport,SMT,Corporate Travel Management (North) Ltd,98403078,69.00,T&S UK - Public Transport
BEIS,UKRI - AHRC,13/02/2019,T&S UK - Public Transport,SMT,Corporate Travel Management (North) Ltd,98403078,76.75,T&S UK - Public Transport
BEIS,UKRI - AHRC,13/02/2019,T&S UK - Public Transport,SMT,Corporate Travel Management (North) Ltd,98403078,1.00,T&S UK - Public Transport
BEIS,UKRI - AHRC,13/02/2019,T&S UK - Public Transport,SMT,Corporate Travel Management (North) Ltd,98403078,101.50,T&S UK - Public Transport
BEIS,UKRI - AHRC,13/02/2019,T&S UK - Public Transport,SMT,Corporate Travel Management (North) Ltd,98403078,97.80,T&S UK - Public Transport
BEIS,UKRI - AHRC,13/02/2019,T&S UK - Public Transport,SMT,Corporate Travel Management (North) Ltd,98403078,1.00,T&S UK - Public Transport
BEIS,UKRI - AHRC,13/02/2019,T&S UK - Public Transport,SMT,Corporate Travel Management (North) Ltd,98403078,20.00,T&S UK - Public Transport
BEIS,UKRI - AHRC,13/02/2019,T&S UK - Public Transport,SMT,Corporate Travel Management (North) Ltd,98403078,1.00,T&S UK - Public Transport
BEIS,UKRI - AHRC,13/02/2019,T&S UK - Public Transport,SMT,Corporate Travel Management (North) Ltd,98403078,120.90,T&S UK - Public Transport
BEIS,UKRI - AHRC,13/02/2019,T&S UK - Public Transport,SMT,Corporate Travel Management (North) Ltd,98403078,1.00,T&S UK - Public Transport
BEIS,UKRI - AHRC,13/02/2019,T&S UK - Public Transport,SMT,Corporate Travel Management (North) Ltd,98403078,20.00,T&S UK - Public Transport
BEIS,UKRI - AHRC,13/02/2019,T&S UK - Public Transport,SMT,Corporate Travel Management (North) Ltd,98403078,(26.50),T&S UK - Public Transport
BEIS,UKRI - AHRC,13/02/2019,T&S UK - Public Transport,SMT,Corporate Travel Management (North) Ltd,98403078,90.60,T&S UK - Public Transport
BEIS,UKRI - AHRC,13/02/2019,T&S UK - Public Transport,SMT,Corporate Travel Management (North) Ltd,98403078,159.10,T&S UK - Public Transport
BEIS,UKRI - AHRC,13/02/2019,T&S UK - Public Transport,SMT,Corporate Travel Management (North) Ltd,98403078,57.60,T&S UK - Public Transport
BEIS,UKRI - AHRC,13/02/2019,T&S UK - Public Transport,SMT,Corporate Travel Management (North) Ltd,98403078,1.00,T&S UK - Public Transport
BEIS,UKRI - AHRC,13/02/2019,T&S UK - Public Transport,SMT,Corporate Travel Management (North) Ltd,98403078,105.45,T&S UK - Public Transport
BEIS,UKRI - AHRC,13/02/2019,T&S UK - Public Transport,SMT,Corporate Travel Management (North) Ltd,98403078,49.40,T&S UK - Public Transport
BEIS,UKRI - AHRC,13/02/2019,T&S UK - Public Transport,SMT,Corporate Travel Management (North) Ltd,98403078,117.35,T&S UK - Public Transport
BEIS,UKRI - AHRC,13/02/2019,T&S UK - Public Transport,SMT,Corporate Travel Management (North) Ltd,98403078,218.00,T&S UK - Public Transport
BEIS,UKRI - AHRC,13/02/2019,T&S UK - Public Transport,SMT,Corporate Travel Management (North) Ltd,98403078,267.00,T&S UK - Public Transport
BEIS,UKRI - AHRC,13/02/2019,T&S UK - Public Transport,SMT,Corporate Travel Management (North) Ltd,98403078,1.00,T&S UK - Public Transport
BEIS,UKRI - AHRC,13/02/2019,T&S UK - Public Transport,SMT,Corporate Travel Management (North) Ltd,98403078,64.50,T&S UK - Public Transport
BEIS,UKRI - AHRC,13/02/2019,T&S UK - Public Transport,SMT,Corporate Travel Management (North) Ltd,98403078,152.10,T&S UK - Public Transport
BEIS,UKRI - AHRC,13/02/2019,T&S UK - Public Transport,SMT,Corporate Travel Management (North) Ltd,98403078,5.00,T&S UK - Public Transport
BEIS,UKRI - AHRC,13/02/2019,T&S UK - Public Transport,SMT,Corporate Travel Management (North) Ltd,98403078,(29.80),T&S UK - Public Transport
BEIS,UKRI - AHRC,13/02/2019,T&S UK - Public Transport,SMT,Corporate Travel Management (North) Ltd,98403078,(46.70),T&S UK - Public Transport
BEIS,UKRI - AHRC,13/02/2019,T&S UK - Public Transport,SMT,Corporate Travel Management (North) Ltd,98403078,1.00,T&S UK - Public Transport
BEIS,UKRI - AHRC,13/02/2019,T&S UK - Public Transport,SMT,Corporate Travel Management (North) Ltd,98403078,15.60,T&S UK - Public Transport
BEIS,UKRI - AHRC,13/02/2019,T&S UK - Public Transport,SMT,Corporate Travel Management (North) Ltd,98403078,1.00,T&S UK - Public Transport
BEIS,UKRI - AHRC,13/02/2019,T&S UK - Public Transport,SMT,Corporate Travel Management (North) Ltd,98403078,9.40,T&S UK - Public Transport
BEIS,UKRI - AHRC,13/02/2019,T&S UK - Public Transport,SMT,Corporate Travel Management (North) Ltd,98403078,1.00,T&S UK - Public Transport
BEIS,UKRI - AHRC,13/02/2019,T&S UK - Public Transport,SMT,Corporate Travel Management (North) Ltd,98403078,113.00,T&S UK - Public Transport
BEIS,UKRI - AHRC,13/02/2019,T&S UK - Public Transport,SMT,Corporate Travel Management (North) Ltd,98403078,9.80,T&S UK - Public Transport
BEIS,UKRI - AHRC,13/02/2019,T&S UK - Public Transport,SMT,Corporate Travel Management (North) Ltd,98403078,108.40,T&S UK - Public Transport
BEIS,UKRI - AHRC,13/02/2019,T&S UK - Public Transport,SMT,Corporate Travel Management (North) Ltd,98403078,1.00,T&S UK - Public Transport
BEIS,UKRI - AHRC,13/02/2019,T&S UK - Public Transport,SMT,Corporate Travel Management (North) Ltd,98403078,20.50,T&S UK - Public Transport
BEIS,UKRI - AHRC,13/02/2019,T&S UK - Public Transport,SMT,Corporate Travel Management (North) Ltd,98403078,39.40,T&S UK - Public Transport
BEIS,UKRI - AHRC,13/02/2019,T&S UK - Public Transport,SMT,Corporate Travel Management (North) Ltd,98403078,3.00,T&S UK - Public Transport
BEIS,UKRI - AHRC,13/02/2019,T&S UK - Public Transport,SMT,Corporate Travel Management (North) Ltd,98403078,12.00,T&S UK - Public Transport
BEIS,UKRI - AHRC,13/02/2019,T&S UK - Public Transport,SMT,Corporate Travel Management (North) Ltd,98403078,71.00,T&S UK - Public Transport
BEIS,UKRI - AHRC,13/02/2019,T&S UK - Public Transport,SMT,Corporate Travel Management (North) Ltd,98403078,12.00,T&S UK - Public Transport
BEIS,UKRI - AHRC,13/02/2019,T&S UK - Public Transport,SMT,Corporate Travel Management (North) Ltd,98403078,109.00,T&S UK - Public Transport
BEIS,UKRI - AHRC,13/02/2019,T&S UK - Public Transport,SMT,Corporate Travel Management (North) Ltd,98403078,39.40,T&S UK - Public Transport
BEIS,UKRI - AHRC,13/02/2019,T&S UK - Public Transport,SMT,Corporate Travel Management (North) Ltd,98403078,1.00,T&S UK - Public Transport
BEIS,UKRI - AHRC,13/02/2019,T&S UK - Public Transport,SMT,Corporate Travel Management (North) Ltd,98403078,20.50,T&S UK - Public Transport
BEIS,UKRI - AHRC,13/02/2019,T&S UK - Public Transport,SMT,Corporate Travel Management (North) Ltd,98403078,35.40,T&S UK - Public Transport
BEIS,UKRI - AHRC,13/02/2019,T&S UK - Public Transport,SMT,Corporate Travel Management (North) Ltd,98403078,32.60,T&S UK - Public Transport
BEIS,UKRI - AHRC,13/02/2019,T&S UK - Public Transport,SMT,Corporate Travel Management (North) Ltd,98403078,1.00,T&S UK - Public Transport
BEIS,UKRI - AHRC,13/02/2019,T&S UK - Public Transport,SMT,Corporate Travel Management (North) Ltd,98403078,93.50,T&S UK - Public Transport
BEIS,UKRI - AHRC,13/02/2019,T&S UK - Public Transport,SMT Strategic Leads,Corporate Travel Management (North) Ltd,98403078,30.20,T&S UK - Public Transport
BEIS,UKRI - AHRC,13/02/2019,T&S UK - Public Transport,SMT Strategic Leads,Corporate Travel Management (North) Ltd,98403078,28.10,T&S UK - Public Transport
BEIS,UKRI - AHRC,13/02/2019,T&S UK - Public Transport,SMT Strategic Leads,Corporate Travel Management (North) Ltd,98403078,18.00,T&S UK - Public Transport
BEIS,UKRI - AHRC,13/02/2019,T&S UK - Public Transport,SMT Strategic Leads,Corporate Travel Management (North) Ltd,98403078,6.00,T&S UK - Public Transport
BEIS,UKRI - AHRC,13/02/2019,T&S UK - Public Transport,Secretariat,Corporate Travel Management (North) Ltd,98403078,46.80,T&S UK - Public Transport
BEIS,UKRI - AHRC,13/02/2019,T&S UK - Public Transport,Skills,Corporate Travel Management (North) Ltd,98403078,(76.80),T&S UK - Public Transport
BEIS,UKRI - AHRC,13/02/2019,T&S UK - Public Transport,Skills,Corporate Travel Management (North) Ltd,98403078,60.80,T&S UK - Public Transport
BEIS,UKRI - AHRC,13/02/2019,T&S UK - Public Transport,Skills,Corporate Travel Management (North) Ltd,98403078,22.80,T&S UK - Public Transport
BEIS,UKRI - AHRC,13/02/2019,T&S UK - Public Transport,Skills,Corporate Travel Management (North) Ltd,98403078,48.85,T&S UK - Public Transport
BEIS,UKRI - AHRC,13/02/2019,T&S UK - Public Transport,Skills,Corporate Travel Management (North) Ltd,98403078,264.50,T&S UK - Public Transport
BEIS,UKRI - AHRC,13/02/2019,T&S UK - Public Transport,Skills,Corporate Travel Management (North) Ltd,98403078,103.80,T&S UK - Public Transport
BEIS,UKRI - AHRC,13/02/2019,T&S UK - Public Transport,Skills,Corporate Travel Management (North) Ltd,98403078,32.20,T&S UK - Public Transport
BEIS,UKRI - AHRC,13/02/2019,T&S UK - Public Transport,Skills,Corporate Travel Management (North) Ltd,98403078,13.10,T&S UK - Public Transport
BEIS,UKRI - AHRC,13/02/2019,T&S UK - Public Transport,Skills,Corporate Travel Management (North) Ltd,98403078,53.40,T&S UK - Public Transport
BEIS,UKRI - AHRC,13/02/2019,T&S UK - Public Transport,Skills,Corporate Travel Management (North) Ltd,98403078,19.50,T&S UK - Public Transport
BEIS,UKRI - AHRC,13/02/2019,T&S UK - Public Transport,Skills,Corporate Travel Management (North) Ltd,98403078,13.10,T&S UK - Public Transport
BEIS,UKRI - AHRC,13/02/2019,Advertising & Promotion,Communications,Itsdevelopmental Ltd,98403962,"1,118.10",Advertising & Promotion
BEIS,UKRI - AHRC,14/02/2019,Telecoms - Non Capital Hardware Costs,IS,Premier Farnell UK Ltd T/A Farnell Onecall,98400026,75.02,Telecoms - Non Capital Hardware Costs
BEIS,UKRI - AHRC,14/02/2019,Voluntary Deductions,Balance Sheet,Civil Service Benevolent Fund,98401295,3.00,Voluntary Deductions
BEIS,UKRI - AHRC,14/02/2019,Voluntary Deductions,Balance Sheet,Chargive,98401296,7.00,Voluntary Deductions
BEIS,UKRI - AHRC,14/02/2019,Union Deductions,Balance Sheet,PCS Union,98401298,182.30,Union Deductions
BEIS,UKRI - AHRC,14/02/2019,Corporate Events,Creative Arts & Digital Humanities,Bigmedia Ltd T/A Chinwag,98402908,"5,400.00",Corporate Events
BEIS,UKRI - AHRC,14/02/2019,T&S UK - Mileage,Creative Arts & Digital Humanities,Unspecified,98403274,41.85,T&S UK - Mileage
BEIS,UKRI - AHRC,14/02/2019,T&S UK - Other Charges,Creative Arts & Digital Humanities,Unspecified,98403274,2.10,T&S UK - Other Charges
BEIS,UKRI - AHRC,14/02/2019,T&S UK - Parking Tolls Congestion Charges,Creative Arts & Digital Humanities,Unspecified,98403274,10.40,T&S UK - Parking Tolls Congestion Charges
BEIS,UKRI - AHRC,14/02/2019,T&S UK - Public Transport,Creative Arts & Digital Humanities,Unspecified,98403274,10.00,T&S UK - Public Transport
BEIS,UKRI - AHRC,14/02/2019,T&S UK - Subsistence,Creative Arts & Digital Humanities,Unspecified,98403274,8.60,T&S UK - Subsistence
BEIS,UKRI - AHRC,14/02/2019,T&S UK - Subsistence,Creative Arts & Digital Humanities,Unspecified,98403274,20.00,T&S UK - Subsistence
BEIS,UKRI - AHRC,14/02/2019,Corporate Events,Industrial Strategy Challenge Fund (ISCF) - Creative Clusters,Bigmedia Ltd T/A Chinwag,98403394,"7,800.00",Corporate Events
BEIS,UKRI - AHRC,14/02/2019,T&S UK - Public Transport,SMT,Unspecified,98404316,7.00,T&S UK - Public Transport
BEIS,UKRI - AHRC,14/02/2019,T&S UK - Subsistence,SMT,Unspecified,98404316,5.98,T&S UK - Subsistence
BEIS,UKRI - AHRC,14/02/2019,T&S UK - Subsistence,SMT,Unspecified,98404316,18.07,T&S UK - Subsistence
BEIS,UKRI - AHRC,14/02/2019,T&S UK - Subsistence,SMT,Unspecified,98404316,17.42,T&S UK - Subsistence
BEIS,UKRI - AHRC,14/02/2019,T&S UK - Public Transport,Creative Arts & Digital Humanities,Unspecified,98404317,31.67,T&S UK - Public Transport
BEIS,UKRI - AHRC,14/02/2019,T&S UK - Subsistence,Creative Arts & Digital Humanities,Unspecified,98404317,7.90,T&S UK - Subsistence
BEIS,UKRI - AHRC,14/02/2019,T&S UK - Subsistence,Creative Arts & Digital Humanities,Unspecified,98404317,5.00,T&S UK - Subsistence
BEIS,UKRI - AHRC,15/02/2019,Catering Contracts,HR,Officedrop Ltd,98404725,108.00,Catering Contracts
BEIS,UKRI - AHRC,15/02/2019,Catering Contracts,Communications,House of Commons,98405202,"2,250.00",Catering Contracts
BEIS,UKRI - AHRC,15/02/2019,T&S UK - Subsistence,Communications,Unspecified,98405839,9.69,T&S UK - Subsistence
BEIS,UKRI - AHRC,19/02/2019,Advertising & Promotion,Communications,Unspecified,98320805,750.00,Advertising & Promotion
BEIS,UKRI - AHRC,19/02/2019,Contract Staff,Finance,Hays Specialist Recruitment Ltd,98394489,"1,566.24",Contract Staff
BEIS,UKRI - AHRC,19/02/2019,Contract Staff,Finance,Hays Specialist Recruitment Ltd,98395236,(9.65),Contract Staff
BEIS,UKRI - AHRC,19/02/2019,Contract Staff,Finance,Hays Specialist Recruitment Ltd,98395246,(12.06),Contract Staff
BEIS,UKRI - AHRC,19/02/2019,Contract Staff,Finance,Hays Specialist Recruitment Ltd,98396703,"1,252.99",Contract Staff
BEIS,UKRI - AHRC,19/02/2019,Contract Staff,Finance,Hays Specialist Recruitment Ltd,98396704,(9.65),Contract Staff
BEIS,UKRI - AHRC,19/02/2019,Contract Staff,Finance,Hays Specialist Recruitment Ltd,98397492,932.51,Contract Staff
BEIS,UKRI - AHRC,19/02/2019,Contract Staff,Finance,Hays Specialist Recruitment Ltd,98397493,"1,554.18",Contract Staff
BEIS,UKRI - AHRC,19/02/2019,Contract Staff,Finance,Hays Specialist Recruitment Ltd,98397495,"1,554.18",Contract Staff
BEIS,UKRI - AHRC,19/02/2019,Contract Staff,Finance,Hays Specialist Recruitment Ltd,98397519,"1,554.18",Contract Staff
BEIS,UKRI - AHRC,19/02/2019,Contract Staff,Finance,Hays Specialist Recruitment Ltd,98397521,"1,554.18",Contract Staff
BEIS,UKRI - AHRC,19/02/2019,Contract Staff,Finance,Hays Specialist Recruitment Ltd,98403179,621.67,Contract Staff
BEIS,UKRI - AHRC,19/02/2019,Contract Staff,Finance,Hays Specialist Recruitment Ltd,98403181,"1,554.18",Contract Staff
BEIS,UKRI - AHRC,19/02/2019,Contract Staff,Finance,Hays Specialist Recruitment Ltd,98404044,(12.06),Contract Staff
BEIS,UKRI - AHRC,19/02/2019,Nursery Deductions,Balance Sheet,EDENRED (UK GROUP) LTD,98404703,(243.00),Nursery Deductions
BEIS,UKRI - AHRC,19/02/2019,Nursery Deductions,Balance Sheet,EDENRED (UK GROUP) LTD,98404708,"3,770.00",Nursery Deductions
BEIS,UKRI - AHRC,19/02/2019,Hospitality,Secretariat,Elior UK Ltd,98404954,40.50,Hospitality
BEIS,UKRI - AHRC,19/02/2019,Research Grant Expenditure,Fund for International Collaboration,Medical Research Council,98404967,"6,557.83",Research Grant Expenditure
BEIS,UKRI - AHRC,19/02/2019,Agency Staff,Finance,Hays Specialist Recruitment Ltd,98405171,"2,672.76",Agency Staff
BEIS,UKRI - AHRC,19/02/2019,Contract Staff,Finance,Hays Specialist Recruitment Ltd,98405212,(12.06),Contract Staff
BEIS,UKRI - AHRC,19/02/2019,Corporate Events,Creative Arts & Digital Humanities,Bigmedia Ltd T/A Chinwag,98405741,388.80,Corporate Events
BEIS,UKRI - AHRC,19/02/2019,Advertising & Promotion,Communications,Unspecified,98406016,900.00,Advertising & Promotion
BEIS,UKRI - AHRC,19/02/2019,Non-staff travel and subsistance,SMT,Non Employee Expenses Supplier,98407762,94.70,Non-staff travel and subsistance
BEIS,UKRI - AHRC,19/02/2019,Non-staff travel and subsistance,Fund for International Collaboration,Non Employee Expenses Supplier,98407763,"1,623.98",Non-staff travel and subsistance
BEIS,UKRI - AHRC,19/02/2019,Non-staff travel and subsistance,Business Process & Analysis,Non Employee Expenses Supplier,98407764,199.60,Non-staff travel and subsistance
BEIS,UKRI - AHRC,19/02/2019,Non-staff travel and subsistance,Business Process & Analysis,Non Employee Expenses Supplier,98407765,363.68,Non-staff travel and subsistance
BEIS,UKRI - AHRC,19/02/2019,Non-staff travel and subsistance,Creative Arts & Digital Humanities,Non Employee Expenses Supplier,98407766,476.62,Non-staff travel and subsistance
BEIS,UKRI - AHRC,19/02/2019,Non-staff travel and subsistance,Newton Programme,Non Employee Expenses Supplier,98407767,568.92,Non-staff travel and subsistance
BEIS,UKRI - AHRC,19/02/2019,Non-staff travel and subsistance,SMT,Non Employee Expenses Supplier,98407768,107.20,Non-staff travel and subsistance
BEIS,UKRI - AHRC,19/02/2019,Non-staff travel and subsistance,Newton Programme,Non Employee Expenses Supplier,98407769,"1,011.30",Non-staff travel and subsistance
BEIS,UKRI - AHRC,19/02/2019,Non-staff travel and subsistance,Newton Programme,Non Employee Expenses Supplier,98407770,884.14,Non-staff travel and subsistance
BEIS,UKRI - AHRC,19/02/2019,Non-staff travel and subsistance,Fund for International Collaboration,Non Employee Expenses Supplier,98407771,"2,500.00",Non-staff travel and subsistance
BEIS,UKRI - AHRC,19/02/2019,Non-staff travel and subsistance,PSU Project Office,Non Employee Expenses Supplier,98407772,41.75,Non-staff travel and subsistance
BEIS,UKRI - AHRC,19/02/2019,Non-staff travel and subsistance,Communications,Non Employee Expenses Supplier,98407773,190.80,Non-staff travel and subsistance
BEIS,UKRI - AHRC,19/02/2019,Non-staff travel and subsistance,Communications,Non Employee Expenses Supplier,98407774,12.65,Non-staff travel and subsistance
BEIS,UKRI - AHRC,19/02/2019,Non-staff travel and subsistance,Newton Programme,Non Employee Expenses Supplier,98407775,176.80,Non-staff travel and subsistance
BEIS,UKRI - AHRC,19/02/2019,Non-staff travel and subsistance,Fund for International Collaboration,Non Employee Expenses Supplier,98407776,91.33,Non-staff travel and subsistance
BEIS,UKRI - AHRC,19/02/2019,Non-staff travel and subsistance,SMT,Non Employee Expenses Supplier,98407777,230.40,Non-staff travel and subsistance
BEIS,UKRI - AHRC,19/02/2019,Non-staff travel and subsistance,Business Process & Analysis,Non Employee Expenses Supplier,98407778,41.80,Non-staff travel and subsistance
BEIS,UKRI - AHRC,19/02/2019,Non-staff travel and subsistance,Fund for International Collaboration,Non Employee Expenses Supplier,98407779,263.74,Non-staff travel and subsistance
BEIS,UKRI - AHRC,19/02/2019,Non-staff travel and subsistance,Newton Programme,Non Employee Expenses Supplier,98407780,750.61,Non-staff travel and subsistance
BEIS,UKRI - AHRC,19/02/2019,Non-staff travel and subsistance,Newton Programme,Non Employee Expenses Supplier,98407781,75.60,Non-staff travel and subsistance
BEIS,UKRI - AHRC,19/02/2019,Non-staff travel and subsistance,Newton Programme,Non Employee Expenses Supplier,98407782,769.41,Non-staff travel and subsistance
BEIS,UKRI - AHRC,19/02/2019,Non-staff travel and subsistance,Finance,Non Employee Expenses Supplier,98407783,159.90,Non-staff travel and subsistance
BEIS,UKRI - AHRC,19/02/2019,Non-staff travel and subsistance,SMT,Non Employee Expenses Supplier,98407784,344.00,Non-staff travel and subsistance
BEIS,UKRI - AHRC,19/02/2019,Non-staff travel and subsistance,"AHRC - Strategic Planning, Evidence & Impact",Non Employee Expenses Supplier,98407785,52.20,Non-staff travel and subsistance
BEIS,UKRI - AHRC,19/02/2019,Non-staff travel and subsistance,"AHRC - Strategic Planning, Evidence & Impact",Non Employee Expenses Supplier,98407786,108.55,Non-staff travel and subsistance
BEIS,UKRI - AHRC,19/02/2019,Catering Contracts,Communications,House of Commons,98407901,"9,814.00",Catering Contracts
BEIS,UKRI - AHRC,19/02/2019,Contract Staff,PSU JRS,Alexander Mann Solutions Ltd,98409084,"5,369.38",Contract Staff
BEIS,UKRI - AHRC,19/02/2019,T&S UK - Mileage,HR,Unspecified,98409551,223.11,T&S UK - Mileage
BEIS,UKRI - AHRC,19/02/2019,T&S UK - Public Transport,Communications,Unspecified,98409552,21.70,T&S UK - Public Transport
BEIS,UKRI - AHRC,19/02/2019,T&S UK - Public Transport,Communications,Unspecified,98409552,10.00,T&S UK - Public Transport
BEIS,UKRI - AHRC,19/02/2019,T&S UK - Subsistence,Communications,Unspecified,98409552,15.50,T&S UK - Subsistence
BEIS,UKRI - AHRC,19/02/2019,T&S UK - Subsistence,Communications,Unspecified,98409552,28.90,T&S UK - Subsistence
BEIS,UKRI - AHRC,19/02/2019,T&S UK - Subsistence,Communications,Unspecified,98409552,28.26,T&S UK - Subsistence
BEIS,UKRI - AHRC,19/02/2019,T&S UK - Subsistence,Communications,Unspecified,98409552,18.35,T&S UK - Subsistence
BEIS,UKRI - AHRC,19/02/2019,T&S UK - Subsistence,Communications,Unspecified,98409552,20.00,T&S UK - Subsistence
BEIS,UKRI - AHRC,19/02/2019,Conferences & Seminars,PSU Project Office,Unspecified,98409553,40.00,Conferences & Seminars
BEIS,UKRI - AHRC,20/02/2019,Other Staff Benefits,Corporate Services,EDENRED (UK GROUP) LTD,98404705,8.15,Other Staff Benefits
BEIS,UKRI - AHRC,20/02/2019,Legal & Professional Services,Communications,Unspecified,98409664,"1,200.00",Legal & Professional Services
BEIS,UKRI - AHRC,20/02/2019,Corporate Events,Secretariat,National Museums and Galleries of Wales Enterprise Ltd (NMGW),98410655,153.60,Corporate Events
BEIS,UKRI - AHRC,20/02/2019,T&S UK - Public Transport,Creative Arts & Digital Humanities,Unspecified,98410684,29.70,T&S UK - Public Transport
BEIS,UKRI - AHRC,20/02/2019,T&S UK - Subsistence,Creative Arts & Digital Humanities,Unspecified,98410684,25.66,T&S UK - Subsistence
BEIS,UKRI - AHRC,20/02/2019,T&S UK - Subsistence,Creative Arts & Digital Humanities,Unspecified,98410684,4.55,T&S UK - Subsistence
BEIS,UKRI - AHRC,21/02/2019,Provisions ( Food etc),HR,Banner Group Ltd,98408401,7.48,Provisions ( Food etc)
BEIS,UKRI - AHRC,21/02/2019,T&S UK - Public Transport,SMT,Unspecified,98410311,17.40,T&S UK - Public Transport
BEIS,UKRI - AHRC,21/02/2019,T&S UK - Public Transport,SMT,Unspecified,98410311,20.00,T&S UK - Public Transport
BEIS,UKRI - AHRC,21/02/2019,T&S UK - Subsistence,SMT,Unspecified,98410311,9.85,T&S UK - Subsistence
BEIS,UKRI - AHRC,21/02/2019,T&S UK - Subsistence,SMT,Unspecified,98410311,512.86,T&S UK - Subsistence
BEIS,UKRI - AHRC,21/02/2019,T&S UK - Subsistence,SMT,Unspecified,98410311,31.48,T&S UK - Subsistence
BEIS,UKRI - AHRC,21/02/2019,T&S UK - Subsistence,SMT,Unspecified,98410311,20.00,T&S UK - Subsistence
BEIS,UKRI - AHRC,21/02/2019,T&S UK - Subsistence,SMT,Unspecified,98410311,4.99,T&S UK - Subsistence
BEIS,UKRI - AHRC,21/02/2019,T&S UK - Mileage,Industrial Strategy Challenge Fund (ISCF) - Creative Clusters,Unspecified,98410312,38.25,T&S UK - Mileage
BEIS,UKRI - AHRC,21/02/2019,T&S UK - Parking Tolls Congestion Charges,Industrial Strategy Challenge Fund (ISCF) - Creative Clusters,Unspecified,98410312,37.99,T&S UK - Parking Tolls Congestion Charges
BEIS,UKRI - AHRC,21/02/2019,T&S UK - Public Transport,Industrial Strategy Challenge Fund (ISCF) - Creative Clusters,Unspecified,98410312,4.22,T&S UK - Public Transport
BEIS,UKRI - AHRC,21/02/2019,T&S UK - Public Transport,Industrial Strategy Challenge Fund (ISCF) - Creative Clusters,Unspecified,98410312,8.50,T&S UK - Public Transport
BEIS,UKRI - AHRC,21/02/2019,T&S UK - Subsistence,Industrial Strategy Challenge Fund (ISCF) - Creative Clusters,Unspecified,98410312,53.23,T&S UK - Subsistence
BEIS,UKRI - AHRC,21/02/2019,T&S UK - Subsistence,Industrial Strategy Challenge Fund (ISCF) - Creative Clusters,Unspecified,98410312,15.00,T&S UK - Subsistence
BEIS,UKRI - AHRC,21/02/2019,T&S UK - Subsistence,Industrial Strategy Challenge Fund (ISCF) - Creative Clusters,Unspecified,98410312,15.00,T&S UK - Subsistence
BEIS,UKRI - AHRC,21/02/2019,T&S UK - Public Transport,PSU Project Office,Unspecified,98410313,2.70,T&S UK - Public Transport
BEIS,UKRI - AHRC,21/02/2019,T&S UK - Public Transport,PSU Project Office,Unspecified,98410313,16.80,T&S UK - Public Transport
BEIS,UKRI - AHRC,21/02/2019,T&S UK - Mileage,HR,Unspecified,98410683,30.60,T&S UK - Mileage
BEIS,UKRI - AHRC,22/02/2019,Staff Training,Creative Arts & Digital Humanities,Westminster Forum Projects Ltd,98410439,276.00,Staff Training
BEIS,UKRI - AHRC,22/02/2019,Provisions ( Food etc),HR,Premier Farnell UK Ltd T/A Farnell Onecall,98410497,221.69,Provisions ( Food etc)
BEIS,UKRI - AHRC,22/02/2019,Hospitality,Secretariat,Elior UK Ltd,98410615,142.80,Hospitality
BEIS,UKRI - AHRC,22/02/2019,Hospitality,Secretariat,Elior UK Ltd,98410615,33.25,Hospitality
BEIS,UKRI - AHRC,22/02/2019,Hospitality,Secretariat,Elior UK Ltd,98410615,6.65,Hospitality
BEIS,UKRI - AHRC,22/02/2019,Meetings & Catering,Creative Arts & Digital Humanities,Baxter Storey Ltd,98410628,56.28,Meetings & Catering
BEIS,UKRI - AHRC,22/02/2019,Meetings & Catering,Fund for International Collaboration,Baxter Storey Ltd,98410628,85.62,Meetings & Catering
BEIS,UKRI - AHRC,22/02/2019,Meetings & Catering,GCRF - Programme Delivery,Baxter Storey Ltd,98410628,"1,112.40",Meetings & Catering
BEIS,UKRI - AHRC,22/02/2019,Meetings & Catering,SMT,Baxter Storey Ltd,98410628,507.18,Meetings & Catering
BEIS,UKRI - AHRC,22/02/2019,Contract Staff,PSU JRS,Alexander Mann Solutions Ltd,98411499,"1,697.48",Contract Staff
BEIS,UKRI - AHRC,22/02/2019,Contract Staff,PSU JRS,Alexander Mann Solutions Ltd,98411499,"1,145.52",Contract Staff
BEIS,UKRI - AHRC,22/02/2019,Contract Staff,PSU JRS,Alexander Mann Solutions Ltd,98411499,512.86,Contract Staff
BEIS,UKRI - AHRC,22/02/2019,Contract Staff,PSU JRS,Alexander Mann Solutions Ltd,98411500,"2,684.69",Contract Staff
BEIS,UKRI - AHRC,22/02/2019,Hospitality,"Histories,Culture & Heritage",Wiltshire Council,98411636,326.60,Hospitality
BEIS,UKRI - AHRC,22/02/2019,T&S UK - Subsistence,Business Process & Analysis,Unspecified,98411680,50.28,T&S UK - Subsistence
BEIS,UKRI - AHRC,25/02/2019,Agency Staff,Finance,Hays Specialist Recruitment Ltd,98303233,726.60,Agency Staff
BEIS,UKRI - AHRC,25/02/2019,Contract Staff,Finance,Hays Specialist Recruitment Ltd,98303233,"1,089.90",Contract Staff
BEIS,UKRI - AHRC,25/02/2019,Agency Staff,Finance,Hays Specialist Recruitment Ltd,98309123,"1,816.50",Agency Staff
BEIS,UKRI - AHRC,25/02/2019,Agency Staff,Finance,Hays Specialist Recruitment Ltd,98377259,"1,816.50",Agency Staff
BEIS,UKRI - AHRC,25/02/2019,Contract Staff,PSU Project Office,Alexander Mann Solutions Ltd,98386258,"2,259.97",Contract Staff
BEIS,UKRI - AHRC,25/02/2019,Voluntary Deductions,Balance Sheet,Swindon Office Sports and Social Club,98401297,94.00,Voluntary Deductions
BEIS,UKRI - AHRC,25/02/2019,Contract Staff,PSU Project Office,Alexander Mann Solutions Ltd,98402593,"7,533.24",Contract Staff
BEIS,UKRI - AHRC,25/02/2019,Contract Staff,PSU Project Office,Alexander Mann Solutions Ltd,98411796,"3,766.62",Contract Staff
BEIS,UKRI - AHRC,25/02/2019,Staff Training,Corporate Services,ACAS,98412029,624.00,Staff Training
BEIS,UKRI - AHRC,25/02/2019,Catering Contracts,"Languages,Literature & International Engagement",British Academy,98412439,407.10,Catering Contracts
BEIS,UKRI - AHRC,25/02/2019,Contract Staff,PSU Project Office,Alexander Mann Solutions Ltd,98412477,"7,533.24",Contract Staff
BEIS,UKRI - AHRC,25/02/2019,Agency Staff,Finance,Hays Specialist Recruitment Ltd,98412803,"1,089.90",Agency Staff
BEIS,UKRI - AHRC,25/02/2019,Agency Staff,Finance,Hays Specialist Recruitment Ltd,98412806,"1,816.50",Agency Staff
BEIS,UKRI - AHRC,25/02/2019,Agency Staff,Finance,Hays Specialist Recruitment Ltd,98412807,"1,816.50",Agency Staff
BEIS,UKRI - AHRC,25/02/2019,Agency Staff,Finance,Hays Specialist Recruitment Ltd,98412810,"1,816.50",Agency Staff
BEIS,UKRI - AHRC,25/02/2019,Agency Staff,Finance,Hays Specialist Recruitment Ltd,98412811,"1,816.50",Agency Staff
BEIS,UKRI - AHRC,25/02/2019,Agency Staff,Finance,Hays Specialist Recruitment Ltd,98412812,"1,816.50",Agency Staff
BEIS,UKRI - AHRC,25/02/2019,Agency Staff,Finance,Hays Specialist Recruitment Ltd,98412813,"1,816.50",Agency Staff
BEIS,UKRI - AHRC,25/02/2019,Agency Staff,Finance,Hays Specialist Recruitment Ltd,98412816,"1,816.50",Agency Staff
BEIS,UKRI - AHRC,25/02/2019,Agency Staff,Finance,Hays Specialist Recruitment Ltd,98412818,"1,453.21",Agency Staff
BEIS,UKRI - AHRC,25/02/2019,Hospitality,GCRF - Programme Delivery,Calder Conference Ltd,98412916,810.00,Hospitality
BEIS,UKRI - AHRC,25/02/2019,Hospitality,GCRF - Programme Delivery,Calder Conference Ltd,98412916,"3,456.00",Hospitality
BEIS,UKRI - AHRC,26/02/2019,Research Grant Expenditure,11546,Economic & Social Research Council,98410392,"148,526.11",Research Grant Expenditure
BEIS,UKRI - AHRC,26/02/2019,Research Consumables,Communications,British Broadcasting Corporation,98412088,"5,036.40",Research Consumables
BEIS,UKRI - AHRC,26/02/2019,Agency Staff,Finance,Hays Specialist Recruitment Ltd,98412387,"2,672.76",Agency Staff
BEIS,UKRI - AHRC,26/02/2019,Staff Training,HR,QA Ltd,98412596,"8,852.40",Staff Training
BEIS,UKRI - AHRC,26/02/2019,Non-staff travel and subsistance,"AHRC - Strategic Planning, Evidence & Impact",Non Employee Expenses Supplier,98413217,160.00,Non-staff travel and subsistance
BEIS,UKRI - AHRC,26/02/2019,Non-staff travel and subsistance,Communications,Non Employee Expenses Supplier,98413218,8.55,Non-staff travel and subsistance
BEIS,UKRI - AHRC,26/02/2019,Fees (Including College Members),Communications,Non Employee Expenses Supplier,98413219,175.00,Fees (Including College Members)
BEIS,UKRI - AHRC,26/02/2019,Non-staff travel and subsistance,Business Process & Analysis,Non Employee Expenses Supplier,98413220,80.10,Non-staff travel and subsistance
BEIS,UKRI - AHRC,26/02/2019,Non-staff travel and subsistance,"Histories,Culture & Heritage",Non Employee Expenses Supplier,98413221,130.00,Non-staff travel and subsistance
BEIS,UKRI - AHRC,26/02/2019,Non-staff travel and subsistance,"Histories,Culture & Heritage",Non Employee Expenses Supplier,98413222,58.20,Non-staff travel and subsistance
BEIS,UKRI - AHRC,26/02/2019,Non-staff travel and subsistance,"Histories,Culture & Heritage",Non Employee Expenses Supplier,98413223,106.94,Non-staff travel and subsistance
BEIS,UKRI - AHRC,26/02/2019,Non-staff travel and subsistance,"Histories,Culture & Heritage",Non Employee Expenses Supplier,98413224,102.00,Non-staff travel and subsistance
BEIS,UKRI - AHRC,26/02/2019,Non-staff travel and subsistance,"Histories,Culture & Heritage",Non Employee Expenses Supplier,98413225,121.15,Non-staff travel and subsistance
BEIS,UKRI - AHRC,26/02/2019,Non-staff travel and subsistance,"Histories,Culture & Heritage",Non Employee Expenses Supplier,98413226,179.40,Non-staff travel and subsistance
BEIS,UKRI - AHRC,26/02/2019,Non-staff travel and subsistance,"Histories,Culture & Heritage",Non Employee Expenses Supplier,98413227,80.25,Non-staff travel and subsistance
BEIS,UKRI - AHRC,26/02/2019,Non-staff travel and subsistance,"Histories,Culture & Heritage",Non Employee Expenses Supplier,98413228,85.00,Non-staff travel and subsistance
BEIS,UKRI - AHRC,26/02/2019,Non-staff travel and subsistance,Business Process & Analysis,Non Employee Expenses Supplier,98413229,24.10,Non-staff travel and subsistance
BEIS,UKRI - AHRC,26/02/2019,Non-staff travel and subsistance,Industrial Strategy Challenge Fund (ISCF) - Creative Clusters,Non Employee Expenses Supplier,98413230,31.45,Non-staff travel and subsistance
BEIS,UKRI - AHRC,26/02/2019,Non-staff travel and subsistance,Industrial Strategy Challenge Fund (ISCF) - Creative Clusters,Non Employee Expenses Supplier,98413231,65.96,Non-staff travel and subsistance
BEIS,UKRI - AHRC,26/02/2019,Non-staff travel and subsistance,Newton Programme,Non Employee Expenses Supplier,98413232,67.07,Non-staff travel and subsistance
BEIS,UKRI - AHRC,26/02/2019,Non-staff travel and subsistance,Newton Programme,Non Employee Expenses Supplier,98413233,662.27,Non-staff travel and subsistance
BEIS,UKRI - AHRC,26/02/2019,Non-staff travel and subsistance,"AHRC - Strategic Planning, Evidence & Impact",Non Employee Expenses Supplier,98413234,102.00,Non-staff travel and subsistance
BEIS,UKRI - AHRC,26/02/2019,Non-staff travel and subsistance,Newton Programme,Non Employee Expenses Supplier,98413235,950.28,Non-staff travel and subsistance
BEIS,UKRI - AHRC,26/02/2019,Non-staff travel and subsistance,SMT,Non Employee Expenses Supplier,98413236,55.00,Non-staff travel and subsistance
BEIS,UKRI - AHRC,26/02/2019,Non-staff travel and subsistance,SMT,Non Employee Expenses Supplier,98413237,134.60,Non-staff travel and subsistance
BEIS,UKRI - AHRC,26/02/2019,Non-staff travel and subsistance,SMT,Non Employee Expenses Supplier,98413238,426.06,Non-staff travel and subsistance
BEIS,UKRI - AHRC,26/02/2019,Non-staff travel and subsistance,SMT,Non Employee Expenses Supplier,98413239,277.61,Non-staff travel and subsistance
BEIS,UKRI - AHRC,26/02/2019,Non-staff travel and subsistance,SMT,Non Employee Expenses Supplier,98413240,215.07,Non-staff travel and subsistance
BEIS,UKRI - AHRC,26/02/2019,Non-staff travel and subsistance,SMT,Non Employee Expenses Supplier,98413241,196.50,Non-staff travel and subsistance
BEIS,UKRI - AHRC,26/02/2019,Non-staff travel and subsistance,Creative Arts & Digital Humanities,Non Employee Expenses Supplier,98413242,692.89,Non-staff travel and subsistance
BEIS,UKRI - AHRC,26/02/2019,Non-staff travel and subsistance,Creative Arts & Digital Humanities,Non Employee Expenses Supplier,98413243,172.63,Non-staff travel and subsistance
BEIS,UKRI - AHRC,26/02/2019,Non-staff travel and subsistance,Creative Arts & Digital Humanities,Non Employee Expenses Supplier,98413244,305.06,Non-staff travel and subsistance
BEIS,UKRI - AHRC,26/02/2019,Non-staff travel and subsistance,Creative Arts & Digital Humanities,Non Employee Expenses Supplier,98413245,64.00,Non-staff travel and subsistance
BEIS,UKRI - AHRC,26/02/2019,Non-staff travel and subsistance,Creative Arts & Digital Humanities,Non Employee Expenses Supplier,98413246,58.10,Non-staff travel and subsistance
BEIS,UKRI - AHRC,26/02/2019,Non-staff travel and subsistance,Creative Arts & Digital Humanities,Non Employee Expenses Supplier,98413247,61.00,Non-staff travel and subsistance
BEIS,UKRI - AHRC,26/02/2019,Non-staff travel and subsistance,Creative Arts & Digital Humanities,Non Employee Expenses Supplier,98413248,143.20,Non-staff travel and subsistance
BEIS,UKRI - AHRC,26/02/2019,Non-staff travel and subsistance,Creative Arts & Digital Humanities,Non Employee Expenses Supplier,98413249,209.11,Non-staff travel and subsistance
BEIS,UKRI - AHRC,26/02/2019,Non-staff travel and subsistance,Creative Arts & Digital Humanities,Non Employee Expenses Supplier,98413250,49.20,Non-staff travel and subsistance
BEIS,UKRI - AHRC,26/02/2019,Non-staff travel and subsistance,Creative Arts & Digital Humanities,Non Employee Expenses Supplier,98413251,73.90,Non-staff travel and subsistance
BEIS,UKRI - AHRC,26/02/2019,Non-staff travel and subsistance,Creative Arts & Digital Humanities,Non Employee Expenses Supplier,98413252,137.34,Non-staff travel and subsistance
BEIS,UKRI - AHRC,26/02/2019,Non-staff travel and subsistance,Creative Arts & Digital Humanities,Non Employee Expenses Supplier,98413253,8.40,Non-staff travel and subsistance
BEIS,UKRI - AHRC,26/02/2019,Corporate Events,SMT,Calder Conference Ltd,98413676,"4,964.28",Corporate Events
BEIS,UKRI - AHRC,26/02/2019,Advertising & Promotion,GCRF - Programme Delivery,Studio Orb Ltd,98414708,750.00,Advertising & Promotion
BEIS,UKRI - AHRC,26/02/2019,Contract Staff,Finance,Hays Specialist Recruitment Ltd,98414786,"1,554.18",Contract Staff
BEIS,UKRI - AHRC,27/02/2019,Research Consumables,GCRF - Programme Delivery,Bath Spa University,98392787,"5,000.00",Research Consumables
BEIS,UKRI - AHRC,27/02/2019,Non-staff travel and subsistance,Newton Programme Delivery,Non Employee Expenses Supplier,98409961,364.29,Non-staff travel and subsistance
BEIS,UKRI - AHRC,27/02/2019,Recruitment Costs,HR,Agenda Resource Management Ltd,98413585,155.91,Recruitment Costs
BEIS,UKRI - AHRC,27/02/2019,Staff Training,Communications,Tamasine McCaig T/A Mighty Oaks Digital,98415225,800.00,Staff Training
BEIS,UKRI - AHRC,27/02/2019,Legal & Professional Services,Communications,Inside Edge Media Training Ltd,98415248,"2,587.80",Legal & Professional Services
BEIS,UKRI - AHRC,27/02/2019,T&S UK - Other Charges,"Histories,Culture & Heritage",Unspecified,98415368,2.98,T&S UK - Other Charges
BEIS,UKRI - AHRC,27/02/2019,T&S UK - Public Transport,"Histories,Culture & Heritage",Unspecified,98415368,6.50,T&S UK - Public Transport
BEIS,UKRI - AHRC,27/02/2019,T&S UK - Public Transport,"Histories,Culture & Heritage",Unspecified,98415368,30.00,T&S UK - Public Transport
BEIS,UKRI - AHRC,27/02/2019,T&S UK - Subsistence,"Histories,Culture & Heritage",Unspecified,98415368,14.20,T&S UK - Subsistence
BEIS,UKRI - AHRC,27/02/2019,Health & Safety (inc. Medicals & Opticians),"Histories,Culture & Heritage",Unspecified,98415369,30.00,Health & Safety (inc. Medicals & Opticians)
BEIS,UKRI - AHRC,27/02/2019,T&S UK - Other Charges,Communications,Unspecified,98415371,5.00,T&S UK - Other Charges
BEIS,UKRI - AHRC,27/02/2019,T&S UK - Subsistence,Communications,Unspecified,98415371,29.10,T&S UK - Subsistence
BEIS,UKRI - AHRC,27/02/2019,T&S UK - Public Transport,Communications,Unspecified,98415372,7.60,T&S UK - Public Transport
BEIS,UKRI - AHRC,27/02/2019,T&S UK - Subsistence,Communications,Unspecified,98415372,2.75,T&S UK - Subsistence
BEIS,UKRI - AHRC,27/02/2019,T&S UK - Subsistence,Communications,Unspecified,98415372,7.68,T&S UK - Subsistence
BEIS,UKRI - AHRC,27/02/2019,T&S UK - Subsistence,Communications,Unspecified,98415372,5.00,T&S UK - Subsistence
BEIS,UKRI - AHRC,28/02/2019,Contract Staff,PSU JRS,Alexander Mann Solutions Ltd,98413165,"2,684.69",Contract Staff
BEIS,UKRI - AHRC,28/02/2019,Computing Consumables,IS,Banner Group Ltd,98413497,13.14,Computing Consumables
BEIS,UKRI - AHRC,28/02/2019,Recruitment Costs,HR,Agenda Resource Management Ltd,98414206,99.80,Recruitment Costs
BEIS,UKRI - AHRC,28/02/2019,Recruitment Costs,HR,Agenda Resource Management Ltd,98414210,99.80,Recruitment Costs
BEIS,UKRI - AHRC,28/02/2019,Agency Staff,Finance,Hays Specialist Recruitment Ltd,98415166,"2,672.76",Agency Staff
BEIS,UKRI - AHRC,28/02/2019,T&S UK - Other Charges,GCRF - Programme Delivery,Unspecified,98415367,43.16,T&S UK - Other Charges
BEIS,UKRI - AHRC,28/02/2019,T&S UK - Subsistence,GCRF - Programme Delivery,Unspecified,98415367,8.16,T&S UK - Subsistence
BEIS,UKRI - AHRC,28/02/2019,T&S UK - Subsistence,GCRF - Programme Delivery,Unspecified,98415367,16.90,T&S UK - Subsistence
BEIS,UKRI - AHRC,28/02/2019,T&S UK - Subsistence,GCRF - Programme Delivery,Unspecified,98415367,20.00,T&S UK - Subsistence
BEIS,UKRI - AHRC,28/02/2019,T&S UK - Subsistence,GCRF - Programme Delivery,Unspecified,98415367,4.40,T&S UK - Subsistence
BEIS,UKRI - AHRC,28/02/2019,T&S UK - Public Transport,SMT Strategic Leads,Unspecified,98416796,16.30,T&S UK - Public Transport
BEIS,UKRI - AHRC,28/02/2019,T&S UK - Subsistence,SMT Strategic Leads,Unspecified,98416796,3.99,T&S UK - Subsistence
BEIS,UKRI - BBSRC,01/02/2019,Health & Safety (inc. Medicals & Opticians),PDG - Director,AM Health & Safety Ltd,98394376,270.00,Health & Safety (inc. Medicals & Opticians)
BEIS,UKRI - BBSRC,01/02/2019,Computing Consumables,JBOS - Maintenance,Premier Farnell UK Ltd T/A Farnell Onecall,98394501,97.94,Computing Consumables
BEIS,UKRI - BBSRC,01/02/2019,Health & Safety (inc. Medicals & Opticians),PDG - Director,Non Employee Expenses Supplier,98395033,30.00,Health & Safety (inc. Medicals & Opticians)
BEIS,UKRI - BBSRC,01/02/2019,Health & Safety (inc. Medicals & Opticians),PDG - Director,Non Employee Expenses Supplier,98395034,120.00,Health & Safety (inc. Medicals & Opticians)
BEIS,UKRI - BBSRC,01/02/2019,Postage & Courier Services,JBOS - Post Room,RDS Security Equipment,98395276,960.00,Postage & Courier Services
BEIS,UKRI - BBSRC,01/02/2019,T&S UK - Subsistence,Science Group,Unspecified,98395284,47.06,T&S UK - Subsistence
BEIS,UKRI - BBSRC,01/02/2019,T&S UK - Subsistence,Science Group,Unspecified,98395284,4.16,T&S UK - Subsistence
BEIS,UKRI - BBSRC,01/02/2019,GPC Clearing - BBSRC,Balance Sheet,Unspecified,98395287,-94.20,GPC Clearing - BBSRC
BEIS,UKRI - BBSRC,01/02/2019,T&S UK - Parking Tolls Congestion Charges,FG - Estates,Unspecified,98395287,9.00,T&S UK - Parking Tolls Congestion Charges
BEIS,UKRI - BBSRC,01/02/2019,T&S UK - Subsistence,FG - Estates,Unspecified,98395287,20.35,T&S UK - Subsistence
BEIS,UKRI - BBSRC,01/02/2019,T&S UK - Subsistence,FG - Estates,Unspecified,98395287,20.00,T&S UK - Subsistence
BEIS,UKRI - BBSRC,01/02/2019,T&S UK - Vehicle Hire,FG - Estates,Unspecified,98395287,64.85,T&S UK - Vehicle Hire
BEIS,UKRI - BBSRC,01/02/2019,T&S UK - Public Transport,CE - CPS,Unspecified,98395289,38.50,T&S UK - Public Transport
BEIS,UKRI - BBSRC,01/02/2019,T&S UK - Subsistence,CE - CPS,Unspecified,98395289,7.25,T&S UK - Subsistence
BEIS,UKRI - BBSRC,01/02/2019,T&S UK - Subsistence,CE - CPS,Unspecified,98395289,25.38,T&S UK - Subsistence
BEIS,UKRI - BBSRC,01/02/2019,T&S UK - Subsistence,CE - CPS,Unspecified,98395289,5.00,T&S UK - Subsistence
BEIS,UKRI - BBSRC,01/02/2019,T&S UK - Subsistence,CE - CPS,Unspecified,98395289,9.14,T&S UK - Subsistence
BEIS,UKRI - BBSRC,01/02/2019,Research Grant Expenditure,Rothamsted Research,Rothamsted Research Ltd,98395782,"144,093.03",Research Grant Expenditure
BEIS,UKRI - BBSRC,01/02/2019,Staff Training,PDG - Director,New College Swindon,98395852,"1,500.00",Staff Training
BEIS,UKRI - BBSRC,04/02/2019,Non-staff travel and subsistance,Innovation and Skills Group CDSU,Non Employee Expenses Supplier,98395564,39.90,Non-staff travel and subsistance
BEIS,UKRI - BBSRC,04/02/2019,Recruitment Costs,PDG - Director,Agenda Resource Management Ltd,98395849,155.91,Recruitment Costs
BEIS,UKRI - BBSRC,04/02/2019,Non-staff travel and subsistance,CE - IRU,Non Employee Expenses Supplier,98396014,"1,083.01",Non-staff travel and subsistance
BEIS,UKRI - BBSRC,04/02/2019,Non-staff travel and subsistance,CE - IRU,Non Employee Expenses Supplier,98396015,"1,305.22",Non-staff travel and subsistance
BEIS,UKRI - BBSRC,04/02/2019,Non-staff travel and subsistance,CE - IRU,Non Employee Expenses Supplier,98396016,"1,329.01",Non-staff travel and subsistance
BEIS,UKRI - BBSRC,04/02/2019,Non-staff travel and subsistance,CE - IRU,Non Employee Expenses Supplier,98396018,80.21,Non-staff travel and subsistance
BEIS,UKRI - BBSRC,04/02/2019,Non-staff travel and subsistance,CE - IRU,Non Employee Expenses Supplier,98396020,723.52,Non-staff travel and subsistance
BEIS,UKRI - BBSRC,04/02/2019,Non-staff travel and subsistance,CE - IRU,Non Employee Expenses Supplier,98396021,656.96,Non-staff travel and subsistance
BEIS,UKRI - BBSRC,04/02/2019,Recruitment Costs,CE - IRU,Non Employee Expenses Supplier,98396022,84.47,Recruitment Costs
BEIS,UKRI - BBSRC,04/02/2019,Non-staff travel and subsistance,CIMG - External Relations,Non Employee Expenses Supplier,98396023,62.60,Non-staff travel and subsistance
BEIS,UKRI - BBSRC,04/02/2019,Non-staff travel and subsistance,CIMG - External Relations,Non Employee Expenses Supplier,98396024,305.78,Non-staff travel and subsistance
BEIS,UKRI - BBSRC,04/02/2019,Non-staff travel and subsistance,CIMG - External Relations,Non Employee Expenses Supplier,98396025,337.30,Non-staff travel and subsistance
BEIS,UKRI - BBSRC,04/02/2019,Non-staff travel and subsistance,CIMG - External Relations,Non Employee Expenses Supplier,98396026,145.35,Non-staff travel and subsistance
BEIS,UKRI - BBSRC,04/02/2019,Non-staff travel and subsistance,CIMG - External Relations,Non Employee Expenses Supplier,98396027,249.05,Non-staff travel and subsistance
BEIS,UKRI - BBSRC,04/02/2019,Non-staff travel and subsistance,CIMG - External Relations,Non Employee Expenses Supplier,98396028,119.35,Non-staff travel and subsistance
BEIS,UKRI - BBSRC,04/02/2019,Non-staff travel and subsistance,CIMG - External Relations,Non Employee Expenses Supplier,98396029,228.51,Non-staff travel and subsistance
BEIS,UKRI - BBSRC,04/02/2019,Non-staff travel and subsistance,CIMG - External Relations,Non Employee Expenses Supplier,98396030,104.80,Non-staff travel and subsistance
BEIS,UKRI - BBSRC,04/02/2019,Staff Training,PDG - Director,Roffey Park Institute Ltd,98396639,"1,214.72",Staff Training
BEIS,UKRI - BBSRC,04/02/2019,Staff Training,PDG - Director,Roffey Park Institute Ltd,98396639,"1,741.88",Staff Training
BEIS,UKRI - BBSRC,04/02/2019,Staff Training,PDG - Director,Roffey Park Institute Ltd,98396639,"2,508.84",Staff Training
BEIS,UKRI - BBSRC,05/02/2019,Telecoms - Tele/ Video conferencing,CE - IRU,MeetingZone Ltd,98389900,35.42,Telecoms - Tele/ Video conferencing
BEIS,UKRI - BBSRC,05/02/2019,Telecoms - Tele/ Video conferencing,CE - IRU,MeetingZone Ltd,98389900,219.50,Telecoms - Tele/ Video conferencing
BEIS,UKRI - BBSRC,05/02/2019,Telecoms - Tele/ Video conferencing,Science Group,MeetingZone Ltd,98389900,598.30,Telecoms - Tele/ Video conferencing
BEIS,UKRI - BBSRC,05/02/2019,Telecoms - Tele/ Video conferencing,CE - IRU,MeetingZone Ltd,98389907,66.38,Telecoms - Tele/ Video conferencing
BEIS,UKRI - BBSRC,05/02/2019,Telecoms - Tele/ Video conferencing,CE - IRU,MeetingZone Ltd,98389907,189.00,Telecoms - Tele/ Video conferencing
BEIS,UKRI - BBSRC,05/02/2019,Telecoms - Tele/ Video conferencing,Science Group,MeetingZone Ltd,98389907,173.33,Telecoms - Tele/ Video conferencing
BEIS,UKRI - BBSRC,05/02/2019,Secondments,RISD - UKRO,Engineering & Physical Sciences Research Council,98394268,"9,095.06",Secondments
BEIS,UKRI - BBSRC,05/02/2019,Secondments,RISD - UKRO,Engineering & Physical Sciences Research Council,98394270,"11,913.94",Secondments
BEIS,UKRI - BBSRC,05/02/2019,T&S UK - Vehicle Hire,FG - Estates,Enterprise Rent-A-Car UK Ltd,98396237,56.13,T&S UK - Vehicle Hire
BEIS,UKRI - BBSRC,05/02/2019,T&S UK - Vehicle Hire,FG - Estates,Enterprise Rent-A-Car UK Ltd,98396237,62.32,T&S UK - Vehicle Hire
BEIS,UKRI - BBSRC,05/02/2019,T&S UK - Vehicle Hire,FG - Estates,Enterprise Rent-A-Car UK Ltd,98396237,73.71,T&S UK - Vehicle Hire
BEIS,UKRI - BBSRC,05/02/2019,T&S UK - Vehicle Hire,FG - Estates,Enterprise Rent-A-Car UK Ltd,98396237,54.18,T&S UK - Vehicle Hire
BEIS,UKRI - BBSRC,05/02/2019,T&S UK - Vehicle Hire,FG - Estates,Enterprise Rent-A-Car UK Ltd,98396237,49.27,T&S UK - Vehicle Hire
BEIS,UKRI - BBSRC,05/02/2019,Electricity,FG - Estates,Haven Power Ltd,98396321,"1,408.13",Electricity
BEIS,UKRI - BBSRC,05/02/2019,Electricity,FG - Estates,Haven Power Ltd,98396331,"1,317.66",Electricity
BEIS,UKRI - BBSRC,05/02/2019,Electricity,FG - Estates,Haven Power Ltd,98396336,970.74,Electricity
BEIS,UKRI - BBSRC,05/02/2019,Electricity,FG - Estates,Haven Power Ltd,98396389,"1,279.24",Electricity
BEIS,UKRI - BBSRC,05/02/2019,Other Programme Costs,CE - IRU,Unspecified,98396509,"10,036.35",Other Programme Costs
BEIS,UKRI - BBSRC,06/02/2019,Computer Software,CE - CPS,Alteryx Inc,98374540,"7,479.00",Computer Software
BEIS,UKRI - BBSRC,06/02/2019,T&S UK - Subsistence,FG - Estates,Unspecified,98393706,2.60,T&S UK - Subsistence
BEIS,UKRI - BBSRC,06/02/2019,T&S UK - Vehicle Hire,FG - Estates,Unspecified,98393706,43.26,T&S UK - Vehicle Hire
BEIS,UKRI - BBSRC,06/02/2019,Non-staff travel and subsistance,European Initiatives,Non Employee Expenses Supplier,98395442,210.31,Non-staff travel and subsistance
BEIS,UKRI - BBSRC,06/02/2019,Non-staff travel and subsistance,CE - IRU,Non Employee Expenses Supplier,98395560,633.48,Non-staff travel and subsistance
BEIS,UKRI - BBSRC,06/02/2019,Legal & Professional Services,PDG - JSS,UK Atomic Energy Authority,98397496,771.32,Legal & Professional Services
BEIS,UKRI - BBSRC,06/02/2019,VAT Input Tax Control (for UK VAT),Balance Sheet,UK Atomic Energy Authority,98397496,154.26,VAT Input Tax Control (for UK VAT)
BEIS,UKRI - BBSRC,06/02/2019,Research Grant Expenditure,Rothamsted Research,Rothamsted Research Ltd,98397795,"172,803.10",Research Grant Expenditure
BEIS,UKRI - BBSRC,06/02/2019,Research Institutes - Capital Grants: Major Works,Estates - Projects,EMBL (European Molecular Biology Laboratory),98398637,"2,193.92",Research Institutes - Capital Grants: Major Works
BEIS,UKRI - BBSRC,06/02/2019,Research Institutes - Capital Grants: Major Works,Estates - Projects,EMBL (European Molecular Biology Laboratory),98398638,"76,843.37",Research Institutes - Capital Grants: Major Works
BEIS,UKRI - BBSRC,06/02/2019,T&S UK - Parking Tolls Congestion Charges,Science Group,Unspecified,98398650,8.90,T&S UK - Parking Tolls Congestion Charges
BEIS,UKRI - BBSRC,06/02/2019,T&S UK - Subsistence,Science Group,Unspecified,98398650,4.75,T&S UK - Subsistence
BEIS,UKRI - BBSRC,06/02/2019,T&S UK - Subsistence,FG - Director,Unspecified,98398652,20.00,T&S UK - Subsistence
BEIS,UKRI - BBSRC,06/02/2019,T&S UK - Subsistence,FG - Director,Unspecified,98398652,15.60,T&S UK - Subsistence
BEIS,UKRI - BBSRC,06/02/2019,T&S UK - Subsistence,Innovation and Skills Group CDSU,Unspecified,98398656,29.80,T&S UK - Subsistence
BEIS,UKRI - BBSRC,06/02/2019,T&S UK - Subsistence,Innovation and Skills Group CDSU,Unspecified,98398656,5.00,T&S UK - Subsistence
BEIS,UKRI - BBSRC,06/02/2019,T&S UK - Other Charges,CE - CPS,Unspecified,98398657,94.00,T&S UK - Other Charges
BEIS,UKRI - BBSRC,06/02/2019,T&S UK - Other Charges,Innovation and Skills Group,Unspecified,98398658,10.00,T&S UK - Other Charges
BEIS,UKRI - BBSRC,06/02/2019,T&S UK - Subsistence,Innovation and Skills Group,Unspecified,98398658,32.20,T&S UK - Subsistence
BEIS,UKRI - BBSRC,06/02/2019,T&S UK - Subsistence,Innovation and Skills Group,Unspecified,98398658,6.28,T&S UK - Subsistence
BEIS,UKRI - BBSRC,06/02/2019,T&S UK - Subsistence,Innovation and Skills Group,Unspecified,98398658,10.00,T&S UK - Subsistence
BEIS,UKRI - BBSRC,06/02/2019,T&S UK - Subsistence,Innovation and Skills Group,Unspecified,98398658,6.79,T&S UK - Subsistence
BEIS,UKRI - BBSRC,07/02/2019,Printing & Stationery,JBOS Health and Safety,Banner Group Ltd,98392346,27.30,Printing & Stationery
BEIS,UKRI - BBSRC,07/02/2019,Printing & Stationery,JBOS - Administration,Banner Group Ltd,98397960,10.36,Printing & Stationery
BEIS,UKRI - BBSRC,07/02/2019,IT Cloud Services,CIMG - Information Systems,Softcat plc,98398249,"1,800.00",IT Cloud Services
BEIS,UKRI - BBSRC,07/02/2019,Recruitment Costs,PDG - Director,Agenda Resource Management Ltd,98399141,62.72,Recruitment Costs
BEIS,UKRI - BBSRC,07/02/2019,Other Programme Costs,CE - IRU,Unspecified,98399311,"1,451.42",Other Programme Costs
BEIS,UKRI - BBSRC,07/02/2019,Legal & Professional Services,FG - Estates,Carter Jonas LLP,98399358,"1,368.00",Legal & Professional Services
BEIS,UKRI - BBSRC,07/02/2019,Postage & Courier Services,PDG - JSS,Royal Mail Group Ltd,98399466,100.00,Postage & Courier Services
BEIS,UKRI - BBSRC,07/02/2019,Storage & Archiving Costs,PDG - JSS,Iron Mountain (UK) PLC,98399469,402.18,Storage & Archiving Costs
BEIS,UKRI - BBSRC,07/02/2019,VAT Input Tax Control (for UK VAT),Balance Sheet,Iron Mountain (UK) PLC,98399469,80.44,VAT Input Tax Control (for UK VAT)
BEIS,UKRI - BBSRC,07/02/2019,UK - Professional Memberships & Subscriptions,CE - Chief Executive,Foundation for Science & Technology,98399505,"6,360.00",UK - Professional Memberships & Subscriptions
BEIS,UKRI - BBSRC,07/02/2019,Legal & Professional Services,PDG - Director,Unspecified,98399520,246.00,Legal & Professional Services
BEIS,UKRI - BBSRC,07/02/2019,T&S UK - Accommodation,CE - IRU,Unspecified,98399558,92.72,T&S UK - Accommodation
BEIS,UKRI - BBSRC,07/02/2019,T&S UK - Public Transport,CE - IRU,Unspecified,98399558,22.00,T&S UK - Public Transport
BEIS,UKRI - BBSRC,07/02/2019,T&S UK - Public Transport,CE - IRU,Unspecified,98399558,16.76,T&S UK - Public Transport
BEIS,UKRI - BBSRC,07/02/2019,T&S UK - Subsistence,CE - IRU,Unspecified,98399558,33.39,T&S UK - Subsistence
BEIS,UKRI - BBSRC,07/02/2019,T&S UK - Subsistence,CE - IRU,Unspecified,98399558,30.00,T&S UK - Subsistence
BEIS,UKRI - BBSRC,07/02/2019,T&S UK - Subsistence,CE - IRU,Unspecified,98399558,1.93,T&S UK - Subsistence
BEIS,UKRI - BBSRC,07/02/2019,T&S UK - Subsistence,Science Group - Delivery Function,Unspecified,98399559,12.75,T&S UK - Subsistence
BEIS,UKRI - BBSRC,07/02/2019,T&S UK - Subsistence,Science Group - Delivery Function,Unspecified,98399559,15.00,T&S UK - Subsistence
BEIS,UKRI - BBSRC,07/02/2019,T&S UK - Public Transport,CE - IRU,Unspecified,98399562,36.00,T&S UK - Public Transport
BEIS,UKRI - BBSRC,07/02/2019,T&S UK - Public Transport,CE - IRU,Unspecified,98399562,38.00,T&S UK - Public Transport
BEIS,UKRI - BBSRC,07/02/2019,T&S UK - Subsistence,CE - IRU,Unspecified,98399562,50.00,T&S UK - Subsistence
BEIS,UKRI - BBSRC,08/02/2019,Other Programme Costs,CIMG - Information Systems,Jisc Services Ltd,98376756,"370,671.28",Other Programme Costs
BEIS,UKRI - BBSRC,08/02/2019,Computer Software Licences,CIMG - External Relations,Interactive Software,98389164,"6,649.20",Computer Software Licences
BEIS,UKRI - BBSRC,08/02/2019,Other Programme Costs,Innovation and Skills Group CDSU,University of Sheffield,98398426,121.00,Other Programme Costs
BEIS,UKRI - BBSRC,08/02/2019,Other Programme Costs,Science Group � Programme Function,Calder Conference Ltd,98398551,"1,610.00",Other Programme Costs
BEIS,UKRI - BBSRC,08/02/2019,Non-Capital Building Construction,JBOS - Maintenance,Wernick Refurbished Buildings Ltd,98398574,"17,107.20",Non-Capital Building Construction
BEIS,UKRI - BBSRC,08/02/2019,T&S UK - Subsistence,Science Group - Delivery Function,Unspecified,98398651,22.55,T&S UK - Subsistence
BEIS,UKRI - BBSRC,08/02/2019,T&S UK - Subsistence,Science Group - Delivery Function,Unspecified,98398651,5.00,T&S UK - Subsistence
BEIS,UKRI - BBSRC,08/02/2019,Recruitment Costs,PDG - Director,Agenda Resource Management Ltd,98399139,155.91,Recruitment Costs
BEIS,UKRI - BBSRC,08/02/2019,Recruitment Costs,PDG - Director,Agenda Resource Management Ltd,98399146,155.91,Recruitment Costs
BEIS,UKRI - BBSRC,08/02/2019,Data Storage & Recovery,CIMG - Information Management,Iron Mountain (UK) PLC,98399387,511.45,Data Storage & Recovery
BEIS,UKRI - BBSRC,08/02/2019,T&S UK - Subsistence,RISD - UKRO,Unspecified,98399561,10.00,T&S UK - Subsistence
BEIS,UKRI - BBSRC,08/02/2019,Conferences & Seminars,CE - CPS,The Oxford Farming Conference,98399866,"1,062.00",Conferences & Seminars
BEIS,UKRI - BBSRC,08/02/2019,Legal & Professional Services,FG - Estates,Powis Hughes Ltd,98400036,"1,800.00",Legal & Professional Services
BEIS,UKRI - BBSRC,08/02/2019,Legal & Professional Services,CIMG - External Relations,DUNFORD CONSULTING LTD,98400076,150.00,Legal & Professional Services
BEIS,UKRI - BBSRC,08/02/2019,Meetings & Catering,CE - Chief Executive,Harbour & Jones Ltd T/A Dartmouth House,98400115,6.00,Meetings & Catering
BEIS,UKRI - BBSRC,08/02/2019,Meetings & Catering,Science Group - Delivery Function,Harbour & Jones Ltd T/A Dartmouth House,98400115,12.06,Meetings & Catering
BEIS,UKRI - BBSRC,08/02/2019,T&S UK - Subsistence,CE - IRU,Unspecified,98400160,10.00,T&S UK - Subsistence
BEIS,UKRI - BBSRC,08/02/2019,T&S UK - Public Transport,CE - IRU,Unspecified,98400162,8.00,T&S UK - Public Transport
BEIS,UKRI - BBSRC,08/02/2019,T&S UK - Public Transport,Science Group,Unspecified,98400163,145.20,T&S UK - Public Transport
BEIS,UKRI - BBSRC,08/02/2019,T&S UK - Subsistence,CIMG - External Relations,Unspecified,98400165,2.15,T&S UK - Subsistence
BEIS,UKRI - BBSRC,08/02/2019,T&S UK - Subsistence,CIMG - External Relations,Unspecified,98400165,5.09,T&S UK - Subsistence
BEIS,UKRI - BBSRC,08/02/2019,T&S UK - Subsistence,CE - IRU,Unspecified,98400166,10.00,T&S UK - Subsistence
BEIS,UKRI - BBSRC,08/02/2019,T&S UK - Other Charges,CE - IRU,Unspecified,98400168,3.75,T&S UK - Other Charges
BEIS,UKRI - BBSRC,08/02/2019,T&S UK - Public Transport,CE - IRU,Unspecified,98400168,5.20,T&S UK - Public Transport
BEIS,UKRI - BBSRC,08/02/2019,T&S UK - Mileage,FG - Estates,Unspecified,98400172,12.60,T&S UK - Mileage
BEIS,UKRI - BBSRC,08/02/2019,T&S UK - Accommodation,Science Group,Unspecified,98400173,216.90,T&S UK - Accommodation
BEIS,UKRI - BBSRC,08/02/2019,T&S UK - Subsistence,Science Group,Unspecified,98400173,26.45,T&S UK - Subsistence
BEIS,UKRI - BBSRC,08/02/2019,T&S UK - Subsistence,Science Group,Unspecified,98400173,10.00,T&S UK - Subsistence
BEIS,UKRI - BBSRC,08/02/2019,T&S UK - Subsistence,Science Group,Unspecified,98400173,2.95,T&S UK - Subsistence
BEIS,UKRI - BBSRC,08/02/2019,T&S UK - Subsistence,RISD - UKRO,Unspecified,98400175,10.09,T&S UK - Subsistence
BEIS,UKRI - BBSRC,08/02/2019,T&S UK - Subsistence,RISD - UKRO,Unspecified,98400175,9.95,T&S UK - Subsistence
BEIS,UKRI - BBSRC,08/02/2019,T&S UK - Subsistence,RISD - UKRO,Unspecified,98400175,2.68,T&S UK - Subsistence
BEIS,UKRI - BBSRC,11/02/2019,T&S UK - Public Transport,Science Group,Unspecified,98399560,8.40,T&S UK - Public Transport
BEIS,UKRI - BBSRC,11/02/2019,T&S UK - Public Transport,Science Group,Unspecified,98399560,4.90,T&S UK - Public Transport
BEIS,UKRI - BBSRC,11/02/2019,T&S UK - Subsistence,Science Group,Unspecified,98399560,4.80,T&S UK - Subsistence
BEIS,UKRI - BBSRC,11/02/2019,T&S UK - Subsistence,Science Group,Unspecified,98399560,65.24,T&S UK - Subsistence
BEIS,UKRI - BBSRC,11/02/2019,T&S UK - Subsistence,Science Group,Unspecified,98399560,25.00,T&S UK - Subsistence
BEIS,UKRI - BBSRC,11/02/2019,Staff Training,PDG - Director,New College Swindon,98400368,"1,500.00",Staff Training
BEIS,UKRI - BBSRC,11/02/2019,Health & Safety (inc. Medicals & Opticians),PDG - Director,Premier Farnell UK Ltd T/A Farnell Onecall,98400809,20.74,Health & Safety (inc. Medicals & Opticians)
BEIS,UKRI - BBSRC,11/02/2019,Legal & Professional Services,CIMG - External Relations,Understanding Animal Research,98400876,"16,400.00",Legal & Professional Services
BEIS,UKRI - BBSRC,11/02/2019,General Building Maintenance,JBOS - Maintenance,OSE Security Systems Ltd,98401069,216.00,General Building Maintenance
BEIS,UKRI - BBSRC,11/02/2019,General Building Maintenance,JBOS - Maintenance,OSE Security Systems Ltd,98401069,72.00,General Building Maintenance
BEIS,UKRI - BBSRC,11/02/2019,Water,JBOS - Maintenance,Castle Water Ltd,98401113,"2,417.41",Water
BEIS,UKRI - BBSRC,11/02/2019,Agency Staff,PDG - Director,Hays Specialist Recruitment Ltd,98401138,859.50,Agency Staff
BEIS,UKRI - BBSRC,11/02/2019,Health & Safety (inc. Medicals & Opticians),PDG - Director,Swindon Occupational Medical Services Ltd,98401170,900.00,Health & Safety (inc. Medicals & Opticians)
BEIS,UKRI - BBSRC,12/02/2019,Research Grant Expenditure,Science Group,Medical Research Council,98369539,"99,610.82",Research Grant Expenditure
BEIS,UKRI - BBSRC,12/02/2019,Research Grant Expenditure,Science Group,Medical Research Council,98389772,"-99,610.82",Research Grant Expenditure
BEIS,UKRI - BBSRC,12/02/2019,Research Grant Expenditure,Science Group,Medical Research Council,98399815,"746,875.00",Research Grant Expenditure
BEIS,UKRI - BBSRC,12/02/2019,Non-staff travel and subsistance,Science Group - Delivery Function,Corporate Travel Management (North) Ltd,98401335,49.30,Non-staff travel and subsistance
BEIS,UKRI - BBSRC,12/02/2019,Non-staff travel and subsistance,Science Group - Delivery Function,Corporate Travel Management (North) Ltd,98401335,49.30,Non-staff travel and subsistance
BEIS,UKRI - BBSRC,12/02/2019,Non-staff travel and subsistance,Science Group - Delivery Function,Corporate Travel Management (North) Ltd,98401335,0.50,Non-staff travel and subsistance
BEIS,UKRI - BBSRC,12/02/2019,Non-staff travel and subsistance,Science Group - Delivery Function,Corporate Travel Management (North) Ltd,98401335,37.00,Non-staff travel and subsistance
BEIS,UKRI - BBSRC,12/02/2019,Non-staff travel and subsistance,Science Group - Delivery Function,Corporate Travel Management (North) Ltd,98401335,158.00,Non-staff travel and subsistance
BEIS,UKRI - BBSRC,12/02/2019,Non-staff travel and subsistance,Science Group - Delivery Function,Corporate Travel Management (North) Ltd,98401335,322.94,Non-staff travel and subsistance
BEIS,UKRI - BBSRC,12/02/2019,Non-staff travel and subsistance,Science Group - Delivery Function,Corporate Travel Management (North) Ltd,98401335,0.10,Non-staff travel and subsistance
BEIS,UKRI - BBSRC,12/02/2019,T&S Overseas - Accommodation,CE - IRU,Corporate Travel Management (North) Ltd,98401335,0.50,T&S Overseas - Accommodation
BEIS,UKRI - BBSRC,12/02/2019,T&S Overseas - Accommodation,CE - IRU,Corporate Travel Management (North) Ltd,98401335,0.50,T&S Overseas - Accommodation
BEIS,UKRI - BBSRC,12/02/2019,T&S Overseas - Accommodation,CE - IRU,Corporate Travel Management (North) Ltd,98401335,0.50,T&S Overseas - Accommodation
BEIS,UKRI - BBSRC,12/02/2019,T&S Overseas - Accommodation,CE - IRU,Corporate Travel Management (North) Ltd,98401335,0.50,T&S Overseas - Accommodation
BEIS,UKRI - BBSRC,12/02/2019,T&S Overseas - Accommodation,CE - IRU,Corporate Travel Management (North) Ltd,98401335,0.20,T&S Overseas - Accommodation
BEIS,UKRI - BBSRC,12/02/2019,T&S Overseas - Accommodation,CE - IRU,Corporate Travel Management (North) Ltd,98401335,0.20,T&S Overseas - Accommodation
BEIS,UKRI - BBSRC,12/02/2019,T&S Overseas - Accommodation,FG - RCUK Assurance,Corporate Travel Management (North) Ltd,98401335,451.01,T&S Overseas - Accommodation
BEIS,UKRI - BBSRC,12/02/2019,T&S Overseas - Accommodation,FG - RCUK Assurance,Corporate Travel Management (North) Ltd,98401335,451.01,T&S Overseas - Accommodation
BEIS,UKRI - BBSRC,12/02/2019,T&S Overseas - Accommodation,Science Group,Corporate Travel Management (North) Ltd,98401335,0.50,T&S Overseas - Accommodation
BEIS,UKRI - BBSRC,12/02/2019,T&S Overseas - Accommodation,Science Group,Corporate Travel Management (North) Ltd,98401335,"1,035.98",T&S Overseas - Accommodation
BEIS,UKRI - BBSRC,12/02/2019,T&S Overseas - Accommodation,Science Group,Corporate Travel Management (North) Ltd,98401335,805.27,T&S Overseas - Accommodation
BEIS,UKRI - BBSRC,12/02/2019,T&S Overseas - Accommodation,Science Group,Corporate Travel Management (North) Ltd,98401335,0.10,T&S Overseas - Accommodation
BEIS,UKRI - BBSRC,12/02/2019,T&S Overseas - Flights,CE - CPS,Corporate Travel Management (North) Ltd,98401335,67.64,T&S Overseas - Flights
BEIS,UKRI - BBSRC,12/02/2019,T&S Overseas - Flights,CE - IRU,Corporate Travel Management (North) Ltd,98401335,199.00,T&S Overseas - Flights
BEIS,UKRI - BBSRC,12/02/2019,T&S Overseas - Flights,CE - IRU,Corporate Travel Management (North) Ltd,98401335,2.16,T&S Overseas - Flights
BEIS,UKRI - BBSRC,12/02/2019,T&S Overseas - Flights,CE - IRU,Corporate Travel Management (North) Ltd,98401335,19.99,T&S Overseas - Flights
BEIS,UKRI - BBSRC,12/02/2019,T&S Overseas - Flights,European Initiatives,Corporate Travel Management (North) Ltd,98401335,2.16,T&S Overseas - Flights
BEIS,UKRI - BBSRC,12/02/2019,T&S Overseas - Flights,European Initiatives,Corporate Travel Management (North) Ltd,98401335,30.00,T&S Overseas - Flights
BEIS,UKRI - BBSRC,12/02/2019,T&S Overseas - Flights,European Initiatives,Corporate Travel Management (North) Ltd,98401335,342.54,T&S Overseas - Flights
BEIS,UKRI - BBSRC,12/02/2019,T&S Overseas - Flights,Science Group,Corporate Travel Management (North) Ltd,98401335,58.32,T&S Overseas - Flights
BEIS,UKRI - BBSRC,12/02/2019,T&S Overseas - Flights,Science Group,Corporate Travel Management (North) Ltd,98401335,157.84,T&S Overseas - Flights
BEIS,UKRI - BBSRC,12/02/2019,T&S Overseas - Flights,Science Group,Corporate Travel Management (North) Ltd,98401335,"1,432.80",T&S Overseas - Flights
BEIS,UKRI - BBSRC,12/02/2019,T&S Overseas - Public Transport,CE - IRU,Corporate Travel Management (North) Ltd,98401335,2.16,T&S Overseas - Public Transport
BEIS,UKRI - BBSRC,12/02/2019,T&S Overseas - Public Transport,CE - IRU,Corporate Travel Management (North) Ltd,98401335,84.00,T&S Overseas - Public Transport
BEIS,UKRI - BBSRC,12/02/2019,T&S Overseas - Public Transport,RISD - UKRO,Corporate Travel Management (North) Ltd,98401335,201.00,T&S Overseas - Public Transport
BEIS,UKRI - BBSRC,12/02/2019,T&S Overseas - Public Transport,RISD - UKRO,Corporate Travel Management (North) Ltd,98401335,202.00,T&S Overseas - Public Transport
BEIS,UKRI - BBSRC,12/02/2019,T&S Overseas - Public Transport,RISD - UKRO,Corporate Travel Management (North) Ltd,98401335,224.00,T&S Overseas - Public Transport
BEIS,UKRI - BBSRC,12/02/2019,T&S Overseas - Public Transport,RISD - UKRO,Corporate Travel Management (North) Ltd,98401335,115.00,T&S Overseas - Public Transport
BEIS,UKRI - BBSRC,12/02/2019,T&S Overseas - Public Transport,RISD - UKRO,Corporate Travel Management (North) Ltd,98401335,50.00,T&S Overseas - Public Transport
BEIS,UKRI - BBSRC,12/02/2019,T&S Overseas - Public Transport,RISD - UKRO,Corporate Travel Management (North) Ltd,98401335,180.00,T&S Overseas - Public Transport
BEIS,UKRI - BBSRC,12/02/2019,T&S Overseas - Public Transport,RISD - UKRO,Corporate Travel Management (North) Ltd,98401335,132.00,T&S Overseas - Public Transport
BEIS,UKRI - BBSRC,12/02/2019,T&S Overseas - Public Transport,RISD - UKRO,Corporate Travel Management (North) Ltd,98401335,157.00,T&S Overseas - Public Transport
BEIS,UKRI - BBSRC,12/02/2019,T&S Overseas - Public Transport,RISD - UKRO,Corporate Travel Management (North) Ltd,98401335,241.00,T&S Overseas - Public Transport
BEIS,UKRI - BBSRC,12/02/2019,T&S Overseas - Public Transport,RISD - UKRO,Corporate Travel Management (North) Ltd,98401335,84.00,T&S Overseas - Public Transport
BEIS,UKRI - BBSRC,12/02/2019,T&S Overseas - Public Transport,RISD - UKRO,Corporate Travel Management (North) Ltd,98401335,154.00,T&S Overseas - Public Transport
BEIS,UKRI - BBSRC,12/02/2019,T&S Overseas - Public Transport,RISD - UKRO,Corporate Travel Management (North) Ltd,98401335,101.00,T&S Overseas - Public Transport
BEIS,UKRI - BBSRC,12/02/2019,T&S Overseas - Public Transport,RISD - UKRO,Corporate Travel Management (North) Ltd,98401335,161.00,T&S Overseas - Public Transport
BEIS,UKRI - BBSRC,12/02/2019,T&S Overseas - Public Transport,RISD - UKRO,Corporate Travel Management (North) Ltd,98401335,182.00,T&S Overseas - Public Transport
BEIS,UKRI - BBSRC,12/02/2019,T&S Overseas - Public Transport,RISD - UKRO,Corporate Travel Management (North) Ltd,98401335,89.00,T&S Overseas - Public Transport
BEIS,UKRI - BBSRC,12/02/2019,T&S Overseas - Public Transport,RISD - UKRO,Corporate Travel Management (North) Ltd,98401335,152.00,T&S Overseas - Public Transport
BEIS,UKRI - BBSRC,12/02/2019,T&S Overseas - Public Transport,RISD - UKRO,Corporate Travel Management (North) Ltd,98401335,194.00,T&S Overseas - Public Transport
BEIS,UKRI - BBSRC,12/02/2019,T&S Overseas - Public Transport,RISD - UKRO,Corporate Travel Management (North) Ltd,98401335,111.00,T&S Overseas - Public Transport
BEIS,UKRI - BBSRC,12/02/2019,T&S Overseas - Public Transport,RISD - UKRO,Corporate Travel Management (North) Ltd,98401335,124.00,T&S Overseas - Public Transport
BEIS,UKRI - BBSRC,12/02/2019,T&S Overseas - Public Transport,RISD - UKRO,Corporate Travel Management (North) Ltd,98401335,133.00,T&S Overseas - Public Transport
BEIS,UKRI - BBSRC,12/02/2019,T&S Overseas - Public Transport,RISD - UKRO,Corporate Travel Management (North) Ltd,98401335,134.00,T&S Overseas - Public Transport
BEIS,UKRI - BBSRC,12/02/2019,T&S Overseas - Public Transport,RISD - UKRO,Corporate Travel Management (North) Ltd,98401335,150.00,T&S Overseas - Public Transport
BEIS,UKRI - BBSRC,12/02/2019,T&S Overseas - Public Transport,RISD - UKRO,Corporate Travel Management (North) Ltd,98401335,133.00,T&S Overseas - Public Transport
BEIS,UKRI - BBSRC,12/02/2019,T&S Overseas - Public Transport,Science Group,Corporate Travel Management (North) Ltd,98401335,239.00,T&S Overseas - Public Transport
BEIS,UKRI - BBSRC,12/02/2019,T&S UK - Accommodation,CE - Chief Executive,Corporate Travel Management (North) Ltd,98401335,0.50,T&S UK - Accommodation
BEIS,UKRI - BBSRC,12/02/2019,T&S UK - Accommodation,CE - Chief Executive,Corporate Travel Management (North) Ltd,98401335,119.00,T&S UK - Accommodation
BEIS,UKRI - BBSRC,12/02/2019,T&S UK - Accommodation,CE - Chief Executive,Corporate Travel Management (North) Ltd,98401335,0.50,T&S UK - Accommodation
BEIS,UKRI - BBSRC,12/02/2019,T&S UK - Accommodation,CE - Chief Executive,Corporate Travel Management (North) Ltd,98401335,215.00,T&S UK - Accommodation
BEIS,UKRI - BBSRC,12/02/2019,T&S UK - Accommodation,CE - Chief Executive,Corporate Travel Management (North) Ltd,98401335,0.20,T&S UK - Accommodation
BEIS,UKRI - BBSRC,12/02/2019,T&S UK - Accommodation,CE - IRU,Corporate Travel Management (North) Ltd,98401335,0.50,T&S UK - Accommodation
BEIS,UKRI - BBSRC,12/02/2019,T&S UK - Accommodation,CE - IRU,Corporate Travel Management (North) Ltd,98401335,259.20,T&S UK - Accommodation
BEIS,UKRI - BBSRC,12/02/2019,T&S UK - Accommodation,CE - IRU,Corporate Travel Management (North) Ltd,98401335,0.10,T&S UK - Accommodation
BEIS,UKRI - BBSRC,12/02/2019,T&S UK - Accommodation,CIMG - Director,Corporate Travel Management (North) Ltd,98401335,0.50,T&S UK - Accommodation
BEIS,UKRI - BBSRC,12/02/2019,T&S UK - Accommodation,CIMG - Director,Corporate Travel Management (North) Ltd,98401335,0.10,T&S UK - Accommodation
BEIS,UKRI - BBSRC,12/02/2019,T&S UK - Accommodation,CIMG - External Relations,Corporate Travel Management (North) Ltd,98401335,0.50,T&S UK - Accommodation
BEIS,UKRI - BBSRC,12/02/2019,T&S UK - Accommodation,CIMG - External Relations,Corporate Travel Management (North) Ltd,98401335,204.00,T&S UK - Accommodation
BEIS,UKRI - BBSRC,12/02/2019,T&S UK - Accommodation,CIMG - External Relations,Corporate Travel Management (North) Ltd,98401335,0.50,T&S UK - Accommodation
BEIS,UKRI - BBSRC,12/02/2019,T&S UK - Accommodation,CIMG - External Relations,Corporate Travel Management (North) Ltd,98401335,204.00,T&S UK - Accommodation
BEIS,UKRI - BBSRC,12/02/2019,T&S UK - Accommodation,CIMG - External Relations,Corporate Travel Management (North) Ltd,98401335,0.20,T&S UK - Accommodation
BEIS,UKRI - BBSRC,12/02/2019,T&S UK - Accommodation,CIMG - Programme Office,Corporate Travel Management (North) Ltd,98401335,0.50,T&S UK - Accommodation
BEIS,UKRI - BBSRC,12/02/2019,T&S UK - Accommodation,CIMG - Programme Office,Corporate Travel Management (North) Ltd,98401335,89.00,T&S UK - Accommodation
BEIS,UKRI - BBSRC,12/02/2019,T&S UK - Accommodation,CIMG - Programme Office,Corporate Travel Management (North) Ltd,98401335,0.50,T&S UK - Accommodation
BEIS,UKRI - BBSRC,12/02/2019,T&S UK - Accommodation,CIMG - Programme Office,Corporate Travel Management (North) Ltd,98401335,1.44,T&S UK - Accommodation
BEIS,UKRI - BBSRC,12/02/2019,T&S UK - Accommodation,CIMG - Programme Office,Corporate Travel Management (North) Ltd,98401335,176.00,T&S UK - Accommodation
BEIS,UKRI - BBSRC,12/02/2019,T&S UK - Accommodation,CIMG - Programme Office,Corporate Travel Management (North) Ltd,98401335,0.49,T&S UK - Accommodation
BEIS,UKRI - BBSRC,12/02/2019,T&S UK - Accommodation,European Initiatives,Corporate Travel Management (North) Ltd,98401335,0.50,T&S UK - Accommodation
BEIS,UKRI - BBSRC,12/02/2019,T&S UK - Accommodation,European Initiatives,Corporate Travel Management (North) Ltd,98401335,70.00,T&S UK - Accommodation
BEIS,UKRI - BBSRC,12/02/2019,T&S UK - Accommodation,European Initiatives,Corporate Travel Management (North) Ltd,98401335,0.50,T&S UK - Accommodation
BEIS,UKRI - BBSRC,12/02/2019,T&S UK - Accommodation,European Initiatives,Corporate Travel Management (North) Ltd,98401335,70.00,T&S UK - Accommodation
BEIS,UKRI - BBSRC,12/02/2019,T&S UK - Accommodation,European Initiatives,Corporate Travel Management (North) Ltd,98401335,0.50,T&S UK - Accommodation
BEIS,UKRI - BBSRC,12/02/2019,T&S UK - Accommodation,European Initiatives,Corporate Travel Management (North) Ltd,98401335,185.00,T&S UK - Accommodation
BEIS,UKRI - BBSRC,12/02/2019,T&S UK - Accommodation,European Initiatives,Corporate Travel Management (North) Ltd,98401335,0.50,T&S UK - Accommodation
BEIS,UKRI - BBSRC,12/02/2019,T&S UK - Accommodation,European Initiatives,Corporate Travel Management (North) Ltd,98401335,175.00,T&S UK - Accommodation
BEIS,UKRI - BBSRC,12/02/2019,T&S UK - Accommodation,European Initiatives,Corporate Travel Management (North) Ltd,98401335,0.50,T&S UK - Accommodation
BEIS,UKRI - BBSRC,12/02/2019,T&S UK - Accommodation,European Initiatives,Corporate Travel Management (North) Ltd,98401335,1.44,T&S UK - Accommodation
BEIS,UKRI - BBSRC,12/02/2019,T&S UK - Accommodation,European Initiatives,Corporate Travel Management (North) Ltd,98401335,0.50,T&S UK - Accommodation
BEIS,UKRI - BBSRC,12/02/2019,T&S UK - Accommodation,European Initiatives,Corporate Travel Management (North) Ltd,98401335,184.80,T&S UK - Accommodation
BEIS,UKRI - BBSRC,12/02/2019,T&S UK - Accommodation,European Initiatives,Corporate Travel Management (North) Ltd,98401335,0.39,T&S UK - Accommodation
BEIS,UKRI - BBSRC,12/02/2019,T&S UK - Accommodation,European Initiatives,Corporate Travel Management (North) Ltd,98401335,0.10,T&S UK - Accommodation
BEIS,UKRI - BBSRC,12/02/2019,T&S UK - Accommodation,European Initiatives,Corporate Travel Management (North) Ltd,98401335,0.30,T&S UK - Accommodation
BEIS,UKRI - BBSRC,12/02/2019,T&S UK - Accommodation,European Initiatives,Corporate Travel Management (North) Ltd,98401335,0.10,T&S UK - Accommodation
BEIS,UKRI - BBSRC,12/02/2019,T&S UK - Accommodation,FG - Accounts & Business Planning,Corporate Travel Management (North) Ltd,98401335,0.50,T&S UK - Accommodation
BEIS,UKRI - BBSRC,12/02/2019,T&S UK - Accommodation,FG - Accounts & Business Planning,Corporate Travel Management (North) Ltd,98401335,70.00,T&S UK - Accommodation
BEIS,UKRI - BBSRC,12/02/2019,T&S UK - Accommodation,FG - Accounts & Business Planning,Corporate Travel Management (North) Ltd,98401335,0.10,T&S UK - Accommodation
BEIS,UKRI - BBSRC,12/02/2019,T&S UK - Accommodation,FG - Director,Corporate Travel Management (North) Ltd,98401335,0.50,T&S UK - Accommodation
BEIS,UKRI - BBSRC,12/02/2019,T&S UK - Accommodation,FG - Director,Corporate Travel Management (North) Ltd,98401335,123.50,T&S UK - Accommodation
BEIS,UKRI - BBSRC,12/02/2019,T&S UK - Accommodation,FG - Director,Corporate Travel Management (North) Ltd,98401335,0.50,T&S UK - Accommodation
BEIS,UKRI - BBSRC,12/02/2019,T&S UK - Accommodation,FG - Director,Corporate Travel Management (North) Ltd,98401335,85.00,T&S UK - Accommodation
BEIS,UKRI - BBSRC,12/02/2019,T&S UK - Accommodation,FG - Director,Corporate Travel Management (North) Ltd,98401335,0.50,T&S UK - Accommodation
BEIS,UKRI - BBSRC,12/02/2019,T&S UK - Accommodation,FG - Director,Corporate Travel Management (North) Ltd,98401335,132.00,T&S UK - Accommodation
BEIS,UKRI - BBSRC,12/02/2019,T&S UK - Accommodation,FG - Director,Corporate Travel Management (North) Ltd,98401335,0.30,T&S UK - Accommodation
BEIS,UKRI - BBSRC,12/02/2019,T&S UK - Accommodation,FG - Estates,Corporate Travel Management (North) Ltd,98401335,0.50,T&S UK - Accommodation
BEIS,UKRI - BBSRC,12/02/2019,T&S UK - Accommodation,FG - Estates,Corporate Travel Management (North) Ltd,98401335,85.00,T&S UK - Accommodation
BEIS,UKRI - BBSRC,12/02/2019,T&S UK - Accommodation,FG - Estates,Corporate Travel Management (North) Ltd,98401335,1.00,T&S UK - Accommodation
BEIS,UKRI - BBSRC,12/02/2019,T&S UK - Accommodation,FG - Estates,Corporate Travel Management (North) Ltd,98401335,195.00,T&S UK - Accommodation
BEIS,UKRI - BBSRC,12/02/2019,T&S UK - Accommodation,FG - Estates,Corporate Travel Management (North) Ltd,98401335,1.00,T&S UK - Accommodation
BEIS,UKRI - BBSRC,12/02/2019,T&S UK - Accommodation,FG - Estates,Corporate Travel Management (North) Ltd,98401335,195.00,T&S UK - Accommodation
BEIS,UKRI - BBSRC,12/02/2019,T&S UK - Accommodation,FG - Estates,Corporate Travel Management (North) Ltd,98401335,0.50,T&S UK - Accommodation
BEIS,UKRI - BBSRC,12/02/2019,T&S UK - Accommodation,FG - Estates,Corporate Travel Management (North) Ltd,98401335,179.55,T&S UK - Accommodation
BEIS,UKRI - BBSRC,12/02/2019,T&S UK - Accommodation,FG - Estates,Corporate Travel Management (North) Ltd,98401335,0.50,T&S UK - Accommodation
BEIS,UKRI - BBSRC,12/02/2019,T&S UK - Accommodation,FG - Estates,Corporate Travel Management (North) Ltd,98401335,214.70,T&S UK - Accommodation
BEIS,UKRI - BBSRC,12/02/2019,T&S UK - Accommodation,FG - Estates,Corporate Travel Management (North) Ltd,98401335,1.00,T&S UK - Accommodation
BEIS,UKRI - BBSRC,12/02/2019,T&S UK - Accommodation,FG - Estates,Corporate Travel Management (North) Ltd,98401335,140.00,T&S UK - Accommodation
BEIS,UKRI - BBSRC,12/02/2019,T&S UK - Accommodation,FG - Estates,Corporate Travel Management (North) Ltd,98401335,0.50,T&S UK - Accommodation
BEIS,UKRI - BBSRC,12/02/2019,T&S UK - Accommodation,FG - Estates,Corporate Travel Management (North) Ltd,98401335,76.00,T&S UK - Accommodation
BEIS,UKRI - BBSRC,12/02/2019,T&S UK - Accommodation,FG - Estates,Corporate Travel Management (North) Ltd,98401335,1.00,T&S UK - Accommodation
BEIS,UKRI - BBSRC,12/02/2019,T&S UK - Accommodation,Innovation and Skills Group,Corporate Travel Management (North) Ltd,98401335,0.50,T&S UK - Accommodation
BEIS,UKRI - BBSRC,12/02/2019,T&S UK - Accommodation,Innovation and Skills Group,Corporate Travel Management (North) Ltd,98401335,89.00,T&S UK - Accommodation
BEIS,UKRI - BBSRC,12/02/2019,T&S UK - Accommodation,Innovation and Skills Group,Corporate Travel Management (North) Ltd,98401335,0.50,T&S UK - Accommodation
BEIS,UKRI - BBSRC,12/02/2019,T&S UK - Accommodation,Innovation and Skills Group,Corporate Travel Management (North) Ltd,98401335,150.00,T&S UK - Accommodation
BEIS,UKRI - BBSRC,12/02/2019,T&S UK - Accommodation,Innovation and Skills Group,Corporate Travel Management (North) Ltd,98401335,0.50,T&S UK - Accommodation
BEIS,UKRI - BBSRC,12/02/2019,T&S UK - Accommodation,Innovation and Skills Group,Corporate Travel Management (North) Ltd,98401335,86.00,T&S UK - Accommodation
BEIS,UKRI - BBSRC,12/02/2019,T&S UK - Accommodation,Innovation and Skills Group,Corporate Travel Management (North) Ltd,98401335,0.50,T&S UK - Accommodation
BEIS,UKRI - BBSRC,12/02/2019,T&S UK - Accommodation,Innovation and Skills Group,Corporate Travel Management (North) Ltd,98401335,150.00,T&S UK - Accommodation
BEIS,UKRI - BBSRC,12/02/2019,T&S UK - Accommodation,Innovation and Skills Group,Corporate Travel Management (North) Ltd,98401335,0.50,T&S UK - Accommodation
BEIS,UKRI - BBSRC,12/02/2019,T&S UK - Accommodation,Innovation and Skills Group,Corporate Travel Management (North) Ltd,98401335,169.00,T&S UK - Accommodation
BEIS,UKRI - BBSRC,12/02/2019,T&S UK - Accommodation,Innovation and Skills Group,Corporate Travel Management (North) Ltd,98401335,0.50,T&S UK - Accommodation
BEIS,UKRI - BBSRC,12/02/2019,T&S UK - Accommodation,Innovation and Skills Group,Corporate Travel Management (North) Ltd,98401335,158.00,T&S UK - Accommodation
BEIS,UKRI - BBSRC,12/02/2019,T&S UK - Accommodation,Innovation and Skills Group,Corporate Travel Management (North) Ltd,98401335,0.60,T&S UK - Accommodation
BEIS,UKRI - BBSRC,12/02/2019,T&S UK - Accommodation,RISD - UKRO,Corporate Travel Management (North) Ltd,98401335,0.50,T&S UK - Accommodation
BEIS,UKRI - BBSRC,12/02/2019,T&S UK - Accommodation,RISD - UKRO,Corporate Travel Management (North) Ltd,98401335,130.00,T&S UK - Accommodation
BEIS,UKRI - BBSRC,12/02/2019,T&S UK - Accommodation,RISD - UKRO,Corporate Travel Management (North) Ltd,98401335,0.50,T&S UK - Accommodation
BEIS,UKRI - BBSRC,12/02/2019,T&S UK - Accommodation,RISD - UKRO,Corporate Travel Management (North) Ltd,98401335,110.00,T&S UK - Accommodation
BEIS,UKRI - BBSRC,12/02/2019,T&S UK - Accommodation,RISD - UKRO,Corporate Travel Management (North) Ltd,98401335,0.50,T&S UK - Accommodation
BEIS,UKRI - BBSRC,12/02/2019,T&S UK - Accommodation,RISD - UKRO,Corporate Travel Management (North) Ltd,98401335,114.81,T&S UK - Accommodation
BEIS,UKRI - BBSRC,12/02/2019,T&S UK - Accommodation,RISD - UKRO,Corporate Travel Management (North) Ltd,98401335,0.50,T&S UK - Accommodation
BEIS,UKRI - BBSRC,12/02/2019,T&S UK - Accommodation,RISD - UKRO,Corporate Travel Management (North) Ltd,98401335,87.00,T&S UK - Accommodation
BEIS,UKRI - BBSRC,12/02/2019,T&S UK - Accommodation,RISD - UKRO,Corporate Travel Management (North) Ltd,98401335,0.50,T&S UK - Accommodation
BEIS,UKRI - BBSRC,12/02/2019,T&S UK - Accommodation,RISD - UKRO,Corporate Travel Management (North) Ltd,98401335,170.00,T&S UK - Accommodation
BEIS,UKRI - BBSRC,12/02/2019,T&S UK - Accommodation,RISD - UKRO,Corporate Travel Management (North) Ltd,98401335,0.10,T&S UK - Accommodation
BEIS,UKRI - BBSRC,12/02/2019,T&S UK - Accommodation,RISD - UKRO,Corporate Travel Management (North) Ltd,98401335,0.40,T&S UK - Accommodation
BEIS,UKRI - BBSRC,12/02/2019,T&S UK - Accommodation,Science Group,Corporate Travel Management (North) Ltd,98401335,0.50,T&S UK - Accommodation
BEIS,UKRI - BBSRC,12/02/2019,T&S UK - Accommodation,Science Group,Corporate Travel Management (North) Ltd,98401335,120.00,T&S UK - Accommodation
BEIS,UKRI - BBSRC,12/02/2019,T&S UK - Accommodation,Science Group,Corporate Travel Management (North) Ltd,98401335,0.50,T&S UK - Accommodation
BEIS,UKRI - BBSRC,12/02/2019,T&S UK - Accommodation,Science Group,Corporate Travel Management (North) Ltd,98401335,120.00,T&S UK - Accommodation
BEIS,UKRI - BBSRC,12/02/2019,T&S UK - Accommodation,Science Group,Corporate Travel Management (North) Ltd,98401335,0.50,T&S UK - Accommodation
BEIS,UKRI - BBSRC,12/02/2019,T&S UK - Accommodation,Science Group,Corporate Travel Management (North) Ltd,98401335,0.50,T&S UK - Accommodation
BEIS,UKRI - BBSRC,12/02/2019,T&S UK - Accommodation,Science Group,Corporate Travel Management (North) Ltd,98401335,130.00,T&S UK - Accommodation
BEIS,UKRI - BBSRC,12/02/2019,T&S UK - Accommodation,Science Group,Corporate Travel Management (North) Ltd,98401335,0.50,T&S UK - Accommodation
BEIS,UKRI - BBSRC,12/02/2019,T&S UK - Accommodation,Science Group,Corporate Travel Management (North) Ltd,98401335,136.00,T&S UK - Accommodation
BEIS,UKRI - BBSRC,12/02/2019,T&S UK - Accommodation,Science Group,Corporate Travel Management (North) Ltd,98401335,0.50,T&S UK - Accommodation
BEIS,UKRI - BBSRC,12/02/2019,T&S UK - Accommodation,Science Group,Corporate Travel Management (North) Ltd,98401335,149.00,T&S UK - Accommodation
BEIS,UKRI - BBSRC,12/02/2019,T&S UK - Accommodation,Science Group,Corporate Travel Management (North) Ltd,98401335,0.50,T&S UK - Accommodation
BEIS,UKRI - BBSRC,12/02/2019,T&S UK - Accommodation,Science Group,Corporate Travel Management (North) Ltd,98401335,82.40,T&S UK - Accommodation
BEIS,UKRI - BBSRC,12/02/2019,T&S UK - Accommodation,Science Group,Corporate Travel Management (North) Ltd,98401335,0.50,T&S UK - Accommodation
BEIS,UKRI - BBSRC,12/02/2019,T&S UK - Accommodation,Science Group,Corporate Travel Management (North) Ltd,98401335,1.44,T&S UK - Accommodation
BEIS,UKRI - BBSRC,12/02/2019,T&S UK - Accommodation,Science Group,Corporate Travel Management (North) Ltd,98401335,212.00,T&S UK - Accommodation
BEIS,UKRI - BBSRC,12/02/2019,T&S UK - Accommodation,Science Group,Corporate Travel Management (North) Ltd,98401335,0.50,T&S UK - Accommodation
BEIS,UKRI - BBSRC,12/02/2019,T&S UK - Accommodation,Science Group,Corporate Travel Management (North) Ltd,98401335,76.00,T&S UK - Accommodation
BEIS,UKRI - BBSRC,12/02/2019,T&S UK - Accommodation,Science Group,Corporate Travel Management (North) Ltd,98401335,0.50,T&S UK - Accommodation
BEIS,UKRI - BBSRC,12/02/2019,T&S UK - Accommodation,Science Group,Corporate Travel Management (North) Ltd,98401335,251.40,T&S UK - Accommodation
BEIS,UKRI - BBSRC,12/02/2019,T&S UK - Accommodation,Science Group,Corporate Travel Management (North) Ltd,98401335,0.50,T&S UK - Accommodation
BEIS,UKRI - BBSRC,12/02/2019,T&S UK - Accommodation,Science Group,Corporate Travel Management (North) Ltd,98401335,135.00,T&S UK - Accommodation
BEIS,UKRI - BBSRC,12/02/2019,T&S UK - Accommodation,Science Group,Corporate Travel Management (North) Ltd,98401335,0.10,T&S UK - Accommodation
BEIS,UKRI - BBSRC,12/02/2019,T&S UK - Accommodation,Science Group,Corporate Travel Management (North) Ltd,98401335,0.20,T&S UK - Accommodation
BEIS,UKRI - BBSRC,12/02/2019,T&S UK - Accommodation,Science Group,Corporate Travel Management (North) Ltd,98401335,0.70,T&S UK - Accommodation
BEIS,UKRI - BBSRC,12/02/2019,T&S UK - Accommodation,Science Group,Corporate Travel Management (North) Ltd,98401335,0.39,T&S UK - Accommodation
BEIS,UKRI - BBSRC,12/02/2019,T&S UK - Flights,CE - Chief Executive,Corporate Travel Management (North) Ltd,98401335,39.18,T&S UK - Flights
BEIS,UKRI - BBSRC,12/02/2019,T&S UK - Flights,CE - Chief Executive,Corporate Travel Management (North) Ltd,98401335,57.44,T&S UK - Flights
BEIS,UKRI - BBSRC,12/02/2019,T&S UK - Flights,CE - IRU,Corporate Travel Management (North) Ltd,98401335,199.00,T&S UK - Flights
BEIS,UKRI - BBSRC,12/02/2019,T&S UK - Flights,CIMG - External Relations,Corporate Travel Management (North) Ltd,98401335,85.42,T&S UK - Flights
BEIS,UKRI - BBSRC,12/02/2019,T&S UK - Flights,CIMG - External Relations,Corporate Travel Management (North) Ltd,98401335,85.42,T&S UK - Flights
BEIS,UKRI - BBSRC,12/02/2019,T&S UK - Flights,FG - Estates,Corporate Travel Management (North) Ltd,98401335,29.24,T&S UK - Flights
BEIS,UKRI - BBSRC,12/02/2019,T&S UK - Flights,FG - Estates,Corporate Travel Management (North) Ltd,98401335,29.24,T&S UK - Flights
BEIS,UKRI - BBSRC,12/02/2019,T&S UK - Flights,FG - Estates,Corporate Travel Management (North) Ltd,98401335,59.15,T&S UK - Flights
BEIS,UKRI - BBSRC,12/02/2019,T&S UK - Flights,Innovation and Skills Group,Corporate Travel Management (North) Ltd,98401335,82.56,T&S UK - Flights
BEIS,UKRI - BBSRC,12/02/2019,T&S UK - Flights,Innovation and Skills Group,Corporate Travel Management (North) Ltd,98401335,84.38,T&S UK - Flights
BEIS,UKRI - BBSRC,12/02/2019,T&S UK - Flights,Science Group,Corporate Travel Management (North) Ltd,98401335,92.66,T&S UK - Flights
BEIS,UKRI - BBSRC,12/02/2019,T&S UK - Flights,Science Group - Delivery Function,Corporate Travel Management (North) Ltd,98401335,92.66,T&S UK - Flights
BEIS,UKRI - BBSRC,12/02/2019,T&S UK - Public Transport,CE - CPS,Corporate Travel Management (North) Ltd,98401335,48.20,T&S UK - Public Transport
BEIS,UKRI - BBSRC,12/02/2019,T&S UK - Public Transport,CE - CPS,Corporate Travel Management (North) Ltd,98401335,20.60,T&S UK - Public Transport
BEIS,UKRI - BBSRC,12/02/2019,T&S UK - Public Transport,CE - CPS,Corporate Travel Management (North) Ltd,98401335,48.20,T&S UK - Public Transport
BEIS,UKRI - BBSRC,12/02/2019,T&S UK - Public Transport,CE - CPS,Corporate Travel Management (North) Ltd,98401335,144.70,T&S UK - Public Transport
BEIS,UKRI - BBSRC,12/02/2019,T&S UK - Public Transport,CE - CPS,Corporate Travel Management (North) Ltd,98401335,144.70,T&S UK - Public Transport
BEIS,UKRI - BBSRC,12/02/2019,T&S UK - Public Transport,CE - CPS,Corporate Travel Management (North) Ltd,98401335,144.70,T&S UK - Public Transport
BEIS,UKRI - BBSRC,12/02/2019,T&S UK - Public Transport,CE - CPS,Corporate Travel Management (North) Ltd,98401335,-41.80,T&S UK - Public Transport
BEIS,UKRI - BBSRC,12/02/2019,T&S UK - Public Transport,CE - CPS,Corporate Travel Management (North) Ltd,98401335,165.00,T&S UK - Public Transport
BEIS,UKRI - BBSRC,12/02/2019,T&S UK - Public Transport,CE - CPS,Corporate Travel Management (North) Ltd,98401335,-135.30,T&S UK - Public Transport
BEIS,UKRI - BBSRC,12/02/2019,T&S UK - Public Transport,CE - CPS,Corporate Travel Management (North) Ltd,98401335,37.00,T&S UK - Public Transport
BEIS,UKRI - BBSRC,12/02/2019,T&S UK - Public Transport,CE - CPS,Corporate Travel Management (North) Ltd,98401335,68.20,T&S UK - Public Transport
BEIS,UKRI - BBSRC,12/02/2019,T&S UK - Public Transport,CE - CPS,Corporate Travel Management (North) Ltd,98401335,-64.80,T&S UK - Public Transport
BEIS,UKRI - BBSRC,12/02/2019,T&S UK - Public Transport,CE - Chief Executive,Corporate Travel Management (North) Ltd,98401335,216.00,T&S UK - Public Transport
BEIS,UKRI - BBSRC,12/02/2019,T&S UK - Public Transport,CE - Chief Executive,Corporate Travel Management (North) Ltd,98401335,-107.50,T&S UK - Public Transport
BEIS,UKRI - BBSRC,12/02/2019,T&S UK - Public Transport,CE - Chief Executive,Corporate Travel Management (North) Ltd,98401335,108.40,T&S UK - Public Transport
BEIS,UKRI - BBSRC,12/02/2019,T&S UK - Public Transport,CE - Chief Executive,Corporate Travel Management (North) Ltd,98401335,178.00,T&S UK - Public Transport
BEIS,UKRI - BBSRC,12/02/2019,T&S UK - Public Transport,CE - Chief Executive,Corporate Travel Management (North) Ltd,98401335,204.00,T&S UK - Public Transport
BEIS,UKRI - BBSRC,12/02/2019,T&S UK - Public Transport,CE - Chief Executive,Corporate Travel Management (North) Ltd,98401335,13.10,T&S UK - Public Transport
BEIS,UKRI - BBSRC,12/02/2019,T&S UK - Public Transport,CE - Chief Executive,Corporate Travel Management (North) Ltd,98401335,79.00,T&S UK - Public Transport
BEIS,UKRI - BBSRC,12/02/2019,T&S UK - Public Transport,CE - Chief Executive,Corporate Travel Management (North) Ltd,98401335,97.80,T&S UK - Public Transport
BEIS,UKRI - BBSRC,12/02/2019,T&S UK - Public Transport,CE - Chief Executive,Corporate Travel Management (North) Ltd,98401335,56.10,T&S UK - Public Transport
BEIS,UKRI - BBSRC,12/02/2019,T&S UK - Public Transport,CE - Chief Executive,Corporate Travel Management (North) Ltd,98401335,32.60,T&S UK - Public Transport
BEIS,UKRI - BBSRC,12/02/2019,T&S UK - Public Transport,CE - Chief Executive,Corporate Travel Management (North) Ltd,98401335,178.00,T&S UK - Public Transport
BEIS,UKRI - BBSRC,12/02/2019,T&S UK - Public Transport,CE - Chief Executive,Corporate Travel Management (North) Ltd,98401335,178.00,T&S UK - Public Transport
BEIS,UKRI - BBSRC,12/02/2019,T&S UK - Public Transport,CE - Chief Executive,Corporate Travel Management (North) Ltd,98401335,44.10,T&S UK - Public Transport
BEIS,UKRI - BBSRC,12/02/2019,T&S UK - Public Transport,CE - Chief Executive,Corporate Travel Management (North) Ltd,98401335,22.00,T&S UK - Public Transport
BEIS,UKRI - BBSRC,12/02/2019,T&S UK - Public Transport,CE - Chief Executive,Corporate Travel Management (North) Ltd,98401335,-37.80,T&S UK - Public Transport
BEIS,UKRI - BBSRC,12/02/2019,T&S UK - Public Transport,CE - IRU,Corporate Travel Management (North) Ltd,98401335,5.00,T&S UK - Public Transport
BEIS,UKRI - BBSRC,12/02/2019,T&S UK - Public Transport,CE - IRU,Corporate Travel Management (North) Ltd,98401335,-19.90,T&S UK - Public Transport
BEIS,UKRI - BBSRC,12/02/2019,T&S UK - Public Transport,CE - IRU,Corporate Travel Management (North) Ltd,98401335,-129.60,T&S UK - Public Transport
BEIS,UKRI - BBSRC,12/02/2019,T&S UK - Public Transport,CE - IRU,Corporate Travel Management (North) Ltd,98401335,10.00,T&S UK - Public Transport
BEIS,UKRI - BBSRC,12/02/2019,T&S UK - Public Transport,CE - IRU,Corporate Travel Management (North) Ltd,98401335,-51.80,T&S UK - Public Transport
BEIS,UKRI - BBSRC,12/02/2019,T&S UK - Public Transport,CE - IRU,Corporate Travel Management (North) Ltd,98401335,74.20,T&S UK - Public Transport
BEIS,UKRI - BBSRC,12/02/2019,T&S UK - Public Transport,CE - IRU,Corporate Travel Management (North) Ltd,98401335,165.00,T&S UK - Public Transport
BEIS,UKRI - BBSRC,12/02/2019,T&S UK - Public Transport,CE - IRU,Corporate Travel Management (North) Ltd,98401335,5.00,T&S UK - Public Transport
BEIS,UKRI - BBSRC,12/02/2019,T&S UK - Public Transport,CE - IRU,Corporate Travel Management (North) Ltd,98401335,-90.70,T&S UK - Public Transport
BEIS,UKRI - BBSRC,12/02/2019,T&S UK - Public Transport,CE - IRU,Corporate Travel Management (North) Ltd,98401335,165.00,T&S UK - Public Transport
BEIS,UKRI - BBSRC,12/02/2019,T&S UK - Public Transport,CE - IRU,Corporate Travel Management (North) Ltd,98401335,57.60,T&S UK - Public Transport
BEIS,UKRI - BBSRC,12/02/2019,T&S UK - Public Transport,CE - IRU,Corporate Travel Management (North) Ltd,98401335,144.00,T&S UK - Public Transport
BEIS,UKRI - BBSRC,12/02/2019,T&S UK - Public Transport,CE - IRU,Corporate Travel Management (North) Ltd,98401335,103.80,T&S UK - Public Transport
BEIS,UKRI - BBSRC,12/02/2019,T&S UK - Public Transport,CE - IRU,Corporate Travel Management (North) Ltd,98401335,114.40,T&S UK - Public Transport
BEIS,UKRI - BBSRC,12/02/2019,T&S UK - Public Transport,CE - IRU,Corporate Travel Management (North) Ltd,98401335,68.20,T&S UK - Public Transport
BEIS,UKRI - BBSRC,12/02/2019,T&S UK - Public Transport,CIMG - External Relations,Corporate Travel Management (North) Ltd,98401335,138.00,T&S UK - Public Transport
BEIS,UKRI - BBSRC,12/02/2019,T&S UK - Public Transport,CIMG - External Relations,Corporate Travel Management (North) Ltd,98401335,144.70,T&S UK - Public Transport
BEIS,UKRI - BBSRC,12/02/2019,T&S UK - Public Transport,CIMG - External Relations,Corporate Travel Management (North) Ltd,98401335,103.80,T&S UK - Public Transport
BEIS,UKRI - BBSRC,12/02/2019,T&S UK - Public Transport,CIMG - External Relations,Corporate Travel Management (North) Ltd,98401335,19.60,T&S UK - Public Transport
BEIS,UKRI - BBSRC,12/02/2019,T&S UK - Public Transport,CIMG - External Relations,Corporate Travel Management (North) Ltd,98401335,19.60,T&S UK - Public Transport
BEIS,UKRI - BBSRC,12/02/2019,T&S UK - Public Transport,CIMG - Programme Office,Corporate Travel Management (North) Ltd,98401335,-135.30,T&S UK - Public Transport
BEIS,UKRI - BBSRC,12/02/2019,T&S UK - Public Transport,CIMG - Programme Office,Corporate Travel Management (North) Ltd,98401335,103.80,T&S UK - Public Transport
BEIS,UKRI - BBSRC,12/02/2019,T&S UK - Public Transport,CIMG - Programme Office,Corporate Travel Management (North) Ltd,98401335,103.80,T&S UK - Public Transport
BEIS,UKRI - BBSRC,12/02/2019,T&S UK - Public Transport,CIMG - Programme Office,Corporate Travel Management (North) Ltd,98401335,59.30,T&S UK - Public Transport
BEIS,UKRI - BBSRC,12/02/2019,T&S UK - Public Transport,CIMG - Programme Office,Corporate Travel Management (North) Ltd,98401335,103.80,T&S UK - Public Transport
BEIS,UKRI - BBSRC,12/02/2019,T&S UK - Public Transport,European Initiatives,Corporate Travel Management (North) Ltd,98401335,114.40,T&S UK - Public Transport
BEIS,UKRI - BBSRC,12/02/2019,T&S UK - Public Transport,European Initiatives,Corporate Travel Management (North) Ltd,98401335,102.05,T&S UK - Public Transport
BEIS,UKRI - BBSRC,12/02/2019,T&S UK - Public Transport,European Initiatives,Corporate Travel Management (North) Ltd,98401335,102.05,T&S UK - Public Transport
BEIS,UKRI - BBSRC,12/02/2019,T&S UK - Public Transport,European Initiatives,Corporate Travel Management (North) Ltd,98401335,54.05,T&S UK - Public Transport
BEIS,UKRI - BBSRC,12/02/2019,T&S UK - Public Transport,European Initiatives,Corporate Travel Management (North) Ltd,98401335,103.80,T&S UK - Public Transport
BEIS,UKRI - BBSRC,12/02/2019,T&S UK - Public Transport,European Initiatives,Corporate Travel Management (North) Ltd,98401335,84.80,T&S UK - Public Transport
BEIS,UKRI - BBSRC,12/02/2019,T&S UK - Public Transport,European Initiatives,Corporate Travel Management (North) Ltd,98401335,74.20,T&S UK - Public Transport
BEIS,UKRI - BBSRC,12/02/2019,T&S UK - Public Transport,FG - Accounts & Business Planning,Corporate Travel Management (North) Ltd,98401335,-134.60,T&S UK - Public Transport
BEIS,UKRI - BBSRC,12/02/2019,T&S UK - Public Transport,FG - Accounts & Business Planning,Corporate Travel Management (North) Ltd,98401335,-134.60,T&S UK - Public Transport
BEIS,UKRI - BBSRC,12/02/2019,T&S UK - Public Transport,FG - Accounts & Business Planning,Corporate Travel Management (North) Ltd,98401335,79.30,T&S UK - Public Transport
BEIS,UKRI - BBSRC,12/02/2019,T&S UK - Public Transport,FG - Accounts & Business Planning,Corporate Travel Management (North) Ltd,98401335,79.30,T&S UK - Public Transport
BEIS,UKRI - BBSRC,12/02/2019,T&S UK - Public Transport,FG - Accounts & Business Planning,Corporate Travel Management (North) Ltd,98401335,144.00,T&S UK - Public Transport
BEIS,UKRI - BBSRC,12/02/2019,T&S UK - Public Transport,FG - Director,Corporate Travel Management (North) Ltd,98401335,93.30,T&S UK - Public Transport
BEIS,UKRI - BBSRC,12/02/2019,T&S UK - Public Transport,FG - Director,Corporate Travel Management (North) Ltd,98401335,79.30,T&S UK - Public Transport
BEIS,UKRI - BBSRC,12/02/2019,T&S UK - Public Transport,FG - Estates,Corporate Travel Management (North) Ltd,98401335,-79.80,T&S UK - Public Transport
BEIS,UKRI - BBSRC,12/02/2019,T&S UK - Public Transport,FG - Estates,Corporate Travel Management (North) Ltd,98401335,55.40,T&S UK - Public Transport
BEIS,UKRI - BBSRC,12/02/2019,T&S UK - Public Transport,FG - Estates,Corporate Travel Management (North) Ltd,98401335,88.00,T&S UK - Public Transport
BEIS,UKRI - BBSRC,12/02/2019,T&S UK - Public Transport,FG - RCUK Assurance,Corporate Travel Management (North) Ltd,98401335,114.40,T&S UK - Public Transport
BEIS,UKRI - BBSRC,12/02/2019,T&S UK - Public Transport,FG - RCUK Assurance,Corporate Travel Management (North) Ltd,98401335,32.10,T&S UK - Public Transport
BEIS,UKRI - BBSRC,12/02/2019,T&S UK - Public Transport,FG - RCUK Assurance,Corporate Travel Management (North) Ltd,98401335,24.80,T&S UK - Public Transport
BEIS,UKRI - BBSRC,12/02/2019,T&S UK - Public Transport,FG - RCUK Assurance,Corporate Travel Management (North) Ltd,98401335,158.90,T&S UK - Public Transport
BEIS,UKRI - BBSRC,12/02/2019,T&S UK - Public Transport,FG - RCUK Assurance,Corporate Travel Management (North) Ltd,98401335,158.90,T&S UK - Public Transport
BEIS,UKRI - BBSRC,12/02/2019,T&S UK - Public Transport,FG - RCUK Assurance,Corporate Travel Management (North) Ltd,98401335,69.90,T&S UK - Public Transport
BEIS,UKRI - BBSRC,12/02/2019,T&S UK - Public Transport,Innovation and Skills Group,Corporate Travel Management (North) Ltd,98401335,15.00,T&S UK - Public Transport
BEIS,UKRI - BBSRC,12/02/2019,T&S UK - Public Transport,Innovation and Skills Group,Corporate Travel Management (North) Ltd,98401335,-181.40,T&S UK - Public Transport
BEIS,UKRI - BBSRC,12/02/2019,T&S UK - Public Transport,Innovation and Skills Group,Corporate Travel Management (North) Ltd,98401335,-40.60,T&S UK - Public Transport
BEIS,UKRI - BBSRC,12/02/2019,T&S UK - Public Transport,Innovation and Skills Group,Corporate Travel Management (North) Ltd,98401335,-48.70,T&S UK - Public Transport
BEIS,UKRI - BBSRC,12/02/2019,T&S UK - Public Transport,Innovation and Skills Group,Corporate Travel Management (North) Ltd,98401335,54.10,T&S UK - Public Transport
BEIS,UKRI - BBSRC,12/02/2019,T&S UK - Public Transport,Innovation and Skills Group,Corporate Travel Management (North) Ltd,98401335,144.00,T&S UK - Public Transport
BEIS,UKRI - BBSRC,12/02/2019,T&S UK - Public Transport,Innovation and Skills Group,Corporate Travel Management (North) Ltd,98401335,138.20,T&S UK - Public Transport
BEIS,UKRI - BBSRC,12/02/2019,T&S UK - Public Transport,Innovation and Skills Group,Corporate Travel Management (North) Ltd,98401335,67.00,T&S UK - Public Transport
BEIS,UKRI - BBSRC,12/02/2019,T&S UK - Public Transport,Innovation and Skills Group,Corporate Travel Management (North) Ltd,98401335,144.00,T&S UK - Public Transport
BEIS,UKRI - BBSRC,12/02/2019,T&S UK - Public Transport,Innovation and Skills Group,Corporate Travel Management (North) Ltd,98401335,209.00,T&S UK - Public Transport
BEIS,UKRI - BBSRC,12/02/2019,T&S UK - Public Transport,Innovation and Skills Group,Corporate Travel Management (North) Ltd,98401335,28.20,T&S UK - Public Transport
BEIS,UKRI - BBSRC,12/02/2019,T&S UK - Public Transport,Innovation and Skills Group,Corporate Travel Management (North) Ltd,98401335,144.00,T&S UK - Public Transport
BEIS,UKRI - BBSRC,12/02/2019,T&S UK - Public Transport,Innovation and Skills Group,Corporate Travel Management (North) Ltd,98401335,5.00,T&S UK - Public Transport
BEIS,UKRI - BBSRC,12/02/2019,T&S UK - Public Transport,Innovation and Skills Group,Corporate Travel Management (North) Ltd,98401335,-90.70,T&S UK - Public Transport
BEIS,UKRI - BBSRC,12/02/2019,T&S UK - Public Transport,Innovation and Skills Group,Corporate Travel Management (North) Ltd,98401335,103.80,T&S UK - Public Transport
BEIS,UKRI - BBSRC,12/02/2019,T&S UK - Public Transport,Innovation and Skills Group,Corporate Travel Management (North) Ltd,98401335,5.00,T&S UK - Public Transport
BEIS,UKRI - BBSRC,12/02/2019,T&S UK - Public Transport,Innovation and Skills Group,Corporate Travel Management (North) Ltd,98401335,-90.70,T&S UK - Public Transport
BEIS,UKRI - BBSRC,12/02/2019,T&S UK - Public Transport,Innovation and Skills Group,Corporate Travel Management (North) Ltd,98401335,97.80,T&S UK - Public Transport
BEIS,UKRI - BBSRC,12/02/2019,T&S UK - Public Transport,Innovation and Skills Group,Corporate Travel Management (North) Ltd,98401335,72.80,T&S UK - Public Transport
BEIS,UKRI - BBSRC,12/02/2019,T&S UK - Public Transport,Innovation and Skills Group,Corporate Travel Management (North) Ltd,98401335,72.00,T&S UK - Public Transport
BEIS,UKRI - BBSRC,12/02/2019,T&S UK - Public Transport,Innovation and Skills Group,Corporate Travel Management (North) Ltd,98401335,-25.90,T&S UK - Public Transport
BEIS,UKRI - BBSRC,12/02/2019,T&S UK - Public Transport,Innovation and Skills Group,Corporate Travel Management (North) Ltd,98401335,69.90,T&S UK - Public Transport
BEIS,UKRI - BBSRC,12/02/2019,T&S UK - Public Transport,Innovation and Skills Group,Corporate Travel Management (North) Ltd,98401335,165.00,T&S UK - Public Transport
BEIS,UKRI - BBSRC,12/02/2019,T&S UK - Public Transport,Innovation and Skills Group,Corporate Travel Management (North) Ltd,98401335,46.15,T&S UK - Public Transport
BEIS,UKRI - BBSRC,12/02/2019,T&S UK - Public Transport,Innovation and Skills Group,Corporate Travel Management (North) Ltd,98401335,33.40,T&S UK - Public Transport
BEIS,UKRI - BBSRC,12/02/2019,T&S UK - Public Transport,Innovation and Skills Group,Corporate Travel Management (North) Ltd,98401335,30.60,T&S UK - Public Transport
BEIS,UKRI - BBSRC,12/02/2019,T&S UK - Public Transport,Innovation and Skills Group,Corporate Travel Management (North) Ltd,98401335,144.00,T&S UK - Public Transport
BEIS,UKRI - BBSRC,12/02/2019,T&S UK - Public Transport,Innovation and Skills Group,Corporate Travel Management (North) Ltd,98401335,13.10,T&S UK - Public Transport
BEIS,UKRI - BBSRC,12/02/2019,T&S UK - Public Transport,Innovation and Skills Group,Corporate Travel Management (North) Ltd,98401335,108.40,T&S UK - Public Transport
BEIS,UKRI - BBSRC,12/02/2019,T&S UK - Public Transport,Innovation and Skills Group,Corporate Travel Management (North) Ltd,98401335,194.10,T&S UK - Public Transport
BEIS,UKRI - BBSRC,12/02/2019,T&S UK - Public Transport,Innovation and Skills Group,Corporate Travel Management (North) Ltd,98401335,5.00,T&S UK - Public Transport
BEIS,UKRI - BBSRC,12/02/2019,T&S UK - Public Transport,Innovation and Skills Group,Corporate Travel Management (North) Ltd,98401335,-101.00,T&S UK - Public Transport
BEIS,UKRI - BBSRC,12/02/2019,T&S UK - Public Transport,Innovation and Skills Group,Corporate Travel Management (North) Ltd,98401335,16.50,T&S UK - Public Transport
BEIS,UKRI - BBSRC,12/02/2019,T&S UK - Public Transport,Innovation and Skills Group,Corporate Travel Management (North) Ltd,98401335,49.20,T&S UK - Public Transport
BEIS,UKRI - BBSRC,12/02/2019,T&S UK - Public Transport,Innovation and Skills Group,Corporate Travel Management (North) Ltd,98401335,-135.30,T&S UK - Public Transport
BEIS,UKRI - BBSRC,12/02/2019,T&S UK - Public Transport,Innovation and Skills Group,Corporate Travel Management (North) Ltd,98401335,53.30,T&S UK - Public Transport
BEIS,UKRI - BBSRC,12/02/2019,T&S UK - Public Transport,Innovation and Skills Group,Corporate Travel Management (North) Ltd,98401335,144.00,T&S UK - Public Transport
BEIS,UKRI - BBSRC,12/02/2019,T&S UK - Public Transport,Innovation and Skills Group,Corporate Travel Management (North) Ltd,98401335,47.50,T&S UK - Public Transport
BEIS,UKRI - BBSRC,12/02/2019,T&S UK - Public Transport,Innovation and Skills Group,Corporate Travel Management (North) Ltd,98401335,73.90,T&S UK - Public Transport
BEIS,UKRI - BBSRC,12/02/2019,T&S UK - Public Transport,Innovation and Skills Group CDSU,Corporate Travel Management (North) Ltd,98401335,-25.90,T&S UK - Public Transport
BEIS,UKRI - BBSRC,12/02/2019,T&S UK - Public Transport,Innovation and Skills Group CDSU,Corporate Travel Management (North) Ltd,98401335,144.00,T&S UK - Public Transport
BEIS,UKRI - BBSRC,12/02/2019,T&S UK - Public Transport,Innovation and Skills Group CDSU,Corporate Travel Management (North) Ltd,98401335,144.00,T&S UK - Public Transport
BEIS,UKRI - BBSRC,12/02/2019,T&S UK - Public Transport,Innovation and Skills Group CDSU,Corporate Travel Management (North) Ltd,98401335,90.80,T&S UK - Public Transport
BEIS,UKRI - BBSRC,12/02/2019,T&S UK - Public Transport,JBOS - Staff,Corporate Travel Management (North) Ltd,98401335,72.60,T&S UK - Public Transport
BEIS,UKRI - BBSRC,12/02/2019,T&S UK - Public Transport,JBOS - Staff,Corporate Travel Management (North) Ltd,98401335,48.40,T&S UK - Public Transport
BEIS,UKRI - BBSRC,12/02/2019,T&S UK - Public Transport,JBOS - Staff,Corporate Travel Management (North) Ltd,98401335,183.70,T&S UK - Public Transport
BEIS,UKRI - BBSRC,12/02/2019,T&S UK - Public Transport,PDG - Director,Corporate Travel Management (North) Ltd,98401335,144.60,T&S UK - Public Transport
BEIS,UKRI - BBSRC,12/02/2019,T&S UK - Public Transport,PDG - Director,Corporate Travel Management (North) Ltd,98401335,-134.60,T&S UK - Public Transport
BEIS,UKRI - BBSRC,12/02/2019,T&S UK - Public Transport,RISD - UKRO,Corporate Travel Management (North) Ltd,98401335,1.00,T&S UK - Public Transport
BEIS,UKRI - BBSRC,12/02/2019,T&S UK - Public Transport,RISD - UKRO,Corporate Travel Management (North) Ltd,98401335,52.50,T&S UK - Public Transport
BEIS,UKRI - BBSRC,12/02/2019,T&S UK - Public Transport,RISD - UKRO,Corporate Travel Management (North) Ltd,98401335,1.00,T&S UK - Public Transport
BEIS,UKRI - BBSRC,12/02/2019,T&S UK - Public Transport,RISD - UKRO,Corporate Travel Management (North) Ltd,98401335,44.30,T&S UK - Public Transport
BEIS,UKRI - BBSRC,12/02/2019,T&S UK - Public Transport,RISD - UKRO,Corporate Travel Management (North) Ltd,98401335,1.00,T&S UK - Public Transport
BEIS,UKRI - BBSRC,12/02/2019,T&S UK - Public Transport,RISD - UKRO,Corporate Travel Management (North) Ltd,98401335,18.00,T&S UK - Public Transport
BEIS,UKRI - BBSRC,12/02/2019,T&S UK - Public Transport,RISD - UKRO,Corporate Travel Management (North) Ltd,98401335,1.00,T&S UK - Public Transport
BEIS,UKRI - BBSRC,12/02/2019,T&S UK - Public Transport,RISD - UKRO,Corporate Travel Management (North) Ltd,98401335,84.80,T&S UK - Public Transport
BEIS,UKRI - BBSRC,12/02/2019,T&S UK - Public Transport,RISD - UKRO,Corporate Travel Management (North) Ltd,98401335,3.16,T&S UK - Public Transport
BEIS,UKRI - BBSRC,12/02/2019,T&S UK - Public Transport,RISD - UKRO,Corporate Travel Management (North) Ltd,98401335,71.20,T&S UK - Public Transport
BEIS,UKRI - BBSRC,12/02/2019,T&S UK - Public Transport,RISD - UKRO,Corporate Travel Management (North) Ltd,98401335,71.20,T&S UK - Public Transport
BEIS,UKRI - BBSRC,12/02/2019,T&S UK - Public Transport,RISD - UKRO,Corporate Travel Management (North) Ltd,98401335,1.00,T&S UK - Public Transport
BEIS,UKRI - BBSRC,12/02/2019,T&S UK - Public Transport,RISD - UKRO,Corporate Travel Management (North) Ltd,98401335,20.80,T&S UK - Public Transport
BEIS,UKRI - BBSRC,12/02/2019,T&S UK - Public Transport,RISD - UKRO,Corporate Travel Management (North) Ltd,98401335,1.00,T&S UK - Public Transport
BEIS,UKRI - BBSRC,12/02/2019,T&S UK - Public Transport,RISD - UKRO,Corporate Travel Management (North) Ltd,98401335,71.20,T&S UK - Public Transport
BEIS,UKRI - BBSRC,12/02/2019,T&S UK - Public Transport,RISD - UKRO,Corporate Travel Management (North) Ltd,98401335,1.00,T&S UK - Public Transport
BEIS,UKRI - BBSRC,12/02/2019,T&S UK - Public Transport,RISD - UKRO,Corporate Travel Management (North) Ltd,98401335,62.70,T&S UK - Public Transport
BEIS,UKRI - BBSRC,12/02/2019,T&S UK - Public Transport,RISD - UKRO,Corporate Travel Management (North) Ltd,98401335,1.00,T&S UK - Public Transport
BEIS,UKRI - BBSRC,12/02/2019,T&S UK - Public Transport,RISD - UKRO,Corporate Travel Management (North) Ltd,98401335,38.10,T&S UK - Public Transport
BEIS,UKRI - BBSRC,12/02/2019,T&S UK - Public Transport,RISD - UKRO,Corporate Travel Management (North) Ltd,98401335,1.00,T&S UK - Public Transport
BEIS,UKRI - BBSRC,12/02/2019,T&S UK - Public Transport,RISD - UKRO,Corporate Travel Management (North) Ltd,98401335,10.00,T&S UK - Public Transport
BEIS,UKRI - BBSRC,12/02/2019,T&S UK - Public Transport,RISD - UKRO,Corporate Travel Management (North) Ltd,98401335,1.00,T&S UK - Public Transport
BEIS,UKRI - BBSRC,12/02/2019,T&S UK - Public Transport,RISD - UKRO,Corporate Travel Management (North) Ltd,98401335,79.75,T&S UK - Public Transport
BEIS,UKRI - BBSRC,12/02/2019,T&S UK - Public Transport,RISD - UKRO,Corporate Travel Management (North) Ltd,98401335,1.00,T&S UK - Public Transport
BEIS,UKRI - BBSRC,12/02/2019,T&S UK - Public Transport,RISD - UKRO,Corporate Travel Management (North) Ltd,98401335,25.80,T&S UK - Public Transport
BEIS,UKRI - BBSRC,12/02/2019,T&S UK - Public Transport,RISD - UKRO,Corporate Travel Management (North) Ltd,98401335,1.00,T&S UK - Public Transport
BEIS,UKRI - BBSRC,12/02/2019,T&S UK - Public Transport,RISD - UKRO,Corporate Travel Management (North) Ltd,98401335,48.00,T&S UK - Public Transport
BEIS,UKRI - BBSRC,12/02/2019,T&S UK - Public Transport,RISD - UKRO,Corporate Travel Management (North) Ltd,98401335,1.00,T&S UK - Public Transport
BEIS,UKRI - BBSRC,12/02/2019,T&S UK - Public Transport,RISD - UKRO,Corporate Travel Management (North) Ltd,98401335,38.50,T&S UK - Public Transport
BEIS,UKRI - BBSRC,12/02/2019,T&S UK - Public Transport,RISD - UKRO,Corporate Travel Management (North) Ltd,98401335,1.00,T&S UK - Public Transport
BEIS,UKRI - BBSRC,12/02/2019,T&S UK - Public Transport,RISD - UKRO,Corporate Travel Management (North) Ltd,98401335,29.00,T&S UK - Public Transport
BEIS,UKRI - BBSRC,12/02/2019,T&S UK - Public Transport,Science Group,Corporate Travel Management (North) Ltd,98401335,60.00,T&S UK - Public Transport
BEIS,UKRI - BBSRC,12/02/2019,T&S UK - Public Transport,Science Group,Corporate Travel Management (North) Ltd,98401335,116.80,T&S UK - Public Transport
BEIS,UKRI - BBSRC,12/02/2019,T&S UK - Public Transport,Science Group,Corporate Travel Management (North) Ltd,98401335,-97.80,T&S UK - Public Transport
BEIS,UKRI - BBSRC,12/02/2019,T&S UK - Public Transport,Science Group,Corporate Travel Management (North) Ltd,98401335,-261.50,T&S UK - Public Transport
BEIS,UKRI - BBSRC,12/02/2019,T&S UK - Public Transport,Science Group,Corporate Travel Management (North) Ltd,98401335,-87.60,T&S UK - Public Transport
BEIS,UKRI - BBSRC,12/02/2019,T&S UK - Public Transport,Science Group,Corporate Travel Management (North) Ltd,98401335,30.60,T&S UK - Public Transport
BEIS,UKRI - BBSRC,12/02/2019,T&S UK - Public Transport,Science Group,Corporate Travel Management (North) Ltd,98401335,96.55,T&S UK - Public Transport
BEIS,UKRI - BBSRC,12/02/2019,T&S UK - Public Transport,Science Group,Corporate Travel Management (North) Ltd,98401335,96.55,T&S UK - Public Transport
BEIS,UKRI - BBSRC,12/02/2019,T&S UK - Public Transport,Science Group,Corporate Travel Management (North) Ltd,98401335,96.55,T&S UK - Public Transport
BEIS,UKRI - BBSRC,12/02/2019,T&S UK - Public Transport,Science Group,Corporate Travel Management (North) Ltd,98401335,-94.40,T&S UK - Public Transport
BEIS,UKRI - BBSRC,12/02/2019,T&S UK - Public Transport,Science Group,Corporate Travel Management (North) Ltd,98401335,175.00,T&S UK - Public Transport
BEIS,UKRI - BBSRC,12/02/2019,T&S UK - Public Transport,Science Group,Corporate Travel Management (North) Ltd,98401335,96.55,T&S UK - Public Transport
BEIS,UKRI - BBSRC,12/02/2019,T&S UK - Public Transport,Science Group,Corporate Travel Management (North) Ltd,98401335,88.30,T&S UK - Public Transport
BEIS,UKRI - BBSRC,12/02/2019,T&S UK - Public Transport,Science Group,Corporate Travel Management (North) Ltd,98401335,138.00,T&S UK - Public Transport
BEIS,UKRI - BBSRC,12/02/2019,T&S UK - Public Transport,Science Group,Corporate Travel Management (North) Ltd,98401335,144.70,T&S UK - Public Transport
BEIS,UKRI - BBSRC,12/02/2019,T&S UK - Public Transport,Science Group,Corporate Travel Management (North) Ltd,98401335,230.00,T&S UK - Public Transport
BEIS,UKRI - BBSRC,12/02/2019,T&S UK - Public Transport,Science Group,Corporate Travel Management (North) Ltd,98401335,145.30,T&S UK - Public Transport
BEIS,UKRI - BBSRC,12/02/2019,T&S UK - Public Transport,Science Group,Corporate Travel Management (North) Ltd,98401335,116.80,T&S UK - Public Transport
BEIS,UKRI - BBSRC,12/02/2019,T&S UK - Public Transport,Science Group,Corporate Travel Management (North) Ltd,98401335,144.00,T&S UK - Public Transport
BEIS,UKRI - BBSRC,12/02/2019,T&S UK - Public Transport,Science Group,Corporate Travel Management (North) Ltd,98401335,144.00,T&S UK - Public Transport
BEIS,UKRI - BBSRC,12/02/2019,T&S UK - Public Transport,Science Group,Corporate Travel Management (North) Ltd,98401335,73.30,T&S UK - Public Transport
BEIS,UKRI - BBSRC,12/02/2019,T&S UK - Public Transport,Science Group,Corporate Travel Management (North) Ltd,98401335,72.00,T&S UK - Public Transport
BEIS,UKRI - BBSRC,12/02/2019,T&S UK - Public Transport,Science Group,Corporate Travel Management (North) Ltd,98401335,38.00,T&S UK - Public Transport
BEIS,UKRI - BBSRC,12/02/2019,T&S UK - Public Transport,Science Group,Corporate Travel Management (North) Ltd,98401335,138.00,T&S UK - Public Transport
BEIS,UKRI - BBSRC,12/02/2019,T&S UK - Public Transport,Science Group,Corporate Travel Management (North) Ltd,98401335,3.16,T&S UK - Public Transport
BEIS,UKRI - BBSRC,12/02/2019,T&S UK - Public Transport,Science Group,Corporate Travel Management (North) Ltd,98401335,98.80,T&S UK - Public Transport
BEIS,UKRI - BBSRC,12/02/2019,T&S UK - Public Transport,Science Group,Corporate Travel Management (North) Ltd,98401335,96.30,T&S UK - Public Transport
BEIS,UKRI - BBSRC,12/02/2019,T&S UK - Public Transport,Science Group,Corporate Travel Management (North) Ltd,98401335,57.20,T&S UK - Public Transport
BEIS,UKRI - BBSRC,12/02/2019,T&S UK - Public Transport,Science Group,Corporate Travel Management (North) Ltd,98401335,185.30,T&S UK - Public Transport
BEIS,UKRI - BBSRC,12/02/2019,T&S UK - Public Transport,Science Group,Corporate Travel Management (North) Ltd,98401335,157.20,T&S UK - Public Transport
BEIS,UKRI - BBSRC,12/02/2019,T&S UK - Public Transport,Science Group,Corporate Travel Management (North) Ltd,98401335,3.16,T&S UK - Public Transport
BEIS,UKRI - BBSRC,12/02/2019,T&S UK - Public Transport,Science Group,Corporate Travel Management (North) Ltd,98401335,29.95,T&S UK - Public Transport
BEIS,UKRI - BBSRC,12/02/2019,T&S UK - Public Transport,Science Group,Corporate Travel Management (North) Ltd,98401335,91.60,T&S UK - Public Transport
BEIS,UKRI - BBSRC,12/02/2019,T&S UK - Public Transport,Science Group,Corporate Travel Management (North) Ltd,98401335,149.70,T&S UK - Public Transport
BEIS,UKRI - BBSRC,12/02/2019,T&S UK - Public Transport,Science Group,Corporate Travel Management (North) Ltd,98401335,18.60,T&S UK - Public Transport
BEIS,UKRI - BBSRC,12/02/2019,T&S UK - Public Transport,Science Group,Corporate Travel Management (North) Ltd,98401335,42.40,T&S UK - Public Transport
BEIS,UKRI - BBSRC,12/02/2019,T&S UK - Public Transport,Science Group,Corporate Travel Management (North) Ltd,98401335,153.00,T&S UK - Public Transport
BEIS,UKRI - BBSRC,12/02/2019,T&S UK - Public Transport,Science Group,Corporate Travel Management (North) Ltd,98401335,10.00,T&S UK - Public Transport
BEIS,UKRI - BBSRC,12/02/2019,T&S UK - Public Transport,Science Group,Corporate Travel Management (North) Ltd,98401335,-128.70,T&S UK - Public Transport
BEIS,UKRI - BBSRC,12/02/2019,T&S UK - Public Transport,Science Group,Corporate Travel Management (North) Ltd,98401335,138.00,T&S UK - Public Transport
BEIS,UKRI - BBSRC,12/02/2019,T&S UK - Public Transport,Science Group,Corporate Travel Management (North) Ltd,98401335,132.30,T&S UK - Public Transport
BEIS,UKRI - BBSRC,12/02/2019,T&S UK - Public Transport,Science Group,Corporate Travel Management (North) Ltd,98401335,39.60,T&S UK - Public Transport
BEIS,UKRI - BBSRC,12/02/2019,T&S UK - Public Transport,Science Group,Corporate Travel Management (North) Ltd,98401335,10.90,T&S UK - Public Transport
BEIS,UKRI - BBSRC,12/02/2019,T&S UK - Public Transport,Science Group,Corporate Travel Management (North) Ltd,98401335,24.20,T&S UK - Public Transport
BEIS,UKRI - BBSRC,12/02/2019,T&S UK - Public Transport,Science Group,Corporate Travel Management (North) Ltd,98401335,94.00,T&S UK - Public Transport
BEIS,UKRI - BBSRC,12/02/2019,T&S UK - Public Transport,Science Group,Corporate Travel Management (North) Ltd,98401335,169.00,T&S UK - Public Transport
BEIS,UKRI - BBSRC,12/02/2019,T&S UK - Public Transport,Science Group,Corporate Travel Management (North) Ltd,98401335,92.20,T&S UK - Public Transport
BEIS,UKRI - BBSRC,12/02/2019,T&S UK - Public Transport,Science Group,Corporate Travel Management (North) Ltd,98401335,74.20,T&S UK - Public Transport
BEIS,UKRI - BBSRC,12/02/2019,T&S UK - Public Transport,Science Group,Corporate Travel Management (North) Ltd,98401335,107.00,T&S UK - Public Transport
BEIS,UKRI - BBSRC,12/02/2019,T&S UK - Public Transport,Science Group,Corporate Travel Management (North) Ltd,98401335,31.80,T&S UK - Public Transport
BEIS,UKRI - BBSRC,12/02/2019,T&S UK - Public Transport,Science Group,Corporate Travel Management (North) Ltd,98401335,209.00,T&S UK - Public Transport
BEIS,UKRI - BBSRC,12/02/2019,T&S UK - Public Transport,Science Group,Corporate Travel Management (North) Ltd,98401335,53.10,T&S UK - Public Transport
BEIS,UKRI - BBSRC,12/02/2019,T&S UK - Public Transport,Science Group,Corporate Travel Management (North) Ltd,98401335,114.40,T&S UK - Public Transport
BEIS,UKRI - BBSRC,12/02/2019,T&S UK - Public Transport,Science Group,Corporate Travel Management (North) Ltd,98401335,144.70,T&S UK - Public Transport
BEIS,UKRI - BBSRC,12/02/2019,T&S UK - Public Transport,Science Group,Corporate Travel Management (North) Ltd,98401335,92.20,T&S UK - Public Transport
BEIS,UKRI - BBSRC,12/02/2019,T&S UK - Public Transport,Science Group,Corporate Travel Management (North) Ltd,98401335,104.00,T&S UK - Public Transport
BEIS,UKRI - BBSRC,12/02/2019,T&S UK - Public Transport,Science Group,Corporate Travel Management (North) Ltd,98401335,-96.40,T&S UK - Public Transport
BEIS,UKRI - BBSRC,12/02/2019,T&S UK - Public Transport,Science Group,Corporate Travel Management (North) Ltd,98401335,144.00,T&S UK - Public Transport
BEIS,UKRI - BBSRC,12/02/2019,T&S UK - Public Transport,Science Group,Corporate Travel Management (North) Ltd,98401335,108.70,T&S UK - Public Transport
BEIS,UKRI - BBSRC,12/02/2019,T&S UK - Public Transport,Science Group,Corporate Travel Management (North) Ltd,98401335,175.00,T&S UK - Public Transport
BEIS,UKRI - BBSRC,12/02/2019,T&S UK - Public Transport,Science Group,Corporate Travel Management (North) Ltd,98401335,107.00,T&S UK - Public Transport
BEIS,UKRI - BBSRC,12/02/2019,T&S UK - Public Transport,Science Group,Corporate Travel Management (North) Ltd,98401335,13.10,T&S UK - Public Transport
BEIS,UKRI - BBSRC,12/02/2019,T&S UK - Public Transport,Science Group,Corporate Travel Management (North) Ltd,98401335,-64.80,T&S UK - Public Transport
BEIS,UKRI - BBSRC,12/02/2019,T&S UK - Public Transport,Science Group,Corporate Travel Management (North) Ltd,98401335,5.00,T&S UK - Public Transport
BEIS,UKRI - BBSRC,12/02/2019,T&S UK - Public Transport,Science Group,Corporate Travel Management (North) Ltd,98401335,-82.50,T&S UK - Public Transport
BEIS,UKRI - BBSRC,12/02/2019,T&S UK - Public Transport,Science Group,Corporate Travel Management (North) Ltd,98401335,54.10,T&S UK - Public Transport
BEIS,UKRI - BBSRC,12/02/2019,T&S UK - Public Transport,Science Group,Corporate Travel Management (North) Ltd,98401335,123.70,T&S UK - Public Transport
BEIS,UKRI - BBSRC,12/02/2019,T&S UK - Public Transport,Science Group,Corporate Travel Management (North) Ltd,98401335,49.40,T&S UK - Public Transport
BEIS,UKRI - BBSRC,12/02/2019,T&S UK - Public Transport,Science Group,Corporate Travel Management (North) Ltd,98401335,69.90,T&S UK - Public Transport
BEIS,UKRI - BBSRC,12/02/2019,T&S UK - Public Transport,Science Group,Corporate Travel Management (North) Ltd,98401335,25.60,T&S UK - Public Transport
BEIS,UKRI - BBSRC,12/02/2019,T&S UK - Public Transport,Science Group,Corporate Travel Management (North) Ltd,98401335,114.40,T&S UK - Public Transport
BEIS,UKRI - BBSRC,12/02/2019,T&S UK - Public Transport,Science Group,Corporate Travel Management (North) Ltd,98401335,17.60,T&S UK - Public Transport
BEIS,UKRI - BBSRC,12/02/2019,T&S UK - Public Transport,Science Group,Corporate Travel Management (North) Ltd,98401335,12.55,T&S UK - Public Transport
BEIS,UKRI - BBSRC,12/02/2019,T&S UK - Public Transport,Science Group,Corporate Travel Management (North) Ltd,98401335,73.30,T&S UK - Public Transport
BEIS,UKRI - BBSRC,12/02/2019,T&S UK - Public Transport,Science Group - Delivery Function,Corporate Travel Management (North) Ltd,98401335,96.55,T&S UK - Public Transport
BEIS,UKRI - BBSRC,12/02/2019,T&S UK - Public Transport,Science Group - Delivery Function,Corporate Travel Management (North) Ltd,98401335,96.55,T&S UK - Public Transport
BEIS,UKRI - BBSRC,12/02/2019,T&S UK - Public Transport,Science Group - Delivery Function,Corporate Travel Management (North) Ltd,98401335,96.55,T&S UK - Public Transport
BEIS,UKRI - BBSRC,12/02/2019,T&S UK - Public Transport,Science Group - Delivery Function,Corporate Travel Management (North) Ltd,98401335,-85.00,T&S UK - Public Transport
BEIS,UKRI - BBSRC,12/02/2019,T&S UK - Public Transport,Science Group - Delivery Function,Corporate Travel Management (North) Ltd,98401335,-85.00,T&S UK - Public Transport
BEIS,UKRI - BBSRC,12/02/2019,T&S UK - Public Transport,Science Group - Delivery Function,Corporate Travel Management (North) Ltd,98401335,144.70,T&S UK - Public Transport
BEIS,UKRI - BBSRC,12/02/2019,T&S UK - Public Transport,Science Group - Delivery Function,Corporate Travel Management (North) Ltd,98401335,144.70,T&S UK - Public Transport
BEIS,UKRI - BBSRC,12/02/2019,T&S UK - Public Transport,Science Group - Delivery Function,Corporate Travel Management (North) Ltd,98401335,138.00,T&S UK - Public Transport
BEIS,UKRI - BBSRC,12/02/2019,T&S UK - Public Transport,Science Group - Delivery Function,Corporate Travel Management (North) Ltd,98401335,144.00,T&S UK - Public Transport
BEIS,UKRI - BBSRC,12/02/2019,T&S UK - Public Transport,Science Group - Delivery Function,Corporate Travel Management (North) Ltd,98401335,138.00,T&S UK - Public Transport
BEIS,UKRI - BBSRC,12/02/2019,T&S UK - Public Transport,Science Group - Delivery Function,Corporate Travel Management (North) Ltd,98401335,276.00,T&S UK - Public Transport
BEIS,UKRI - BBSRC,12/02/2019,T&S UK - Public Transport,Science Group - Delivery Function,Corporate Travel Management (North) Ltd,98401335,107.00,T&S UK - Public Transport
BEIS,UKRI - BBSRC,12/02/2019,T&S UK - Public Transport,Science Group - Delivery Function,Corporate Travel Management (North) Ltd,98401335,103.80,T&S UK - Public Transport
BEIS,UKRI - BBSRC,12/02/2019,T&S UK - Public Transport,Science Group - Delivery Function,Corporate Travel Management (North) Ltd,98401335,107.00,T&S UK - Public Transport
BEIS,UKRI - BBSRC,12/02/2019,T&S UK - Public Transport,Science Group - Delivery Function,Corporate Travel Management (North) Ltd,98401335,144.70,T&S UK - Public Transport
BEIS,UKRI - BBSRC,12/02/2019,T&S UK - Public Transport,Science Group - Delivery Function,Corporate Travel Management (North) Ltd,98401335,144.70,T&S UK - Public Transport
BEIS,UKRI - BBSRC,12/02/2019,T&S UK - Public Transport,Science Group - Delivery Function,Corporate Travel Management (North) Ltd,98401335,47.65,T&S UK - Public Transport
BEIS,UKRI - BBSRC,12/02/2019,T&S UK - Public Transport,Science Group - Delivery Function,Corporate Travel Management (North) Ltd,98401335,31.45,T&S UK - Public Transport
BEIS,UKRI - BBSRC,12/02/2019,T&S UK - Public Transport,Science Group - Delivery Function,Corporate Travel Management (North) Ltd,98401335,94.00,T&S UK - Public Transport
BEIS,UKRI - BBSRC,12/02/2019,Legal & Professional Services,PDG - JSS,Health Management Limited,98401391,70.00,Legal & Professional Services
BEIS,UKRI - BBSRC,12/02/2019,VAT Input Tax Control (for UK VAT),Balance Sheet,Health Management Limited,98401391,14.00,VAT Input Tax Control (for UK VAT)
BEIS,UKRI - BBSRC,12/02/2019,Other Programme Costs,FG - Director,Rothamsted Research Ltd,98402278,"46,118.41",Other Programme Costs
BEIS,UKRI - BBSRC,12/02/2019,T&S UK - Vehicle Hire,JBOS Health and Safety,Cross Street Cars,98402551,6.60,T&S UK - Vehicle Hire
BEIS,UKRI - BBSRC,12/02/2019,T&S UK - Vehicle Hire,JBOS Health and Safety,Cross Street Cars,98402551,10.00,T&S UK - Vehicle Hire
BEIS,UKRI - BBSRC,12/02/2019,T&S UK - Vehicle Hire,JBOS Health and Safety,Cross Street Cars,98402551,10.00,T&S UK - Vehicle Hire
BEIS,UKRI - BBSRC,12/02/2019,T&S UK - Vehicle Hire,JBOS Health and Safety,Cross Street Cars,98402551,10.00,T&S UK - Vehicle Hire
BEIS,UKRI - BBSRC,12/02/2019,T&S UK - Vehicle Hire,JBOS Health and Safety,Cross Street Cars,98402551,18.00,T&S UK - Vehicle Hire
BEIS,UKRI - BBSRC,12/02/2019,Non-Capital Building Construction,JBOS - Maintenance,ISS Facility Services Ltd,98402566,"5,478.18",Non-Capital Building Construction
BEIS,UKRI - BBSRC,12/02/2019,Non-Capital Building Construction,JBOS - Maintenance,ISS Facility Services Ltd,98402568,"12,536.75",Non-Capital Building Construction
BEIS,UKRI - BBSRC,12/02/2019,Other Programme Costs,CE - CPS,University of Oxford,98402569,"9,999.00",Other Programme Costs
BEIS,UKRI - BBSRC,12/02/2019,Meetings & Catering,PDG - Director,Calder Conference Ltd,98402598,115.20,Meetings & Catering
BEIS,UKRI - BBSRC,12/02/2019,T&S UK - Subsistence,CE - Chief Executive,Unspecified,98402613,10.00,T&S UK - Subsistence
BEIS,UKRI - BBSRC,12/02/2019,T&S UK - Other Charges,Science Group,Unspecified,98402614,5.10,T&S UK - Other Charges
BEIS,UKRI - BBSRC,12/02/2019,T&S UK - Public Transport,Science Group,Unspecified,98402614,20.00,T&S UK - Public Transport
BEIS,UKRI - BBSRC,12/02/2019,T&S UK - Subsistence,Science Group,Unspecified,98402614,4.55,T&S UK - Subsistence
BEIS,UKRI - BBSRC,12/02/2019,T&S UK - Subsistence,Science Group,Unspecified,98402614,20.00,T&S UK - Subsistence
BEIS,UKRI - BBSRC,12/02/2019,T&S UK - Subsistence,FG - Estates,Unspecified,98402615,15.00,T&S UK - Subsistence
BEIS,UKRI - BBSRC,12/02/2019,T&S UK - Subsistence,FG - Estates,Unspecified,98402615,2.55,T&S UK - Subsistence
BEIS,UKRI - BBSRC,13/02/2019,PAYE Payable Salaries,Balance Sheet,HM Revenue & Customs,98399293,"103,828.80",PAYE Payable Salaries
BEIS,UKRI - BBSRC,13/02/2019,Student Loans,Balance Sheet,HM Revenue & Customs,98399294,"5,088.00",Student Loans
BEIS,UKRI - BBSRC,13/02/2019,NI Payable Salaries,Balance Sheet,HM Revenue & Customs,98399295,"138,701.72",NI Payable Salaries
BEIS,UKRI - BBSRC,13/02/2019,Apprenticeship Levy,FG - Accounts & Business Planning,HM Revenue & Customs,98399296,"3,772.00",Apprenticeship Levy
BEIS,UKRI - BBSRC,13/02/2019,Realised Gains,RISD - UKRO,UK Research Office,98400122,"44,540.80",Realised Gains
BEIS,UKRI - BBSRC,13/02/2019,Health & Safety (inc. Medicals & Opticians),PDG - Director,Banner Group Ltd,98400959,187.68,Health & Safety (inc. Medicals & Opticians)
BEIS,UKRI - BBSRC,13/02/2019,PAYE Payable Salaries,Balance Sheet,HM Revenue & Customs,98401023,"3,567.85",PAYE Payable Salaries
BEIS,UKRI - BBSRC,13/02/2019,NI Payable Salaries,Balance Sheet,HM Revenue & Customs,98401024,33.88,NI Payable Salaries
BEIS,UKRI - BBSRC,13/02/2019,Apprenticeship Levy,FG - Accounts & Business Planning,HM Revenue & Customs,98401025,54.00,Apprenticeship Levy
BEIS,UKRI - BBSRC,13/02/2019,Non-staff travel and subsistance,Science Group - Delivery Function,Non Employee Expenses Supplier,98401275,680.69,Non-staff travel and subsistance
BEIS,UKRI - BBSRC,13/02/2019,T&S UK - Vehicle Hire,CIMG - Programme Office,Enterprise Rent-A-Car UK Ltd,98402958,93.98,T&S UK - Vehicle Hire
BEIS,UKRI - BBSRC,13/02/2019,T&S UK - Vehicle Hire,CIMG - Programme Office,Enterprise Rent-A-Car UK Ltd,98402958,78.07,T&S UK - Vehicle Hire
BEIS,UKRI - BBSRC,13/02/2019,T&S UK - Vehicle Hire,CIMG - Programme Office,Enterprise Rent-A-Car UK Ltd,98402958,34.41,T&S UK - Vehicle Hire
BEIS,UKRI - BBSRC,13/02/2019,T&S UK - Vehicle Hire,FG - Estates,Enterprise Rent-A-Car UK Ltd,98402958,115.87,T&S UK - Vehicle Hire
BEIS,UKRI - BBSRC,13/02/2019,T&S UK - Vehicle Hire,FG - Estates,Enterprise Rent-A-Car UK Ltd,98402958,70.91,T&S UK - Vehicle Hire
BEIS,UKRI - BBSRC,13/02/2019,T&S UK - Vehicle Hire,FG - Estates,Enterprise Rent-A-Car UK Ltd,98402958,79.48,T&S UK - Vehicle Hire
BEIS,UKRI - BBSRC,13/02/2019,T&S UK - Vehicle Hire,FG - Estates,Enterprise Rent-A-Car UK Ltd,98402958,37.35,T&S UK - Vehicle Hire
BEIS,UKRI - BBSRC,13/02/2019,T&S UK - Vehicle Hire,FG - Estates,Enterprise Rent-A-Car UK Ltd,98402958,15.90,T&S UK - Vehicle Hire
BEIS,UKRI - BBSRC,13/02/2019,T&S UK - Vehicle Hire,Science Group,Enterprise Rent-A-Car UK Ltd,98402958,57.96,T&S UK - Vehicle Hire
